Workbook

Sheet code
A1: الاصناف | G1: العمله | H1: نوع الفاتوره
G2: $ | H2: مبيعات
A3: الصنف | B3: سعر الشراء | C3: سعر البيع | D3: حد الطلب | E3: الوحده | H3: شراء | I3: الشركات
A4: مقوي اظافر essense | B4: 3250 | C4: 5000 | D4: 3 | E4: قطع | I4: اسم الشركه | J4: اجرة التوصيل | K4: رقم الشركه
A5: اظافر | B5: 3500 | C5: 8000 | D5: 100 | E5: سيت 18 اظفر | I5: الوسيط | J5: 5000 | K5: 7700125523
A6: صمغ brush | B6: 1750 | C6: 3000 | D6: 5 | E6: قطعه | I6: الخبير | J6: 4000
A7: حماية اظافر essence | B7: 2250 | C7: 5000 | D7: 5 | E7: قطعه | I7: العنقاء | J7: 5000
A8: اظافر قدم | B8: 4000 | C8: 10000 | D8: 100 | E8: سيت 20 اظفر
A9: بكج ذهبي | B9: 14500 | C9: 28000 | D9: 100 | E9: بوكس
A10: بكج فضي | B10: 11000 | C10: 21000 | D10: 100 | E10: بوكس
A11: بكج عادي | B11: 7500 | C11: 13000 | D11: 100 | E11: بوكس
A12: بكج عروس | B12: 7500 | C12: 15000 | D12: 100 | E12: بوكس
A13: بكج عناية | B13: 7500 | C13: 15000 | D13: 100 | E13: بوكس
A14: اظافر ساده | B14: 2000 | C14: 5000 | D14: 5 | E14: 20 اظفر قدم
A15: صبغ فلارمر | B15: 500 | C15: 1000 | D15: 1 | E15: قطعه
A16: توصيل | B16: 1000 | C16: 5000 | E16: سياره
A17: استون كولدن روز | B17: 1500 | C17: 3000 | D17: 5 | E17: علبه
A18: صمغ mariage | B18: 750 | C18: 3000 | D18: 10 | E18: علب
A19: eveline total 8 in1 | B19: 5000 | C19: 6000 | D19: 3 | E19: قطع
A20: ماسكارا اسينس | B20: 3750 | C20: 5000 | D20: 1 | E20: قطع
A21: اظافر 9000 | B21: 3500 | C21: 9000 | D21: 10 | E21: سيت
A22: اظافر سادة يد | B22: 3000 | C22: 7000 | D22: 10 | E22: علب
A23: اظافر 10000 | B23: 3500 | C23: 10000 | D23: 10 | E23: سيت
A24: كولدن روز | B24: 2500 | C24: 5000 | D24: 1 | E24: علب

Sheet home

Sheet نسبة نمو المبيعات
B6: الشهر | C6: المبيعات
B7: الشهر السادس | C7: 728000
B8: الشهر السابع | C8: 976000
B9: الشهر الثامن | C9: 1165000
B10: الشهر التاسع
B11: الشهر العاشر
B12: الشهر الحادي عشر
B13: الشهر الثاني عشر
B14: المجموع | C14: =SUM(C7:C13) -> 2869000

Sheet الميزانية وراس المال
C2: من | D2: الى
C3: 2018-01-09 | D3: 15/9/2018
C6: مجموع المبيعات | D6: =SUMIFS(مبيعات!$M$5:$M$1048576,مبيعات!$B$5:$B$1048576,">="&'الميزانية وراس المال'!$C$3,مبيعات!$B$5:$B$1048576,"<="&'الميزانية وراس المال'!$D$3) -> 961000
C7: مجموع المصروفات | D7: =SUMIFS(مشتريات!$J$5:$J$1048576,مشتريات!$B$5:$B$1048576,">="&'الميزانية وراس المال'!$C$3,مشتريات!$B$5:$B$1048576,"<="&'الميزانية وراس المال'!$D$3) -> 0
C8: الربح الصافي | D8: =D6-D7 -> 961000
C9: مجموع قيمة المواد بالتكلفه في المخزن
C10: مجموع قيمة المواد بالبيع في المخزن
C11: راس المال

Sheet تقرير المخزن بالتاريخ
C3: الصنف | D3: الوارد | E3: الصادر
C4: مقوي اظافر essense
C5: اظافر
C6: صمغ brush
C7: حماية اظافر essence
C8: اظافر قدم
C9: بكج ذهبي
C10: بكج فضي
C11: بكج عادي
C12: بكج عروس
C13: بكج عناية
C14: اظافر ساده
C15: صبغ فلارمر
C16: توصيل
C17: استون كولدن روز
C18: صمغ mariage
C19: eveline total 8 in1
C20: ماسكارا اسينس
C21: اظافر 9000
C22: اظافر سادة يد
C23: اظافر 10000
C24: كولدن روز

Sheet سجل الوارد
B1: الرصيد النقدي
D3: =SUM(D5:D1001) -> 0 | E3: =SUM(E5:E1001) -> 0 | F3: 0 | G3: 0 | H3: 0 | I3: 0 | J3: 0 | K3: 0 | L3: 0 | M3: 0 | N3: 0 | O3: 0
A4: النوع | B4: من تاريخ | C4: الى تاريخ | D4: زهراء | E4: الستراس | F4: اصباغ الاظافر | G4: اكياس الكارتون | H4: الفيزا كارت | I4: الصمغ | J4: علب الاظافر | K4: الاظافر | L4: استون | M4: كاميرا | N4: اظافر قدم
A5: وارد | B5: 27/7/2018 | C5: 31/7/2018 | O5: =SUM(D5:N5) -> 0
B6: 2018-01-08 | C6: 2018-08-08 | O6: =SUM(D6:N6) -> 0
B7: 2018-09-08 | C7: 15/8/2018 | O7: 0
B8: 20/8/2018 | C8: 31/8/2018 | O8: 0
O9: 0
O10: 0
O11: 0
O12: 0
O13: 0
O14: 0
O15: 0
O16: 0
O17: 0
O18: 0
O19: 0
O20: 0
O21: 0
O22: 0
O23: 0
O24: 0
O25: 0
O26: 0
O27: 0
O28: 0
O29: 0
O30: 0
O31: 0
O32: 0
O33: 0

Sheet العملاء
A1: العملاء
A3: العميل | B3: الرقم | C3: المحافظه | D3: اقرب نقطه داله
A4: ختام | B4: 7713745857 | C4: الكوت | D4: الكوت / الزهراء /فرع مطعم الرسول
A5: زوزو | B5: 7825385633 | C5: ناصريه | D5: ناصريه / اريدو / شارع المحكمه الجديده
A6: ساره | B6: 7700249825 | C6: بغداد | D6: بغداد / بغداد الجديده / قرب كاتب عدل القديم
A7: مروان جدوح | B7: 7700357900 | C7: كركوك | D7: كركوك/ الواسطيه
A8: نيكي | B8: 7809282093 | C8: البصره | D8: البصره / مناوي باشا
A9: محمد | B9: 7703038376 | C9: بغداد | D9: بغداد/ساحة بروت
A10: لا يوجد | B10: 7726741783 | C10: بغداد | D10: بغداد / الكاظميه/العكيلات/مقابل مدرسة عاتكه
A11: مروة خالد | B11: 7901316941 | C11: بغداد | D11: بغداد / المنصور/شارع الاميرات /مقابل السفاره الالمانيه
A12: مينا | B12: 7717341442 | C12: بغداد | D12: بغداد / الغدير / شارع التوت قرب اسماك الشمري
A13: ايمان | B13: 7902169569 | C13: بغداد | D13: بغداد / حي الخضراء /مقابيل العامريه
A14: ام منتظر | B14: 7500727760 | C14: بغداد | D14: بغداد / حي البنوك /الجسر الجديد/مقابل افران ومثلجات السفيح
A15: فيروز | B15: 7726091148 | C15: ديالى | D15: ديالى / جامعة ديالى
A16: تغريد | B16: 7724432042 | C16: بغداد | D16: بغداد / العرصات/ مطعم الاوتار
A17: لا يوجد | B17: 7710753141 | C17: بغداد | D17: بغداد /حي القاهره / الجسر الجديد
A18: حبيبة ابراهيم | B18: 7500274240 | C18: بغداد | D18: بغداد / الشعب/حي سومر/شارع المدارس
A19: لا يوجد واتس | B19: 7735266068 | C19: البصره | D19: البصره /الجمعيات
A20: لا يوجد | B20: 7827305082 | C20: السماوه | D20: السماوه / ام العصافر / النزله الاولى /مقابل صيدلية روان
A21: لا يوجد | B21: 7502990409 | C21: بغداد | D21: بغداد / الصليخ / شارع الستيمه / اسواق ياره
A22: لا بوجد | B22: 7730733374 | C22: بغداد | D22: بغداد / المنصور / مجاور مطعم هيل وزعفران
A23: لا يوجد11 | B23: 7723649288 | C23: بغداد | D23: بغداد / شارع حيفا / بالقرب من حيفا مول
A24: روان | B24: 7722334421 | C24: الموصل | D24: الموصل / المجموعه الثقافيه / مقابل البان الجزيره
A25: لا يوجد 8 | B25: 7725062301 | C25: الكوت | D25: الكوت/ الزهراء
A26: حسين الكوفي | B26: 7502895869 | C26: النجف | D26: النجف / الكوفه / شارع عبد العال

Sheet الموردين
A1: الموردين
A3: العميل | B3: الرقم | C3: المحافظه | D3: اقرب نقطه داله
A4: زهراء | B4: 7707847133 | D4: بغداد
A5: المركز الايطالي | B5: 7722596988 | D5: مول زيونه
A6: علي عقيل | B6: 7700125523 | D6: بغداد

Sheet stol
A1: المخزن
A3: الصنف | B3: الوارد | C3: الصادر | D3: المتبقي | E3: تنبيه
A4: مقوي اظافر essense | B4: =SUMIF(شراء!$D$5:$D$1048576,stol!A4,شراء!$F$5:$F$1048576) -> 10 | C4: =SUMIF(مبيعات!$D$5:$D$1048576,stol!A4,مبيعات!$F$5:$F$1048576) -> 10 | D4: =B4-C4 -> 0 | E4: =IF(D4<code!D4,"يرجى تزويد المخزن","") -> يرجى تزويد المخزن
A5: اظافر | B5: =SUMIF(شراء!$D$5:$D$1048576,stol!A5,شراء!$F$5:$F$1048576) -> 1 | C5: =SUMIF(مبيعات!$D$5:$D$1048576,stol!A5,مبيعات!$F$5:$F$1048576) -> 339 | D5: =B5-C5 -> -338 | E5: =IF(D5<code!D5,"يرجى تزويد المخزن","") -> يرجى تزويد المخزن
A6: صمغ brush | B6: =SUMIF(شراء!$D$5:$D$1048576,stol!A6,شراء!$F$5:$F$1048576) -> 42 | C6: =SUMIF(مبيعات!$D$5:$D$1048576,stol!A6,مبيعات!$F$5:$F$1048576) -> 42 | D6: 0 | E6: =IF(D6<code!D6,"يرجى تزويد المخزن","") -> يرجى تزويد المخزن
A7: حماية اظافر essence | B7: =SUMIF(شراء!$D$5:$D$1048576,stol!A7,شراء!$F$5:$F$1048576) -> 10 | C7: =SUMIF(مبيعات!$D$5:$D$1048576,stol!A7,مبيعات!$F$5:$F$1048576) -> 10 | D7: 0 | E7: =IF(D7<code!D7,"يرجى تزويد المخزن","") -> يرجى تزويد المخزن
A8: اظافر قدم | B8: =SUMIF(شراء!$D$5:$D$1048576,stol!A8,شراء!$F$5:$F$1048576) -> 10 | C8: =SUMIF(مبيعات!$D$5:$D$1048576,stol!A8,مبيعات!$F$5:$F$1048576) -> 6 | D8: 4 | E8: =IF(D8<code!D8,"يرجى تزويد المخزن","") -> يرجى تزويد المخزن
A9: بكج ذهبي | B9: =SUMIF(شراء!$D$5:$D$1048576,stol!A9,شراء!$F$5:$F$1048576) -> 0 | C9: =SUMIF(مبيعات!$D$5:$D$1048576,stol!A9,مبيعات!$F$5:$F$1048576) -> 1 | D9: -1 | E9: =IF(D9<code!D9,"يرجى تزويد المخزن","") -> يرجى تزويد المخزن
A10: بكج فضي | B10: =SUMIF(شراء!$D$5:$D$1048576,stol!A10,شراء!$F$5:$F$1048576) -> 0 | C10: =SUMIF(مبيعات!$D$5:$D$1048576,stol!A10,مبيعات!$F$5:$F$1048576) -> 0 | D10: 0 | E10: =IF(D10<code!D10,"يرجى تزويد المخزن","") -> يرجى تزويد المخزن
A11: بكج عادي | B11: =SUMIF(شراء!$D$5:$D$1048576,stol!A11,شراء!$F$5:$F$1048576) -> 0 | C11: =SUMIF(مبيعات!$D$5:$D$1048576,stol!A11,مبيعات!$F$5:$F$1048576) -> 0 | D11: 0 | E11: =IF(D11<code!D11,"يرجى تزويد المخزن","") -> يرجى تزويد المخزن
A12: بكج عروس | B12: =SUMIF(شراء!$D$5:$D$1048576,stol!A12,شراء!$F$5:$F$1048576) -> 0 | C12: =SUMIF(مبيعات!$D$5:$D$1048576,stol!A12,مبيعات!$F$5:$F$1048576) -> 0 | D12: 0 | E12: =IF(D12<code!D12,"يرجى تزويد المخزن","") -> يرجى تزويد المخزن
A13: بكج عناية | B13: =SUMIF(شراء!$D$5:$D$1048576,stol!A13,شراء!$F$5:$F$1048576) -> 0 | C13: =SUMIF(مبيعات!$D$5:$D$1048576,stol!A13,مبيعات!$F$5:$F$1048576) -> 0 | D13: 0 | E13: =IF(D13<code!D13,"يرجى تزويد المخزن","") -> يرجى تزويد المخزن
A14: اظافر ساده | B14: =SUMIF(شراء!$D$5:$D$1048576,stol!A14,شراء!$F$5:$F$1048576) -> 0 | C14: =SUMIF(مبيعات!$D$5:$D$1048576,stol!A14,مبيعات!$F$5:$F$1048576) -> 2 | D14: -2 | E14: =IF(D14<code!D14,"يرجى تزويد المخزن","") -> يرجى تزويد المخزن
A15: صبغ فلارمر | B15: =SUMIF(شراء!$D$5:$D$1048576,stol!A15,شراء!$F$5:$F$1048576) -> 0 | C15: =SUMIF(مبيعات!$D$5:$D$1048576,stol!A15,مبيعات!$F$5:$F$1048576) -> 2 | D15: -2 | E15: =IF(D15<code!D15,"يرجى تزويد المخزن","") -> يرجى تزويد المخزن
A16: توصيل | B16: =SUMIF(شراء!$D$5:$D$1048576,stol!A16,شراء!$F$5:$F$1048576) -> 0 | C16: =SUMIF(مبيعات!$D$5:$D$1048576,stol!A16,مبيعات!$F$5:$F$1048576) -> 12 | D16: -12 | E16: =IF(D16<code!D16,"يرجى تزويد المخزن","") -> يرجى تزويد المخزن
A17: استون كولدن روز | B17: =SUMIF(شراء!$D$5:$D$1048576,stol!A17,شراء!$F$5:$F$1048576) -> 48 | C17: =SUMIF(مبيعات!$D$5:$D$1048576,stol!A17,مبيعات!$F$5:$F$1048576) -> 25 | D17: 23 | E17: =IF(D17<code!D17,"يرجى تزويد المخزن","") -> 
A18: صمغ mariage | B18: =SUMIF(شراء!$D$5:$D$1048576,stol!A18,شراء!$F$5:$F$1048576) -> 144 | C18: =SUMIF(مبيعات!$D$5:$D$1048576,stol!A18,مبيعات!$F$5:$F$1048576) -> 117 | D18: 27 | E18: =IF(D18<code!D18,"يرجى تزويد المخزن","") -> 
A19: eveline total 8 in1 | B19: =SUMIF(شراء!$D$5:$D$1048576,stol!A19,شراء!$F$5:$F$1048576) -> 12 | C19: =SUMIF(مبيعات!$D$5:$D$1048576,stol!A19,مبيعات!$F$5:$F$1048576) -> 9 | D19: 3 | E19: =IF(D19<code!D19,"يرجى تزويد المخزن","") -> 
A20: ماسكارا اسينس | B20: =SUMIF(شراء!$D$5:$D$1048576,stol!A20,شراء!$F$5:$F$1048576) -> 4 | C20: =SUMIF(مبيعات!$D$5:$D$1048576,stol!A20,مبيعات!$F$5:$F$1048576) -> 3 | D20: 1 | E20: =IF(D20<code!D20,"يرجى تزويد المخزن","") -> 
A21: اظافر 9000 | B21: =SUMIF(شراء!$D$5:$D$1048576,stol!A21,شراء!$F$5:$F$1048576) -> 0 | C21: =SUMIF(مبيعات!$D$5:$D$1048576,stol!A21,مبيعات!$F$5:$F$1048576) -> 37 | D21: -37 | E21: =IF(D21<code!D21,"يرجى تزويد المخزن","") -> يرجى تزويد المخزن
A22: اظافر سادة يد | B22: =SUMIF(شراء!$D$5:$D$1048576,stol!A22,شراء!$F$5:$F$1048576) -> 0 | C22: =SUMIF(مبيعات!$D$5:$D$1048576,stol!A22,مبيعات!$F$5:$F$1048576) -> 2 | D22: -2 | E22: =IF(D22<code!D22,"يرجى تزويد المخزن","") -> يرجى تزويد المخزن
A23: اظافر 10000 | B23: =SUMIF(شراء!$D$5:$D$1048576,stol!A23,شراء!$F$5:$F$1048576) -> 0 | C23: =SUMIF(مبيعات!$D$5:$D$1048576,stol!A23,مبيعات!$F$5:$F$1048576) -> 9 | D23: -9 | E23: =IF(D23<code!D23,"يرجى تزويد المخزن","") -> يرجى تزويد المخزن
A24: كولدن روز | B24: =SUMIF(شراء!$D$5:$D$1048576,stol!A24,شراء!$F$5:$F$1048576) -> 12 | C24: =SUMIF(مبيعات!$D$5:$D$1048576,stol!A24,مبيعات!$F$5:$F$1048576) -> 0 | D24: 12 | E24: =IF(D24<code!D24,"يرجى تزويد المخزن","") -> 
B25: =SUMIF(شراء!$D$5:$D$1048576,stol!A25,شراء!$F$5:$F$1048576) -> 0 | C25: =SUMIF(مبيعات!$D$5:$D$1048576,stol!A25,مبيعات!$F$5:$F$1048576) -> 0 | D25: 0 | E25: =IF(D25<code!D25,"يرجى تزويد المخزن","") -> 
B26: =SUMIF(شراء!$D$5:$D$1048576,stol!A26,شراء!$F$5:$F$1048576) -> 0 | C26: =SUMIF(مبيعات!$D$5:$D$1048576,stol!A26,مبيعات!$F$5:$F$1048576) -> 0 | D26: 0 | E26: =IF(D26<code!D26,"يرجى تزويد المخزن","") -> 
B27: =SUMIF(شراء!$D$5:$D$1048576,stol!A27,شراء!$F$5:$F$1048576) -> 0 | C27: =SUMIF(مبيعات!$D$5:$D$1048576,stol!A27,مبيعات!$F$5:$F$1048576) -> 0 | D27: 0 | E27: =IF(D27<code!D27,"يرجى تزويد المخزن","") -> 
B28: =SUMIF(شراء!$D$5:$D$1048576,stol!A28,شراء!$F$5:$F$1048576) -> 0 | C28: =SUMIF(مبيعات!$D$5:$D$1048576,stol!A28,مبيعات!$F$5:$F$1048576) -> 0 | D28: 0 | E28: =IF(D28<code!D28,"يرجى تزويد المخزن","") -> 
B29: =SUMIF(شراء!$D$5:$D$1048576,stol!A29,شراء!$F$5:$F$1048576) -> 0 | C29: =SUMIF(مبيعات!$D$5:$D$1048576,stol!A29,مبيعات!$F$5:$F$1048576) -> 0 | D29: 0 | E29: =IF(D29<code!D29,"يرجى تزويد المخزن","") -> 
B30: =SUMIF(شراء!$D$5:$D$1048576,stol!A30,شراء!$F$5:$F$1048576) -> 0 | C30: =SUMIF(مبيعات!$D$5:$D$1048576,stol!A30,مبيعات!$F$5:$F$1048576) -> 0 | D30: 0 | E30: =IF(D30<code!D30,"يرجى تزويد المخزن","") -> 
B31: =SUMIF(شراء!$D$5:$D$1048576,stol!A31,شراء!$F$5:$F$1048576) -> 0 | C31: =SUMIF(مبيعات!$D$5:$D$1048576,stol!A31,مبيعات!$F$5:$F$1048576) -> 0 | D31: 0 | E31: =IF(D31<code!D31,"يرجى تزويد المخزن","") -> 
B32: =SUMIF(شراء!$D$5:$D$1048576,stol!A32,شراء!$F$5:$F$1048576) -> 0 | C32: =SUMIF(مبيعات!$D$5:$D$1048576,stol!A32,مبيعات!$F$5:$F$1048576) -> 0 | D32: 0 | E32: =IF(D32<code!D32,"يرجى تزويد المخزن","") -> 
B33: =SUMIF(شراء!$D$5:$D$1048576,stol!A33,شراء!$F$5:$F$1048576) -> 0 | C33: =SUMIF(مبيعات!$D$5:$D$1048576,stol!A33,مبيعات!$F$5:$F$1048576) -> 0 | D33: 0 | E33: =IF(D33<code!D33,"يرجى تزويد المخزن","") -> 
B34: =SUMIF(شراء!$D$5:$D$1048576,stol!A34,شراء!$F$5:$F$1048576) -> 0 | C34: =SUMIF(مبيعات!$D$5:$D$1048576,stol!A34,مبيعات!$F$5:$F$1048576) -> 0 | D34: 0 | E34: =IF(D34<code!D34,"يرجى تزويد المخزن","") -> 
B35: =SUMIF(شراء!$D$5:$D$1048576,stol!A35,شراء!$F$5:$F$1048576) -> 0 | C35: =SUMIF(مبيعات!$D$5:$D$1048576,stol!A35,مبيعات!$F$5:$F$1048576) -> 0 | D35: 0 | E35: =IF(D35<code!D35,"يرجى تزويد المخزن","") -> 
B36: =SUMIF(شراء!$D$5:$D$1048576,stol!A36,شراء!$F$5:$F$1048576) -> 0 | C36: =SUMIF(مبيعات!$D$5:$D$1048576,stol!A36,مبيعات!$F$5:$F$1048576) -> 0 | D36: 0 | E36: =IF(D36<code!D36,"يرجى تزويد المخزن","") -> 
B37: =SUMIF(شراء!$D$5:$D$1048576,stol!A37,شراء!$F$5:$F$1048576) -> 0 | C37: =SUMIF(مبيعات!$D$5:$D$1048576,stol!A37,مبيعات!$F$5:$F$1048576) -> 0 | D37: 0 | E37: =IF(D37<code!D37,"يرجى تزويد المخزن","") -> 
B38: =SUMIF(شراء!$D$5:$D$1048576,stol!A38,شراء!$F$5:$F$1048576) -> 0 | C38: =SUMIF(مبيعات!$D$5:$D$1048576,stol!A38,مبيعات!$F$5:$F$1048576) -> 0 | D38: 0 | E38: =IF(D38<code!D38,"يرجى تزويد المخزن","") -> 
B39: =SUMIF(شراء!$D$5:$D$1048576,stol!A39,شراء!$F$5:$F$1048576) -> 0 | C39: =SUMIF(مبيعات!$D$5:$D$1048576,stol!A39,مبيعات!$F$5:$F$1048576) -> 0 | D39: 0 | E39: =IF(D39<code!D39,"يرجى تزويد المخزن","") -> 
B40: =SUMIF(شراء!$D$5:$D$1048576,stol!A40,شراء!$F$5:$F$1048576) -> 0 | C40: =SUMIF(مبيعات!$D$5:$D$1048576,stol!A40,مبيعات!$F$5:$F$1048576) -> 0 | D40: 0 | E40: =IF(D40<code!D40,"يرجى تزويد المخزن","") -> 
B41: =SUMIF(شراء!$D$5:$D$1048576,stol!A41,شراء!$F$5:$F$1048576) -> 0 | C41: =SUMIF(مبيعات!$D$5:$D$1048576,stol!A41,مبيعات!$F$5:$F$1048576) -> 0 | D41: 0 | E41: =IF(D41<code!D41,"يرجى تزويد المخزن","") -> 
B42: =SUMIF(شراء!$D$5:$D$1048576,stol!A42,شراء!$F$5:$F$1048576) -> 0 | C42: =SUMIF(مبيعات!$D$5:$D$1048576,stol!A42,مبيعات!$F$5:$F$1048576) -> 0 | D42: 0 | E42: =IF(D42<code!D42,"يرجى تزويد المخزن","") -> 
B43: =SUMIF(شراء!$D$5:$D$1048576,stol!A43,شراء!$F$5:$F$1048576) -> 0 | C43: =SUMIF(مبيعات!$D$5:$D$1048576,stol!A43,مبيعات!$F$5:$F$1048576) -> 0 | D43: 0 | E43: =IF(D43<code!D43,"يرجى تزويد المخزن","") -> 
B44: =SUMIF(شراء!$D$5:$D$1048576,stol!A44,شراء!$F$5:$F$1048576) -> 0 | C44: =SUMIF(مبيعات!$D$5:$D$1048576,stol!A44,مبيعات!$F$5:$F$1048576) -> 0 | D44: 0 | E44: =IF(D44<code!D44,"يرجى تزويد المخزن","") -> 
B45: =SUMIF(شراء!$D$5:$D$1048576,stol!A45,شراء!$F$5:$F$1048576) -> 0 | C45: =SUMIF(مبيعات!$D$5:$D$1048576,stol!A45,مبيعات!$F$5:$F$1048576) -> 0 | D45: 0 | E45: =IF(D45<code!D45,"يرجى تزويد المخزن","") -> 
B46: =SUMIF(شراء!$D$5:$D$1048576,stol!A46,شراء!$F$5:$F$1048576) -> 0 | C46: =SUMIF(مبيعات!$D$5:$D$1048576,stol!A46,مبيعات!$F$5:$F$1048576) -> 0 | D46: 0 | E46: =IF(D46<code!D46,"يرجى تزويد المخزن","") -> 
B47: =SUMIF(شراء!$D$5:$D$1048576,stol!A47,شراء!$F$5:$F$1048576) -> 0 | C47: =SUMIF(مبيعات!$D$5:$D$1048576,stol!A47,مبيعات!$F$5:$F$1048576) -> 0 | D47: 0 | E47: =IF(D47<code!D47,"يرجى تزويد المخزن","") -> 
B48: =SUMIF(شراء!$D$5:$D$1048576,stol!A48,شراء!$F$5:$F$1048576) -> 0 | C48: =SUMIF(مبيعات!$D$5:$D$1048576,stol!A48,مبيعات!$F$5:$F$1048576) -> 0 | D48: 0 | E48: =IF(D48<code!D48,"يرجى تزويد المخزن","") -> 
B49: =SUMIF(شراء!$D$5:$D$1048576,stol!A49,شراء!$F$5:$F$1048576) -> 0 | C49: =SUMIF(مبيعات!$D$5:$D$1048576,stol!A49,مبيعات!$F$5:$F$1048576) -> 0 | D49: 0 | E49: =IF(D49<code!D49,"يرجى تزويد المخزن","") -> 
B50: =SUMIF(شراء!$D$5:$D$1048576,stol!A50,شراء!$F$5:$F$1048576) -> 0 | C50: =SUMIF(مبيعات!$D$5:$D$1048576,stol!A50,مبيعات!$F$5:$F$1048576) -> 0 | D50: 0 | E50: =IF(D50<code!D50,"يرجى تزويد المخزن","") -> 
B51: =SUMIF(شراء!$D$5:$D$1048576,stol!A51,شراء!$F$5:$F$1048576) -> 0 | C51: =SUMIF(مبيعات!$D$5:$D$1048576,stol!A51,مبيعات!$F$5:$F$1048576) -> 0 | D51: 0 | E51: =IF(D51<code!D51,"يرجى تزويد المخزن","") -> 
B52: =SUMIF(شراء!$D$5:$D$1048576,stol!A52,شراء!$F$5:$F$1048576) -> 0 | C52: =SUMIF(مبيعات!$D$5:$D$1048576,stol!A52,مبيعات!$F$5:$F$1048576) -> 0 | D52: 0 | E52: =IF(D52<code!D52,"يرجى تزويد المخزن","") -> 
B53: =SUMIF(شراء!$D$5:$D$1048576,stol!A53,شراء!$F$5:$F$1048576) -> 0 | C53: =SUMIF(مبيعات!$D$5:$D$1048576,stol!A53,مبيعات!$F$5:$F$1048576) -> 0 | D53: 0 | E53: =IF(D53<code!D53,"يرجى تزويد المخزن","") -> 
B54: =SUMIF(شراء!$D$5:$D$1048576,stol!A54,شراء!$F$5:$F$1048576) -> 0 | C54: =SUMIF(مبيعات!$D$5:$D$1048576,stol!A54,مبيعات!$F$5:$F$1048576) -> 0 | D54: 0 | E54: =IF(D54<code!D54,"يرجى تزويد المخزن","") -> 
B55: =SUMIF(شراء!$D$5:$D$1048576,stol!A55,شراء!$F$5:$F$1048576) -> 0 | C55: =SUMIF(مبيعات!$D$5:$D$1048576,stol!A55,مبيعات!$F$5:$F$1048576) -> 0 | D55: 0 | E55: =IF(D55<code!D55,"يرجى تزويد المخزن","") -> 
B56: =SUMIF(شراء!$D$5:$D$1048576,stol!A56,شراء!$F$5:$F$1048576) -> 0 | C56: =SUMIF(مبيعات!$D$5:$D$1048576,stol!A56,مبيعات!$F$5:$F$1048576) -> 0 | D56: 0 | E56: =IF(D56<code!D56,"يرجى تزويد المخزن","") -> 
B57: =SUMIF(شراء!$D$5:$D$1048576,stol!A57,شراء!$F$5:$F$1048576) -> 0 | C57: =SUMIF(مبيعات!$D$5:$D$1048576,stol!A57,مبيعات!$F$5:$F$1048576) -> 0 | D57: 0 | E57: =IF(D57<code!D57,"يرجى تزويد المخزن","") -> 
B58: =SUMIF(شراء!$D$5:$D$1048576,stol!A58,شراء!$F$5:$F$1048576) -> 0 | C58: =SUMIF(مبيعات!$D$5:$D$1048576,stol!A58,مبيعات!$F$5:$F$1048576) -> 0 | D58: 0 | E58: =IF(D58<code!D58,"يرجى تزويد المخزن","") -> 
B59: =SUMIF(شراء!$D$5:$D$1048576,stol!A59,شراء!$F$5:$F$1048576) -> 0 | C59: =SUMIF(مبيعات!$D$5:$D$1048576,stol!A59,مبيعات!$F$5:$F$1048576) -> 0 | D59: 0 | E59: =IF(D59<code!D59,"يرجى تزويد المخزن","") -> 
B60: =SUMIF(شراء!$D$5:$D$1048576,stol!A60,شراء!$F$5:$F$1048576) -> 0 | C60: =SUMIF(مبيعات!$D$5:$D$1048576,stol!A60,مبيعات!$F$5:$F$1048576) -> 0 | D60: 0 | E60: =IF(D60<code!D60,"يرجى تزويد المخزن","") -> 
B61: =SUMIF(شراء!$D$5:$D$1048576,stol!A61,شراء!$F$5:$F$1048576) -> 0 | C61: =SUMIF(مبيعات!$D$5:$D$1048576,stol!A61,مبيعات!$F$5:$F$1048576) -> 0 | D61: 0 | E61: =IF(D61<code!D61,"يرجى تزويد المخزن","") -> 
B62: =SUMIF(شراء!$D$5:$D$1048576,stol!A62,شراء!$F$5:$F$1048576) -> 0 | C62: =SUMIF(مبيعات!$D$5:$D$1048576,stol!A62,مبيعات!$F$5:$F$1048576) -> 0 | D62: 0 | E62: =IF(D62<code!D62,"يرجى تزويد المخزن","") -> 
B63: =SUMIF(شراء!$D$5:$D$1048576,stol!A63,شراء!$F$5:$F$1048576) -> 0 | C63: =SUMIF(مبيعات!$D$5:$D$1048576,stol!A63,مبيعات!$F$5:$F$1048576) -> 0 | D63: 0 | E63: =IF(D63<code!D63,"يرجى تزويد المخزن","") -> 
B64: =SUMIF(شراء!$D$5:$D$1048576,stol!A64,شراء!$F$5:$F$1048576) -> 0 | C64: =SUMIF(مبيعات!$D$5:$D$1048576,stol!A64,مبيعات!$F$5:$F$1048576) -> 0 | D64: 0 | E64: =IF(D64<code!D64,"يرجى تزويد المخزن","") -> 
B65: =SUMIF(شراء!$D$5:$D$1048576,stol!A65,شراء!$F$5:$F$1048576) -> 0 | C65: =SUMIF(مبيعات!$D$5:$D$1048576,stol!A65,مبيعات!$F$5:$F$1048576) -> 0 | D65: 0 | E65: =IF(D65<code!D65,"يرجى تزويد المخزن","") -> 
B66: =SUMIF(شراء!$D$5:$D$1048576,stol!A66,شراء!$F$5:$F$1048576) -> 0 | C66: =SUMIF(مبيعات!$D$5:$D$1048576,stol!A66,مبيعات!$F$5:$F$1048576) -> 0 | D66: 0 | E66: =IF(D66<code!D66,"يرجى تزويد المخزن","") -> 
B67: =SUMIF(شراء!$D$5:$D$1048576,stol!A67,شراء!$F$5:$F$1048576) -> 0 | C67: =SUMIF(مبيعات!$D$5:$D$1048576,stol!A67,مبيعات!$F$5:$F$1048576) -> 0 | D67: 0 | E67: =IF(D67<code!D67,"يرجى تزويد المخزن","") -> 
B68: =SUMIF(شراء!$D$5:$D$1048576,stol!A68,شراء!$F$5:$F$1048576) -> 0 | C68: =SUMIF(مبيعات!$D$5:$D$1048576,stol!A68,مبيعات!$F$5:$F$1048576) -> 0 | D68: 0 | E68: =IF(D68<code!D68,"يرجى تزويد المخزن","") -> 
B69: =SUMIF(شراء!$D$5:$D$1048576,stol!A69,شراء!$F$5:$F$1048576) -> 0 | C69: =SUMIF(مبيعات!$D$5:$D$1048576,stol!A69,مبيعات!$F$5:$F$1048576) -> 0 | D69: =B69-C69 -> 0 | E69: =IF(D69<code!D69,"يرجى تزويد المخزن","") -> 
B70: =SUMIF(شراء!$D$5:$D$1048576,stol!A70,شراء!$F$5:$F$1048576) -> 0 | C70: =SUMIF(مبيعات!$D$5:$D$1048576,stol!A70,مبيعات!$F$5:$F$1048576) -> 0 | D70: 0 | E70: =IF(D70<code!D70,"يرجى تزويد المخزن","") -> 
B71: =SUMIF(شراء!$D$5:$D$1048576,stol!A71,شراء!$F$5:$F$1048576) -> 0 | C71: =SUMIF(مبيعات!$D$5:$D$1048576,stol!A71,مبيعات!$F$5:$F$1048576) -> 0 | D71: 0 | E71: =IF(D71<code!D71,"يرجى تزويد المخزن","") -> 
B72: =SUMIF(شراء!$D$5:$D$1048576,stol!A72,شراء!$F$5:$F$1048576) -> 0 | C72: =SUMIF(مبيعات!$D$5:$D$1048576,stol!A72,مبيعات!$F$5:$F$1048576) -> 0 | D72: 0 | E72: =IF(D72<code!D72,"يرجى تزويد المخزن","") -> 
B73: =SUMIF(شراء!$D$5:$D$1048576,stol!A73,شراء!$F$5:$F$1048576) -> 0 | C73: =SUMIF(مبيعات!$D$5:$D$1048576,stol!A73,مبيعات!$F$5:$F$1048576) -> 0 | D73: 0 | E73: =IF(D73<code!D73,"يرجى تزويد المخزن","") -> 
B74: =SUMIF(شراء!$D$5:$D$1048576,stol!A74,شراء!$F$5:$F$1048576) -> 0 | C74: =SUMIF(مبيعات!$D$5:$D$1048576,stol!A74,مبيعات!$F$5:$F$1048576) -> 0 | D74: 0 | E74: =IF(D74<code!D74,"يرجى تزويد المخزن","") -> 
B75: =SUMIF(شراء!$D$5:$D$1048576,stol!A75,شراء!$F$5:$F$1048576) -> 0 | C75: =SUMIF(مبيعات!$D$5:$D$1048576,stol!A75,مبيعات!$F$5:$F$1048576) -> 0 | D75: 0 | E75: =IF(D75<code!D75,"يرجى تزويد المخزن","") -> 
B76: =SUMIF(شراء!$D$5:$D$1048576,stol!A76,شراء!$F$5:$F$1048576) -> 0 | C76: =SUMIF(مبيعات!$D$5:$D$1048576,stol!A76,مبيعات!$F$5:$F$1048576) -> 0 | D76: 0 | E76: =IF(D76<code!D76,"يرجى تزويد المخزن","") -> 
B77: =SUMIF(شراء!$D$5:$D$1048576,stol!A77,شراء!$F$5:$F$1048576) -> 0 | C77: =SUMIF(مبيعات!$D$5:$D$1048576,stol!A77,مبيعات!$F$5:$F$1048576) -> 0 | D77: 0 | E77: =IF(D77<code!D77,"يرجى تزويد المخزن","") -> 
B78: =SUMIF(شراء!$D$5:$D$1048576,stol!A78,شراء!$F$5:$F$1048576) -> 0 | C78: =SUMIF(مبيعات!$D$5:$D$1048576,stol!A78,مبيعات!$F$5:$F$1048576) -> 0 | D78: 0 | E78: =IF(D78<code!D78,"يرجى تزويد المخزن","") -> 
B79: =SUMIF(شراء!$D$5:$D$1048576,stol!A79,شراء!$F$5:$F$1048576) -> 0 | C79: =SUMIF(مبيعات!$D$5:$D$1048576,stol!A79,مبيعات!$F$5:$F$1048576) -> 0 | D79: 0 | E79: =IF(D79<code!D79,"يرجى تزويد المخزن","") -> 
B80: =SUMIF(شراء!$D$5:$D$1048576,stol!A80,شراء!$F$5:$F$1048576) -> 0 | C80: =SUMIF(مبيعات!$D$5:$D$1048576,stol!A80,مبيعات!$F$5:$F$1048576) -> 0 | D80: 0 | E80: =IF(D80<code!D80,"يرجى تزويد المخزن","") -> 
B81: =SUMIF(شراء!$D$5:$D$1048576,stol!A81,شراء!$F$5:$F$1048576) -> 0 | C81: =SUMIF(مبيعات!$D$5:$D$1048576,stol!A81,مبيعات!$F$5:$F$1048576) -> 0 | D81: 0 | E81: =IF(D81<code!D81,"يرجى تزويد المخزن","") -> 
B82: =SUMIF(شراء!$D$5:$D$1048576,stol!A82,شراء!$F$5:$F$1048576) -> 0 | C82: =SUMIF(مبيعات!$D$5:$D$1048576,stol!A82,مبيعات!$F$5:$F$1048576) -> 0 | D82: 0 | E82: =IF(D82<code!D82,"يرجى تزويد المخزن","") -> 
B83: =SUMIF(شراء!$D$5:$D$1048576,stol!A83,شراء!$F$5:$F$1048576) -> 0 | C83: =SUMIF(مبيعات!$D$5:$D$1048576,stol!A83,مبيعات!$F$5:$F$1048576) -> 0 | D83: 0 | E83: =IF(D83<code!D83,"يرجى تزويد المخزن","") -> 
B84: =SUMIF(شراء!$D$5:$D$1048576,stol!A84,شراء!$F$5:$F$1048576) -> 0 | C84: =SUMIF(مبيعات!$D$5:$D$1048576,stol!A84,مبيعات!$F$5:$F$1048576) -> 0 | D84: 0 | E84: =IF(D84<code!D84,"يرجى تزويد المخزن","") -> 
B85: =SUMIF(شراء!$D$5:$D$1048576,stol!A85,شراء!$F$5:$F$1048576) -> 0 | C85: =SUMIF(مبيعات!$D$5:$D$1048576,stol!A85,مبيعات!$F$5:$F$1048576) -> 0 | D85: 0 | E85: =IF(D85<code!D85,"يرجى تزويد المخزن","") -> 
B86: =SUMIF(شراء!$D$5:$D$1048576,stol!A86,شراء!$F$5:$F$1048576) -> 0 | C86: =SUMIF(مبيعات!$D$5:$D$1048576,stol!A86,مبيعات!$F$5:$F$1048576) -> 0 | D86: 0 | E86: =IF(D86<code!D86,"يرجى تزويد المخزن","") -> 
B87: =SUMIF(شراء!$D$5:$D$1048576,stol!A87,شراء!$F$5:$F$1048576) -> 0 | C87: =SUMIF(مبيعات!$D$5:$D$1048576,stol!A87,مبيعات!$F$5:$F$1048576) -> 0 | D87: 0 | E87: =IF(D87<code!D87,"يرجى تزويد المخزن","") -> 
B88: =SUMIF(شراء!$D$5:$D$1048576,stol!A88,شراء!$F$5:$F$1048576) -> 0 | C88: =SUMIF(مبيعات!$D$5:$D$1048576,stol!A88,مبيعات!$F$5:$F$1048576) -> 0 | D88: 0 | E88: =IF(D88<code!D88,"يرجى تزويد المخزن","") -> 
B89: =SUMIF(شراء!$D$5:$D$1048576,stol!A89,شراء!$F$5:$F$1048576) -> 0 | C89: =SUMIF(مبيعات!$D$5:$D$1048576,stol!A89,مبيعات!$F$5:$F$1048576) -> 0 | D89: 0 | E89: =IF(D89<code!D89,"يرجى تزويد المخزن","") -> 
B90: =SUMIF(شراء!$D$5:$D$1048576,stol!A90,شراء!$F$5:$F$1048576) -> 0 | C90: =SUMIF(مبيعات!$D$5:$D$1048576,stol!A90,مبيعات!$F$5:$F$1048576) -> 0 | D90: 0 | E90: =IF(D90<code!D90,"يرجى تزويد المخزن","") -> 
B91: =SUMIF(شراء!$D$5:$D$1048576,stol!A91,شراء!$F$5:$F$1048576) -> 0 | C91: =SUMIF(مبيعات!$D$5:$D$1048576,stol!A91,مبيعات!$F$5:$F$1048576) -> 0 | D91: 0 | E91: =IF(D91<code!D91,"يرجى تزويد المخزن","") -> 
B92: =SUMIF(شراء!$D$5:$D$1048576,stol!A92,شراء!$F$5:$F$1048576) -> 0 | C92: =SUMIF(مبيعات!$D$5:$D$1048576,stol!A92,مبيعات!$F$5:$F$1048576) -> 0 | D92: 0 | E92: =IF(D92<code!D92,"يرجى تزويد المخزن","") -> 
B93: =SUMIF(شراء!$D$5:$D$1048576,stol!A93,شراء!$F$5:$F$1048576) -> 0 | C93: =SUMIF(مبيعات!$D$5:$D$1048576,stol!A93,مبيعات!$F$5:$F$1048576) -> 0 | D93: 0 | E93: =IF(D93<code!D93,"يرجى تزويد المخزن","") -> 
B94: =SUMIF(شراء!$D$5:$D$1048576,stol!A94,شراء!$F$5:$F$1048576) -> 0 | C94: =SUMIF(مبيعات!$D$5:$D$1048576,stol!A94,مبيعات!$F$5:$F$1048576) -> 0 | D94: 0 | E94: =IF(D94<code!D94,"يرجى تزويد المخزن","") -> 
B95: =SUMIF(شراء!$D$5:$D$1048576,stol!A95,شراء!$F$5:$F$1048576) -> 0 | C95: =SUMIF(مبيعات!$D$5:$D$1048576,stol!A95,مبيعات!$F$5:$F$1048576) -> 0 | D95: 0 | E95: =IF(D95<code!D95,"يرجى تزويد المخزن","") -> 
B96: =SUMIF(شراء!$D$5:$D$1048576,stol!A96,شراء!$F$5:$F$1048576) -> 0 | C96: =SUMIF(مبيعات!$D$5:$D$1048576,stol!A96,مبيعات!$F$5:$F$1048576) -> 0 | D96: 0 | E96: =IF(D96<code!D96,"يرجى تزويد المخزن","") -> 
B97: =SUMIF(شراء!$D$5:$D$1048576,stol!A97,شراء!$F$5:$F$1048576) -> 0 | C97: =SUMIF(مبيعات!$D$5:$D$1048576,stol!A97,مبيعات!$F$5:$F$1048576) -> 0 | D97: 0 | E97: =IF(D97<code!D97,"يرجى تزويد المخزن","") -> 
B98: =SUMIF(شراء!$D$5:$D$1048576,stol!A98,شراء!$F$5:$F$1048576) -> 0 | C98: =SUMIF(مبيعات!$D$5:$D$1048576,stol!A98,مبيعات!$F$5:$F$1048576) -> 0 | D98: 0 | E98: =IF(D98<code!D98,"يرجى تزويد المخزن","") -> 
B99: =SUMIF(شراء!$D$5:$D$1048576,stol!A99,شراء!$F$5:$F$1048576) -> 0 | C99: =SUMIF(مبيعات!$D$5:$D$1048576,stol!A99,مبيعات!$F$5:$F$1048576) -> 0 | D99: 0 | E99: =IF(D99<code!D99,"يرجى تزويد المخزن","") -> 
B100: =SUMIF(شراء!$D$5:$D$1048576,stol!A100,شراء!$F$5:$F$1048576) -> 0 | C100: =SUMIF(مبيعات!$D$5:$D$1048576,stol!A100,مبيعات!$F$5:$F$1048576) -> 0 | D100: 0 | E100: =IF(D100<code!D100,"يرجى تزويد المخزن","") -> 

Sheet fitora
C2: رقم الفاتوره | D2: 3 | E2: شركة التوصيل
C3: تاريخ الفاتوره | D3: 2018-01-09 | E3: اجرة التوصيل | F3: =IFERROR(INDEX(code!$I$5:$K$1048576,MATCH($F$2,code!$I$5:$I$1048576,0),2),"") -> 
C4: اسم العميل | E4: رقم الشركة | F4: =IFERROR(INDEX(code!$I$5:$K$1048576,MATCH($F$2,code!$I$5:$I$1048576,0),3),"") -> 
C5: رقم العميل | D5: =IFERROR(INDEX(العملاء!$A$4:$D$1048576,MATCH($D$4,العملاء!$A$4:$A$1048576,0),2),"") ->  | J5: نوع الزبون | M5: نوع الفاتوره
C6: مكان العميل | D6: =IFERROR(INDEX(العملاء!$A$4:$D$1048576,MATCH($D$4,العملاء!$A$4:$A$1048576,0),3),"") ->  | J6: =IF(M6="مبيعات","عميل","مورد") -> عميل | M6: مبيعات
C7: اقرب نقطه دالة | D7: =IFERROR(INDEX(العملاء!$A$4:$D$1048576,MATCH($D$4,العملاء!$A$4:$A$1048576,0),4),"") -> 
A8: رقم الفاتوره | B8: تاريخ الفاتوره | C8: تسلسل | D8: صنف | E8: الوحده | F8: الكميه | G8: سعر الشراء | H8: سعر البيع | I8: العمله | J8: المخزون | K8: المجموع | L8: الخصم | M8: اجمالي الفاتوره | N8: مجموع الشراء | O8: مجموع المبعات | P8: المجموع
A9: =IF(D9<>"",$D$2,"") ->  | B9: =IF(D9<>"",$D$3,"") ->  | C9: =IFERROR(IF(D9<>"",1,""),"") ->  | E9: =IFERROR(INDEX(code!$A$4:$E$100000,MATCH(D9,code!$A$4:$A$1048576,0),5),"") ->  | G9: =IFERROR(INDEX(code!$A$4:$E$1048576,MATCH(D9,code!$A$4:$A$1048576,0),2),"") ->  | H9: =IFERROR(INDEX(code!$A$4:$E$1048576,MATCH(D9,code!$A$4:$A$1048576,0),3),"") ->  | I9: =IF(E9<>"",code!$G$2,"") ->  | J9: =IFERROR(INDEX(stol!$A$4:$E$1048576,MATCH(D9,stol!$A$4:$A$1048576,0),4),"") ->  | K9: =IFERROR(IF($M$6="مبيعات",O9,N9),"") ->  | M9: =IFERROR(K9-L9,"") ->  | N9: =IFERROR(G9*F9,"") ->  | O9: =IFERROR(H9*F9,"") -> 
A10: =IF(D10<>"",$D$2,"") ->  | B10: =IF(D10<>"",$D$3,"") ->  | C10: =IFERROR(IF(D10<>"",C9+1,""),"") ->  | E10: =IFERROR(INDEX(code!$A$4:$E$100000,MATCH(D10,code!$A$4:$A$1048576,0),5),"") ->  | G10: =IFERROR(INDEX(code!$A$4:$E$1048576,MATCH(D10,code!$A$4:$A$1048576,0),2),"") ->  | H10: =IFERROR(INDEX(code!$A$4:$E$1048576,MATCH(D10,code!$A$4:$A$1048576,0),3),"") ->  | I10: =IF(E10<>"",code!$G$2,"") ->  | J10: =IFERROR(INDEX(stol!$A$4:$E$1048576,MATCH(D10,stol!$A$4:$A$1048576,0),4),"") ->  | M10: =IFERROR(K10-L10,"") ->  | N10: =IFERROR(G10*F10,"") ->  | O10: =IFERROR(H10*F10,"") -> 
C11: =IFERROR(IF(D11<>"",C10+1,""),"") ->  | E11: =IFERROR(INDEX(code!$A$4:$E$100000,MATCH(D11,code!$A$4:$A$1048576,0),5),"") ->  | G11: =IFERROR(INDEX(code!$A$4:$E$1048576,MATCH(D11,code!$A$4:$A$1048576,0),2),"") ->  | H11: =IFERROR(INDEX(code!$A$4:$E$1048576,MATCH(D11,code!$A$4:$A$1048576,0),3),"") ->  | I11: =IF(E11<>"",code!$G$2,"") ->  | J11: =IFERROR(INDEX(stol!$A$4:$E$1048576,MATCH(D11,stol!$A$4:$A$1048576,0),4),"") -> 
E12: =IFERROR(INDEX(code!$A$4:$E$100000,MATCH(D12,code!$A$4:$A$1048576,0),5),"") ->  | G12: =IFERROR(INDEX(code!$A$4:$E$1048576,MATCH(D12,code!$A$4:$A$1048576,0),2),"") ->  | H12: =IFERROR(INDEX(code!$A$4:$E$1048576,MATCH(D12,code!$A$4:$A$1048576,0),3),"") ->  | I12: =IF(E12<>"",code!$G$2,"") ->  | J12: =IFERROR(INDEX(stol!$A$4:$E$1048576,MATCH(D12,stol!$A$4:$A$1048576,0),4),"") -> 
E13: =IFERROR(INDEX(code!$A$4:$E$100000,MATCH(D13,code!$A$4:$A$1048576,0),5),"") ->  | G13: =IFERROR(INDEX(code!$A$4:$E$1048576,MATCH(D13,code!$A$4:$A$1048576,0),2),"") ->  | H13: =IFERROR(INDEX(code!$A$4:$E$1048576,MATCH(D13,code!$A$4:$A$1048576,0),3),"") ->  | I13: =IF(E13<>"",code!$G$2,"") ->  | J13: =IFERROR(INDEX(stol!$A$4:$E$1048576,MATCH(D13,stol!$A$4:$A$1048576,0),4),"") -> 
E14: =IFERROR(INDEX(code!$A$4:$E$100000,MATCH(D14,code!$A$4:$A$1048576,0),5),"") ->  | G14: =IFERROR(INDEX(code!$A$4:$E$1048576,MATCH(D14,code!$A$4:$A$1048576,0),2),"") ->  | H14: =IFERROR(INDEX(code!$A$4:$E$1048576,MATCH(D14,code!$A$4:$A$1048576,0),3),"") ->  | I14: =IF(E14<>"",code!$G$2,"") ->  | J14: =IFERROR(INDEX(stol!$A$4:$E$1048576,MATCH(D14,stol!$A$4:$A$1048576,0),4),"") -> 
E15: =IFERROR(INDEX(code!$A$4:$E$100000,MATCH(D15,code!$A$4:$A$1048576,0),5),"") ->  | G15: =IFERROR(INDEX(code!$A$4:$E$1048576,MATCH(D15,code!$A$4:$A$1048576,0),2),"") ->  | H15: =IFERROR(INDEX(code!$A$4:$E$1048576,MATCH(D15,code!$A$4:$A$1048576,0),3),"") ->  | I15: =IF(E15<>"",code!$G$2,"") ->  | J15: =IFERROR(INDEX(stol!$A$4:$E$1048576,MATCH(D15,stol!$A$4:$A$1048576,0),4),"") -> 
E16: =IFERROR(INDEX(code!$A$4:$E$100000,MATCH(D16,code!$A$4:$A$1048576,0),5),"") ->  | G16: =IFERROR(INDEX(code!$A$4:$E$1048576,MATCH(D16,code!$A$4:$A$1048576,0),2),"") ->  | H16: =IFERROR(INDEX(code!$A$4:$E$1048576,MATCH(D16,code!$A$4:$A$1048576,0),3),"") ->  | I16: =IF(E16<>"",code!$G$2,"") ->  | J16: =IFERROR(INDEX(stol!$A$4:$E$1048576,MATCH(D16,stol!$A$4:$A$1048576,0),4),"") -> 
E17: =IFERROR(INDEX(code!$A$4:$E$100000,MATCH(D17,code!$A$4:$A$1048576,0),5),"") ->  | G17: =IFERROR(INDEX(code!$A$4:$E$1048576,MATCH(D17,code!$A$4:$A$1048576,0),2),"") ->  | H17: =IFERROR(INDEX(code!$A$4:$E$1048576,MATCH(D17,code!$A$4:$A$1048576,0),3),"") ->  | I17: =IF(E17<>"",code!$G$2,"") ->  | J17: =IFERROR(INDEX(stol!$A$4:$E$1048576,MATCH(D17,stol!$A$4:$A$1048576,0),4),"") -> 
E18: =IFERROR(INDEX(code!$A$4:$E$100000,MATCH(D18,code!$A$4:$A$1048576,0),5),"") ->  | G18: =IFERROR(INDEX(code!$A$4:$E$1048576,MATCH(D18,code!$A$4:$A$1048576,0),2),"") ->  | H18: =IFERROR(INDEX(code!$A$4:$E$1048576,MATCH(D18,code!$A$4:$A$1048576,0),3),"") ->  | I18: =IF(E18<>"",code!$G$2,"") ->  | J18: =IFERROR(INDEX(stol!$A$4:$E$1048576,MATCH(D18,stol!$A$4:$A$1048576,0),4),"") -> 
E19: =IFERROR(INDEX(code!$A$4:$E$100000,MATCH(D19,code!$A$4:$A$1048576,0),5),"") ->  | G19: =IFERROR(INDEX(code!$A$4:$E$1048576,MATCH(D19,code!$A$4:$A$1048576,0),2),"") ->  | H19: =IFERROR(INDEX(code!$A$4:$E$1048576,MATCH(D19,code!$A$4:$A$1048576,0),3),"") ->  | I19: =IF(E19<>"",code!$G$2,"") ->  | J19: =IFERROR(INDEX(stol!$A$4:$E$1048576,MATCH(D19,stol!$A$4:$A$1048576,0),4),"") -> 
C20: =IF(D20<>"",C19+1,"") ->  | E20: =IFERROR(INDEX(code!$A$4:$E$100000,MATCH(D20,code!$A$4:$A$1048576,0),5),"") ->  | G20: =IFERROR(INDEX(code!$A$4:$E$1048576,MATCH(D20,code!$A$4:$A$1048576,0),2),"") ->  | H20: =IFERROR(INDEX(code!$A$4:$E$1048576,MATCH(D20,code!$A$4:$A$1048576,0),3),"") ->  | I20: =IF(E20<>"",code!$G$2,"") ->  | J20: =IFERROR(INDEX(stol!$A$4:$E$1048576,MATCH(D20,stol!$A$4:$A$1048576,0),4),"") -> 
J22: الخصم
J23: اجمالي الفاتوره | M23: =SUM(M9:M20)-M22 -> 0

Sheet شراء
A4: رقم الفاتوره | B4: تاريخ الفاتوره | C4: تسلسل | D4: صنف | E4: الوحده | F4: الكميه | G4: سعر الشراء | H4: سعر البيع | I4: العمله | J4: المخزون | K4: المجموع | L4: الخصم | M4: اجمالي الفاتوره
A5: 0 | B5: 2018-01-06 | C5: 1 | D5: اظافر | E5: سيت 18 اظفر | F5: 1 | G5: 3500 | H5: 8000 | I5: $ | J5: 0 | K5: 350000 | M5: 350000
A6: 0 | B6: 2018-01-06 | C6: 2 | D6: اظافر قدم | E6: سيت 20 اظفر | F6: 10 | G6: 4000 | H6: 10000 | I6: $ | J6: 0 | K6: 40000 | M6: 40000
A7: 0 | B7: 2018-01-06 | C7: 3 | D7: بكج ذهبي | E7: بوكس | G7: 14500 | H7: 28000 | I7: $ | J7: 0 | K7: 1450000 | M7: 1450000
A8: 0 | B8: 2018-01-06 | C8: 4 | D8: بكج فضي | E8: بوكس | G8: 11000 | H8: 21000 | I8: $ | J8: 0 | K8: 1100000 | M8: 1100000
A9: 0 | B9: 2018-01-06 | C9: 5 | D9: بكج عادي | E9: بوكس | G9: 7500 | H9: 13000 | I9: $ | J9: 0 | K9: 750000 | M9: 750000
A10: 0 | B10: 2018-01-06 | C10: 6 | D10: بكج عروس | E10: بوكس | G10: 7500 | H10: 15000 | I10: $ | J10: 0 | K10: 750000 | M10: 750000
A11: 0 | B11: 2018-01-06 | C11: 7 | D11: بكج عناية | E11: بوكس | G11: 7500 | H11: 15000 | I11: $ | J11: 0 | K11: 75000 | M11: 75000
A12: 0 | B12: 2018-01-06 | C12: 8 | D12: حماية اظافر essence | E12: قطعه | F12: 10 | G12: 2250 | H12: 5000 | I12: $ | J12: 0 | K12: 22500 | M12: 22500
A13: 0 | B13: 2018-01-06 | C13: 9 | D13: مقوي اظافر essense | E13: قطع | F13: 10 | G13: 3250 | H13: 6000 | I13: $ | J13: 0 | K13: 32500 | M13: 32500
A14: 0 | B14: 2018-01-06 | C14: 10 | D14: صمغ brush | E14: قطعه | F14: 42 | G14: 1750 | H14: 3000 | I14: $ | J14: 0 | K14: 96250 | M14: 96250
A15: 426 | B15: 2018-07-07 | C15: 1 | D15: استون كولدن روز | E15: علبه | F15: 24 | G15: 1250 | H15: 3000 | I15: $ | J15: 0 | K15: 30000 | M15: 30000
A16: 378 | B16: 2018-07-07 | C16: 1 | D16: صمغ mariage | E16: علب | F16: 60 | G16: 750 | H16: 3000 | I16: $ | J16: 0 | K16: 45000 | M16: 45000
A17: 1 | B17: 22/7/2018 | C17: 1 | D17: eveline total 8 in1 | E17: قطع | F17: 12 | G17: 5000 | H17: 8000 | I17: $ | J17: 0 | K17: 60000 | M17: 60000
A18: 1 | B18: 29/7/2018 | C18: 1 | D18: صمغ mariage | E18: علب | F18: 24 | G18: 750 | H18: 3000 | I18: $ | J18: 29 | K18: 18000 | M18: 18000
A19: 4 | B19: 2018-08-08 | C19: 1 | D19: صمغ mariage | E19: علب | F19: 12 | G19: 750 | H19: 3000 | I19: $ | J19: 33 | K19: 9000 | M19: 9000
A20: 1 | B20: 20/8/2018 | C20: 1 | D20: ماسكارا اسينس | E20: قطع | F20: 4 | G20: 3750 | H20: 5000 | I20: $ | J20: 0 | K20: 15000 | M20: 15000
A21: 1 | B21: 20/8/2018 | C21: 1 | D21: صمغ mariage | E21: علب | F21: 48 | G21: 750 | H21: 3000 | I21: $ | J21: 26 | K21: 36000 | L21: 1000 | M21: 35000
A22: 2 | B22: 20/8/2018 | C22: 1 | D22: استون كولدن روز | E22: علبه | F22: 24 | G22: 1500 | H22: 3000 | I22: $ | J22: 7 | K22: 36000 | M22: 36000
A23: 1 | B23: 2018-11-09 | C23: 1 | D23: كولدن روز | E23: علب | F23: 12 | G23: 2500 | H23: 5000 | I23: $ | J23: 0 | K23: 30000 | M23: 30000

Sheet مبيعات
F3: =SUM(F5:F10000) -> 626 | G3: 0 | H3: 2208000 | I3: 0 | L3: =SUM(L5:L10000) -> 212000 | M3: =SUM(M5:M279) -> 2624000
A4: رقم الفاتوره | B4: تاريخ الفاتوره | C4: تسلسل | D4: صنف | E4: الوحده | F4: الكميه | G4: سعر الشراء | H4: سعر البيع | I4: العمله | J4: المخزون | K4: المجموع | L4: الخصم | M4: اجمالي الفاتوره
A5: 8201 | B5: 2018-01-06 | C5: 1 | D5: اظافر | E5: سيت 18 اظفر | F5: 1 | H5: 8000 | I5: $ | J5: 100 | K5: 8000 | L5: 1000 | M5: 7000
A6: 8206 | B6: 2018-01-06 | C6: 1 | D6: اظافر | E6: سيت 18 اظفر | F6: 2 | H6: 8000 | I6: $ | J6: 99 | K6: 16000 | L6: 2000 | M6: 14000
A7: 8206 | B7: 2018-01-06 | C7: 2 | D7: صمغ brush | E7: قطعه | F7: 1 | H7: 3000 | I7: $ | J7: 55 | K7: 3000 | M7: 3000
A8: 8209 | B8: 2018-01-06 | C8: 1 | D8: اظافر | E8: سيت 18 اظفر | F8: 2 | H8: 8000 | I8: $ | J8: 97 | K8: 16000 | M8: 16000
A9: 8209 | B9: 2018-01-06 | C9: 2 | D9: صمغ brush | E9: قطعه | F9: 1 | H9: 3000 | I9: $ | J9: 54 | K9: 3000 | M9: 3000
A10: 8203 | B10: 2018-01-06 | C10: 1 | D10: اظافر | E10: سيت 18 اظفر | F10: 1 | H10: 8000 | I10: $ | J10: 95 | K10: 8000 | L10: 1000 | M10: 7000
A11: 8203 | B11: 2018-01-06 | C11: 2 | D11: صمغ brush | E11: قطعه | F11: 1 | H11: 3000 | I11: $ | J11: 53 | K11: 3000 | M11: 3000
A12: 8204 | B12: 2018-01-06 | C12: 1 | D12: اظافر | E12: سيت 18 اظفر | F12: 1 | H12: 8000 | I12: $ | J12: 94 | K12: 8000 | M12: 8000
A13: 8204 | B13: 2018-01-06 | C13: 2 | D13: صمغ brush | E13: قطعه | F13: 1 | H13: 3000 | I13: $ | J13: 52 | K13: 3000 | M13: 3000
A14: 8207 | B14: 2018-01-06 | C14: 1 | D14: اظافر | E14: سيت 18 اظفر | F14: 1 | H14: 8000 | I14: $ | J14: 93 | K14: 8000 | M14: 8000
A15: 8207 | B15: 2018-01-06 | C15: 2 | D15: صمغ brush | E15: قطعه | F15: 1 | H15: 3000 | I15: $ | J15: 51 | K15: 3000 | M15: 3000
A16: 8205 | B16: 2018-01-06 | C16: 1 | D16: اظافر | E16: سيت 18 اظفر | F16: 2 | H16: 8000 | I16: $ | J16: 92 | K16: 16000 | M16: 16000
A17: 8210 | B17: 2018-01-06 | C17: 1 | D17: اظافر | E17: سيت 18 اظفر | F17: 2 | H17: 8000 | I17: $ | J17: 90 | K17: 16000 | M17: 16000
A18: 8210 | B18: 2018-01-06 | C18: 2 | D18: صمغ brush | E18: قطعه | F18: 1 | H18: 3000 | I18: $ | J18: 50 | K18: 3000 | M18: 3000
A19: 290310 | B19: 2018-01-06 | C19: 1 | D19: اظافر | E19: سيت 18 اظفر | F19: 1 | H19: 8000 | I19: $ | J19: -11 | K19: 8000 | L19: 1000 | M19: 7000
A20: 290310 | B20: 2018-01-06 | C20: 2 | D20: صمغ brush | E20: قطعه | F20: 1 | H20: 3000 | I20: $ | J20: 49 | K20: 3000 | M20: 3000
A21: 290311 | B21: 2018-01-06 | C21: 1 | D21: اظافر | E21: سيت 18 اظفر | F21: 3 | H21: 8000 | I21: $ | J21: -12 | K21: 24000 | L21: 1000 | M21: 23000
A22: 290311 | B22: 2018-01-06 | C22: 2 | D22: صمغ brush | E22: قطعه | F22: 1 | H22: 3000 | I22: $ | J22: 48 | K22: 3000 | M22: 3000
A23: 290312 | B23: 2018-01-06 | C23: 1 | D23: اظافر ساده | E23: 20 اظفر قدم | F23: 1 | H23: 4000 | I23: $ | J23: 0 | K23: 4000 | M23: 4000
A24: 290312 | B24: 2018-01-06 | C24: 2 | D24: صمغ brush | E24: قطعه | F24: 1 | H24: 3000 | I24: $ | J24: 47 | K24: 3000 | L24: 1000 | M24: 2000
A25: 290312 | B25: 2018-01-06 | C25: 3 | D25: صبغ فلارمر | E25: قطعه | F25: 1 | H25: 1000 | I25: $ | J25: 0 | K25: 1000 | M25: 1000
A26: 290313 | B26: 2018-01-06 | C26: 1 | D26: اظافر | E26: سيت 18 اظفر | F26: 2 | H26: 8000 | I26: $ | J26: -15 | K26: 16000 | L26: 4000 | M26: 12000
A27: 290313 | B27: 2018-01-06 | C27: 2 | D27: صمغ brush | E27: قطعه | F27: 1 | H27: 3000 | I27: $ | J27: 46 | K27: 3000 | L27: 1000 | M27: 2000
A28: 290314 | B28: 2018-01-06 | C28: 1 | D28: اظافر | E28: سيت 18 اظفر | F28: 1 | H28: 8000 | I28: $ | J28: -17 | K28: 8000 | L28: 1000 | M28: 7000
A29: 290315 | B29: 2018-01-06 | C29: 1 | D29: اظافر | E29: سيت 18 اظفر | F29: 4 | H29: 8000 | I29: $ | J29: -18 | K29: 32000 | L29: 3000 | M29: 29000
A30: 290315 | B30: 2018-01-06 | C30: 2 | D30: صمغ brush | E30: قطعه | F30: 1 | H30: 3000 | I30: $ | J30: 45 | K30: 3000 | M30: 3000
A31: 290316 | B31: 2018-01-06 | C31: 1 | D31: اظافر | E31: سيت 18 اظفر | F31: 4 | H31: 8000 | I31: $ | J31: -22 | K31: 32000 | L31: 3000 | M31: 29000
A32: 290316 | B32: 2018-01-06 | C32: 2 | D32: صمغ brush | E32: قطعه | F32: 1 | H32: 3000 | I32: $ | J32: 44 | K32: 3000 | L32: 1000 | M32: 2000
A33: 290319 | B33: 2018-01-06 | C33: 1 | D33: اظافر | E33: سيت 18 اظفر | F33: 1 | H33: 8000 | I33: $ | J33: -26 | K33: 8000 | L33: 1000 | M33: 7000
A34: 290320 | B34: 2018-01-06 | C34: 1 | D34: اظافر | E34: سيت 18 اظفر | F34: 2 | H34: 8000 | I34: $ | J34: -27 | K34: 16000 | L34: 2000 | M34: 14000
A35: 290320 | B35: 2018-01-06 | C35: 2 | D35: صمغ brush | E35: قطعه | F35: 2 | H35: 3000 | I35: $ | J35: 43 | K35: 6000 | M35: 6000
A36: 290321 | B36: 2018-01-06 | C36: 1 | D36: اظافر | E36: سيت 18 اظفر | F36: 1 | H36: 8000 | I36: $ | J36: -29 | K36: 8000 | L36: 1000 | M36: 7000
A37: 290324 | B37: 2018-01-06 | C37: 1 | D37: اظافر | E37: سيت 18 اظفر | F37: 5 | H37: 8000 | I37: $ | J37: -30 | K37: 40000 | L37: 6000 | M37: 34000
A38: 290324 | B38: 2018-01-06 | C38: 2 | D38: صمغ brush | E38: قطعه | F38: 1 | H38: 3000 | I38: $ | J38: 41 | K38: 3000 | L38: 1000 | M38: 2000
A39: 290325 | B39: 2018-01-06 | C39: 1 | D39: اظافر | E39: سيت 18 اظفر | F39: 2 | H39: 8000 | I39: $ | J39: -35 | K39: 16000 | L39: 2000 | M39: 14000
A40: 290325 | B40: 2018-01-06 | C40: 2 | D40: صمغ brush | E40: قطعه | F40: 2 | H40: 3000 | I40: $ | J40: 40 | K40: 6000 | M40: 6000
A41: 290326 | B41: 2018-01-06 | C41: 1 | D41: اظافر | E41: سيت 18 اظفر | F41: 3 | H41: 8000 | I41: $ | J41: -37 | K41: 24000 | L41: 3000 | M41: 21000
A42: 290327 | B42: 2018-01-06 | C42: 1 | D42: اظافر | E42: سيت 18 اظفر | F42: 1 | H42: 8000 | I42: $ | J42: -40 | K42: 8000 | L42: 1000 | M42: 7000
A43: 290327 | B43: 2018-01-06 | C43: 2 | D43: صمغ brush | E43: قطعه | F43: 1 | H43: 3000 | I43: $ | J43: 38 | K43: 3000 | M43: 3000
A44: 290328 | B44: 2018-01-06 | C44: 1 | D44: اظافر | E44: سيت 18 اظفر | F44: 1 | H44: 8000 | I44: $ | J44: -41 | K44: 8000 | L44: 1000 | M44: 7000
A45: 290328 | B45: 2018-01-06 | C45: 2 | D45: صمغ brush | E45: قطعه | F45: 1 | H45: 3000 | I45: $ | J45: 37 | K45: 3000 | L45: 1000 | M45: 2000
A46: 290329 | B46: 2018-01-06 | C46: 1 | D46: اظافر | E46: سيت 18 اظفر | F46: 1 | H46: 8000 | I46: $ | J46: -42 | K46: 8000 | L46: 1000 | M46: 7000
A47: 290329 | B47: 2018-01-06 | C47: 2 | D47: صمغ brush | E47: قطعه | F47: 1 | H47: 3000 | I47: $ | J47: 36 | K47: 3000 | M47: 3000
A48: 290330 | B48: 2018-01-06 | C48: 1 | D48: اظافر | E48: سيت 18 اظفر | F48: 1 | H48: 8000 | I48: $ | J48: -43 | K48: 8000 | L48: 1000 | M48: 7000
A49: 290331 | B49: 2018-01-06 | C49: 1 | D49: اظافر | E49: سيت 18 اظفر | F49: 1 | H49: 8000 | I49: $ | J49: -44 | K49: 8000 | L49: 1000 | M49: 7000
A50: 290332 | B50: 2018-01-06 | C50: 1 | D50: اظافر ساده | E50: 20 اظفر قدم | F50: 1 | H50: 4000 | I50: $ | J50: -1 | K50: 4000 | M50: 4000
A51: 290332 | B51: 2018-01-06 | C51: 2 | D51: صمغ brush | E51: قطعه | F51: 1 | H51: 3000 | I51: $ | J51: 35 | K51: 3000 | M51: 3000
A52: 325134 | B52: 2018-01-06 | C52: 1 | D52: اظافر | E52: سيت 18 اظفر | F52: 1 | H52: 8000 | I52: $ | J52: -45 | K52: 8000 | L52: 2000 | M52: 6000
A53: 325135 | B53: 2018-01-06 | C53: 1 | D53: اظافر | E53: سيت 18 اظفر | F53: 3 | H53: 8000 | I53: $ | J53: -46 | K53: 24000 | L53: 4000 | M53: 20000
A54: 325135 | B54: 2018-01-06 | C54: 2 | D54: صمغ brush | E54: قطعه | F54: 1 | H54: 3000 | I54: $ | J54: 34 | K54: 3000 | L54: 1000 | M54: 2000
A55: 325136 | B55: 2018-01-06 | C55: 1 | D55: اظافر | E55: سيت 18 اظفر | F55: 1 | H55: 8000 | I55: $ | J55: -49 | K55: 8000 | L55: 1000 | M55: 7000
A56: 325137 | B56: 2018-01-06 | C56: 1 | D56: اظافر | E56: سيت 18 اظفر | F56: 5 | H56: 8000 | I56: $ | J56: -50 | K56: 40000 | L56: 5000 | M56: 35000
A57: 325138 | B57: 2018-01-06 | C57: 1 | D57: اظافر | E57: سيت 18 اظفر | F57: 2 | H57: 8000 | I57: $ | J57: -55 | K57: 16000 | L57: 2000 | M57: 14000
A58: 325138 | B58: 2018-01-06 | C58: 2 | D58: صمغ brush | E58: قطعه | F58: 1 | H58: 3000 | I58: $ | J58: 33 | K58: 3000 | L58: 1000 | M58: 2000
A59: 325138 | B59: 2018-01-06 | C59: 3 | D59: توصيل | E59: سياره | F59: 1 | H59: 4000 | I59: $ | J59: 0 | K59: 4000 | M59: 4000
A60: 325139 | B60: 2018-01-06 | C60: 1 | D60: اظافر | E60: سيت 18 اظفر | F60: 2 | H60: 8000 | I60: $ | J60: -57 | K60: 16000 | L60: 2000 | M60: 14000
A61: 325139 | B61: 2018-01-06 | C61: 2 | D61: صمغ brush | E61: قطعه | F61: 1 | H61: 3000 | I61: $ | J61: 32 | K61: 3000 | M61: 3000
A62: 325140 | B62: 2018-01-06 | C62: 1 | D62: اظافر | E62: سيت 18 اظفر | F62: 2 | H62: 8000 | I62: $ | J62: -59 | K62: 16000 | L62: 2000 | M62: 14000
A63: 325140 | B63: 2018-01-06 | C63: 2 | D63: صمغ brush | E63: قطعه | F63: 1 | H63: 3000 | I63: $ | J63: 31 | K63: 3000 | M63: 3000
A64: 325141 | B64: 2018-01-06 | C64: 1 | D64: اظافر | E64: سيت 18 اظفر | F64: 2 | H64: 8000 | I64: $ | J64: -61 | K64: 16000 | L64: 2000 | M64: 14000
A65: 325143 | B65: 2018-01-06 | C65: 1 | D65: اظافر | E65: سيت 18 اظفر | F65: 2 | H65: 8000 | I65: $ | J65: -63 | K65: 16000 | L65: 2000 | M65: 14000
A66: 325143 | B66: 2018-01-06 | C66: 2 | D66: صمغ brush | E66: قطعه | F66: 2 | H66: 3000 | I66: $ | J66: 30 | K66: 6000 | M66: 6000
A67: 325144 | B67: 2018-01-06 | C67: 1 | D67: اظافر | E67: سيت 18 اظفر | F67: 1 | H67: 8000 | I67: $ | J67: -65 | K67: 8000 | M67: 8000
A68: 325144 | B68: 2018-01-06 | C68: 2 | D68: صمغ brush | E68: قطعه | F68: 1 | H68: 3000 | I68: $ | J68: 28 | K68: 3000 | M68: 3000
A69: 325145 | B69: 2018-01-06 | C69: 1 | D69: اظافر | E69: سيت 18 اظفر | F69: 2 | H69: 8000 | I69: $ | J69: -66 | K69: 16000 | L69: 2000 | M69: 14000
A70: 325145 | B70: 2018-01-06 | C70: 2 | D70: صمغ brush | E70: قطعه | F70: 1 | H70: 3000 | I70: $ | J70: 27 | K70: 3000 | M70: 3000
A71: 325146 | B71: 2018-01-06 | C71: 1 | D71: اظافر | E71: سيت 18 اظفر | F71: 1 | H71: 8000 | I71: $ | J71: -68 | K71: 8000 | M71: 8000
A72: 325146 | B72: 2018-01-06 | C72: 2 | D72: صمغ brush | E72: قطعه | F72: 1 | H72: 3000 | I72: $ | J72: 26 | K72: 3000 | M72: 3000
A73: 325146 | B73: 2018-01-06 | C73: 1 | D73: اظافر | E73: سيت 18 اظفر | F73: 1 | H73: 8000 | I73: $ | J73: -69 | K73: 8000 | M73: 8000
A74: 325146 | B74: 2018-01-06 | C74: 2 | D74: صمغ brush | E74: قطعه | F74: 1 | H74: 3000 | I74: $ | J74: 25 | K74: 3000 | M74: 3000
A75: 4601 | B75: 2018-01-06 | C75: 1 | D75: اظافر | E75: سيت 18 اظفر | F75: 1 | H75: 8000 | I75: $ | J75: -70 | K75: 8000 | M75: 8000
A76: 4601 | B76: 2018-01-06 | C76: 2 | D76: توصيل | E76: سياره | F76: 1 | H76: 4000 | I76: $ | J76: -1 | K76: 4000 | M76: 4000
A77: 4602 | B77: 2018-01-06 | C77: 1 | D77: اظافر | E77: سيت 18 اظفر | F77: 1 | H77: 8000 | I77: $ | J77: -71 | K77: 8000 | L77: 1000 | M77: 7000
A78: 4602 | B78: 2018-01-06 | C78: 2 | D78: صمغ brush | E78: قطعه | F78: 1 | H78: 3000 | I78: $ | J78: 24 | K78: 3000 | M78: 3000
A79: 4602 | B79: 2018-01-06 | C79: 3 | D79: توصيل | E79: سياره | F79: 1 | H79: 4000 | I79: $ | J79: -2 | K79: 4000 | M79: 4000
A80: 4603 | B80: 2018-01-06 | C80: 1 | D80: اظافر | E80: سيت 18 اظفر | F80: 5 | H80: 8000 | I80: $ | J80: -72 | K80: 40000 | L80: 4000 | M80: 36000
A81: 4603 | B81: 2018-01-06 | C81: 2 | D81: صمغ brush | E81: قطعه | F81: 1 | H81: 3000 | I81: $ | J81: 23 | K81: 3000 | L81: 3000 | M81: 0
A82: 4603 | B82: 2018-01-06 | C82: 3 | D82: توصيل | E82: سياره | F82: 1 | H82: 4000 | I82: $ | J82: -3 | K82: 4000 | M82: 4000
A83: 4604 | B83: 2018-01-06 | C83: 1 | D83: اظافر | E83: سيت 18 اظفر | F83: 2 | H83: 8000 | I83: $ | J83: -77 | K83: 16000 | M83: 16000
A84: 4604 | B84: 2018-01-06 | C84: 2 | D84: صمغ brush | E84: قطعه | F84: 1 | H84: 3000 | I84: $ | J84: 22 | K84: 3000 | M84: 3000
A85: 4604 | B85: 2018-01-06 | C85: 3 | D85: توصيل | E85: سياره | F85: 1 | H85: 4000 | I85: $ | J85: -4 | K85: 4000 | M85: 4000
A86: 4604 | B86: 2018-01-06 | C86: 1 | D86: اظافر | E86: سيت 18 اظفر | F86: 2 | H86: 8000 | I86: $ | J86: -79 | K86: 16000 | M86: 16000
A87: 4604 | B87: 2018-01-06 | C87: 2 | D87: صمغ brush | E87: قطعه | F87: 2 | H87: 3000 | I87: $ | J87: 21 | K87: 6000 | M87: 6000
A88: 8211 | B88: 2018-01-06 | C88: 1 | D88: اظافر | E88: سيت 18 اظفر | F88: 1 | H88: 8000 | I88: $ | J88: -81 | K88: 8000 | M88: 8000
A89: 8211 | B89: 2018-01-06 | C89: 2 | D89: صمغ brush | E89: قطعه | F89: 1 | H89: 3000 | I89: $ | J89: 19 | K89: 3000 | L89: 3000 | M89: 0
A90: 8212 | B90: 2018-01-06 | C90: 1 | D90: اظافر | E90: سيت 18 اظفر | F90: 1 | H90: 8000 | I90: $ | J90: -82 | K90: 8000 | L90: 8000 | M90: 0
A91: 8212 | B91: 2018-01-06 | C91: 2 | D91: صمغ brush | E91: قطعه | F91: 1 | H91: 3000 | I91: $ | J91: 18 | K91: 3000 | L91: 3000 | M91: 0
A92: 8212 | B92: 2018-01-06 | C92: 3 | D92: صبغ فلارمر | E92: قطعه | F92: 1 | H92: 1000 | I92: $ | J92: -1 | K92: 1000 | L92: 1000 | M92: 0
A93: 8212 | B93: 2018-01-06 | C93: 1 | D93: اظافر | E93: سيت 18 اظفر | F93: 1 | H93: 8000 | I93: $ | J93: -83 | K93: 8000 | L93: 5000 | M93: 3000
A94: 8215 | B94: 2018-01-07 | C94: 1 | D94: اظافر | E94: سيت 18 اظفر | F94: 5 | H94: 8000 | I94: $ | J94: -84 | K94: 40000 | L94: 4000 | M94: 36000
A95: 8215 | B95: 2018-01-07 | C95: 2 | D95: صمغ brush | E95: قطعه | F95: 1 | H95: 3000 | I95: $ | J95: 17 | K95: 3000 | M95: 3000
A96: 8215 | B96: 2018-01-07 | C96: 1 | D96: بكج ذهبي | E96: بوكس | F96: 1 | H96: 28000 | I96: $ | J96: 1 | K96: 28000 | M96: 28000
A97: 8217 | B97: 2018-01-07 | C97: 1 | D97: مقوي اظافر essense | E97: قطع | F97: 1 | H97: 6000 | I97: $ | J97: 10 | K97: 6000 | L97: 1000 | M97: 5000
A98: 4605 | B98: 2018-01-07 | C98: 1 | D98: اظافر | E98: سيت 18 اظفر | F98: 3 | H98: 8000 | I98: $ | J98: -91 | K98: 24000 | M98: 24000
A99: 4605 | B99: 2018-01-07 | C99: 2 | D99: صمغ brush | E99: قطعه | F99: 1 | H99: 3000 | I99: $ | J99: 15 | K99: 3000 | M99: 3000
A100: 4605 | B100: 2018-01-07 | C100: 3 | D100: توصيل | E100: سياره | F100: 1 | H100: 5000 | I100: $ | J100: -5 | K100: 5000 | M100: 5000
A101: 8218 | B101: 2018-01-07 | C101: 1 | D101: اظافر | E101: سيت 18 اظفر | F101: 2 | H101: 8000 | I101: $ | J101: -89 | K101: 16000 | M101: 16000
A102: 8218 | B102: 2018-01-07 | C102: 2 | D102: صمغ brush | E102: قطعه | F102: 1 | H102: 3000 | I102: $ | J102: 16 | K102: 3000 | M102: 3000
A103: 8219 | B103: 2018-01-07 | C103: 1 | D103: اظافر | E103: سيت 18 اظفر | F103: 7 | H103: 8000 | I103: $ | J103: -94 | K103: 56000 | L103: 4000 | M103: 52000
A104: 8219 | B104: 2018-01-07 | C104: 2 | D104: صمغ brush | E104: قطعه | F104: 1 | H104: 3000 | I104: $ | J104: 14 | K104: 3000 | M104: 3000
A105: 1 | B105: 2018-01-07 | C105: 1 | D105: اظافر | E105: سيت 18 اظفر | F105: 5 | H105: 8000 | I105: $ | J105: -101 | K105: 40000 | M105: 40000
A106: 1 | B106: 2018-01-07 | C106: 2 | D106: صمغ mariage | E106: علب | F106: 1 | H106: 3000 | I106: $ | J106: 60 | K106: 3000 | M106: 3000
A107: 1 | B107: 2018-01-07 | C107: 3 | D107: توصيل | E107: سياره | F107: 1 | H107: 5000 | I107: $ | J107: -6 | K107: 5000 | M107: 5000
A108: 8221 | B108: 2018-01-07 | C108: 1 | D108: اظافر | E108: سيت 18 اظفر | F108: 3 | H108: 8000 | I108: $ | J108: -106 | K108: 24000 | L108: 2000 | M108: 22000
A109: 8224 | B109: 2018-01-07 | C109: 1 | D109: اظافر | E109: سيت 18 اظفر | F109: 1 | H109: 8000 | I109: $ | J109: -109 | K109: 8000 | M109: 8000
A110: 8224 | B110: 2018-01-07 | C110: 2 | D110: صمغ mariage | E110: علب | F110: 1 | H110: 3000 | I110: $ | J110: 59 | K110: 3000 | M110: 3000
A111: 8222 | B111: 2018-01-07 | C111: 1 | D111: اظافر | E111: سيت 18 اظفر | F111: 2 | H111: 8000 | I111: $ | J111: -110 | K111: 16000 | L111: 1000 | M111: 15000
A112: 8222 | B112: 2018-01-07 | C112: 2 | D112: صمغ mariage | E112: علب | F112: 1 | H112: 3000 | I112: $ | J112: 58 | K112: 3000 | L112: 1000 | M112: 2000
A113: 8222 | B113: 2018-01-07 | C113: 3 | D113: حماية اظافر essence | E113: قطعه | F113: 1 | H113: 5000 | I113: $ | J113: 10 | K113: 5000 | L113: 1000 | M113: 4000
A114: 8223 | B114: 2018-01-07 | C114: 1 | D114: اظافر | E114: سيت 18 اظفر | F114: 2 | H114: 8000 | I114: $ | J114: -112 | K114: 16000 | L114: 2000 | M114: 14000
A115: 8223 | B115: 2018-01-07 | C115: 2 | D115: صمغ mariage | E115: علب | F115: 1 | H115: 3000 | I115: $ | J115: 57 | K115: 3000 | L115: 1000 | M115: 2000
A116: 8223 | B116: 2018-01-07 | C116: 3 | D116: حماية اظافر essence | E116: قطعه | F116: 1 | H116: 5000 | I116: $ | J116: 9 | K116: 5000 | L116: 1000 | M116: 4000
A117: 8225 | B117: 2018-01-07 | C117: 1 | D117: مقوي اظافر essense | E117: قطع | F117: 8 | H117: 5000 | I117: $ | J117: 9 | K117: 40000 | M117: 40000
A118: 8225 | B118: 2018-01-07 | C118: 2 | D118: استون كولدن روز | E118: علبه | F118: 3 | H118: 5000 | I118: $ | J118: 24 | K118: 15000 | M118: 15000
A119: 8225 | B119: 2018-01-07 | C119: 3 | D119: حماية اظافر essence | E119: قطعه | F119: 3 | H119: 5000 | I119: $ | J119: 8 | K119: 15000 | M119: 15000
A120: 8226 | B120: 2018-01-07 | C120: 1 | D120: اظافر | E120: سيت 18 اظفر | F120: 2 | H120: 8000 | I120: $ | J120: -114 | K120: 16000 | L120: 1000 | M120: 15000
A121: 8226 | B121: 2018-01-07 | C121: 2 | D121: صمغ mariage | E121: علب | F121: 1 | H121: 3000 | I121: $ | J121: 56 | K121: 3000 | M121: 3000
A122: 8226 | B122: 2018-01-07 | C122: 3 | D122: حماية اظافر essence | E122: قطعه | F122: 1 | H122: 5000 | I122: $ | J122: 5 | K122: 5000 | M122: 5000
A123: 111 | B123: 2018-01-07 | C123: 1 | D123: اظافر | E123: سيت 18 اظفر | F123: 2 | H123: 8000 | I123: $ | J123: -116 | K123: 16000 | M123: 16000
A124: 111 | B124: 2018-01-07 | C124: 2 | D124: صمغ mariage | E124: علب | F124: 2 | H124: 3000 | I124: $ | J124: 55 | K124: 6000 | M124: 6000
A125: 111 | B125: 2018-01-07 | C125: 3 | D125: توصيل | E125: سياره | F125: 1 | H125: 5000 | I125: $ | J125: -7 | K125: 5000 | M125: 5000
A126: 8220 | B126: 2018-01-07 | C126: 1 | D126: اظافر | E126: سيت 18 اظفر | F126: 2 | H126: 8000 | I126: $ | J126: -118 | K126: 16000 | M126: 16000
A127: 8220 | B127: 2018-01-07 | C127: 2 | D127: صمغ mariage | E127: علب | F127: 1 | H127: 3000 | I127: $ | J127: 53 | K127: 3000 | M127: 3000
A128: 8227 | B128: 2018-01-07 | C128: 1 | D128: اظافر | E128: سيت 18 اظفر | F128: 1 | H128: 8000 | I128: $ | J128: -120 | K128: 8000 | L128: 1000 | M128: 7000
A129: 8227 | B129: 2018-01-07 | C129: 2 | D129: صمغ mariage | E129: علب | F129: 1 | H129: 3000 | I129: $ | J129: 52 | K129: 3000 | L129: 1000 | M129: 2000
A130: 8228 | B130: 2018-01-07 | C130: 1 | D130: اظافر | E130: سيت 18 اظفر | F130: 2 | H130: 8000 | I130: $ | J130: -121 | K130: 16000 | L130: 2000 | M130: 14000
A131: 8228 | B131: 2018-01-07 | C131: 2 | D131: حماية اظافر essence | E131: قطعه | F131: 2 | H131: 5000 | I131: $ | J131: 4 | K131: 10000 | L131: 2000 | M131: 8000
A132: 8228 | B132: 2018-01-07 | C132: 3 | D132: صمغ mariage | E132: علب | F132: 2 | H132: 3000 | I132: $ | J132: 51 | K132: 6000 | L132: 2000 | M132: 4000
A133: 8229 | B133: 2018-01-07 | C133: 1 | D133: اظافر | E133: سيت 18 اظفر | F133: 1 | H133: 8000 | I133: $ | J133: -123 | K133: 8000 | M133: 8000
A134: 8230 | B134: 2018-01-07 | C134: 1 | D134: اظافر | E134: سيت 18 اظفر | F134: 2 | H134: 8000 | I134: $ | J134: -124 | K134: 16000 | M134: 16000
A135: 8231 | B135: 2018-01-07 | C135: 1 | D135: اظافر | E135: سيت 18 اظفر | F135: 2 | H135: 8000 | I135: $ | J135: -126 | K135: 16000 | M135: 16000
A136: 8231 | B136: 2018-01-07 | C136: 2 | D136: صمغ mariage | E136: علب | F136: 1 | H136: 3000 | I136: $ | J136: 49 | K136: 3000 | M136: 3000
A137: 8231 | B137: 2018-01-07 | C137: 3 | D137: توصيل | E137: سياره | F137: 1 | H137: 5000 | I137: $ | J137: -8 | K137: 5000 | M137: 5000
A138: 8231 | B138: 2018-01-07 | C138: 4 | D138: استون كولدن روز | E138: علبه | F138: 1 | H138: 3000 | I138: $ | J138: 21 | K138: 3000 | M138: 3000
A139: 8232 | B139: 2018-01-07 | C139: 1 | D139: اظافر | E139: سيت 18 اظفر | F139: 2 | H139: 8000 | I139: $ | J139: -128 | K139: 16000 | M139: 16000
A140: 8232 | B140: 2018-01-07 | C140: 2 | D140: صمغ mariage | E140: علب | F140: 1 | H140: 3000 | I140: $ | J140: 48 | K140: 3000 | M140: 3000
A141: 8233 | B141: 2018-01-07 | C141: 1 | D141: اظافر | E141: سيت 18 اظفر | F141: 2 | H141: 8000 | I141: $ | J141: -130 | K141: 16000 | L141: 2000 | M141: 14000
A142: 8233 | B142: 2018-01-07 | C142: 2 | D142: صمغ mariage | E142: علب | F142: 1 | H142: 3000 | I142: $ | J142: 47 | K142: 3000 | M142: 3000
A143: 8233 | B143: 2018-01-07 | C143: 3 | D143: حماية اظافر essence | E143: قطعه | F143: 1 | H143: 5000 | I143: $ | J143: 2 | K143: 5000 | M143: 5000
A144: 8235 | B144: 2018-01-07 | C144: 1 | D144: اظافر | E144: سيت 18 اظفر | F144: 2 | H144: 8000 | I144: $ | J144: -132 | K144: 16000 | M144: 16000
A145: 8235 | B145: 2018-01-07 | C145: 2 | D145: صمغ mariage | E145: علب | F145: 1 | H145: 3000 | I145: $ | J145: 46 | K145: 3000 | M145: 3000
A146: 8236 | B146: 2018-01-07 | C146: 1 | D146: اظافر | E146: سيت 18 اظفر | F146: 2 | H146: 8000 | I146: $ | J146: -134 | K146: 16000 | L146: 2000 | M146: 14000
A147: 8236 | B147: 2018-01-07 | C147: 2 | D147: صمغ mariage | E147: علب | F147: 1 | H147: 3000 | I147: $ | J147: 45 | K147: 3000 | L147: 1000 | M147: 2000
A148: 8236 | B148: 2018-01-07 | C148: 3 | D148: حماية اظافر essence | E148: قطعه | F148: 1 | H148: 5000 | I148: $ | J148: 1 | K148: 5000 | M148: 5000
A149: 8237 | B149: 2018-01-07 | C149: 1 | D149: اظافر | E149: سيت 18 اظفر | F149: 1 | H149: 8000 | I149: $ | J149: -136 | K149: 8000 | M149: 8000
A150: 8237 | B150: 2018-01-07 | C150: 2 | D150: صمغ mariage | E150: علب | F150: 1 | H150: 3000 | I150: $ | J150: 44 | K150: 3000 | M150: 3000
A151: 8238 | B151: 2018-01-07 | C151: 1 | D151: اظافر | E151: سيت 18 اظفر | F151: 3 | H151: 8000 | I151: $ | J151: -137 | K151: 24000 | M151: 24000
A152: 8238 | B152: 2018-01-07 | C152: 2 | D152: استون كولدن روز | E152: علبه | F152: 1 | H152: 3000 | I152: $ | J152: 20 | K152: 3000 | M152: 3000
A153: 8238 | B153: 2018-01-07 | C153: 3 | D153: صمغ mariage | E153: علب | F153: 2 | H153: 3000 | I153: $ | J153: 43 | K153: 6000 | M153: 6000
A154: 8239 | B154: 2018-01-07 | C154: 1 | D154: اظافر | E154: سيت 18 اظفر | F154: 1 | H154: 8000 | I154: $ | J154: -140 | K154: 8000 | M154: 8000
A155: 8239 | B155: 2018-01-07 | C155: 2 | D155: صمغ mariage | E155: علب | F155: 1 | H155: 3000 | I155: $ | J155: 41 | K155: 3000 | M155: 3000
A156: 1 | B156: 2018-01-07 | C156: 1 | D156: اظافر | E156: سيت 18 اظفر | F156: 3 | H156: 8000 | I156: $ | J156: -141 | K156: 24000 | M156: 24000
A157: 1 | B157: 2018-01-07 | C157: 2 | D157: اظافر قدم | E157: سيت 20 اظفر | F157: 1 | H157: 10000 | I157: $ | J157: 10 | K157: 10000 | M157: 10000
A158: 1 | B158: 2018-01-07 | C158: 3 | D158: استون كولدن روز | E158: علبه | F158: 1 | H158: 3000 | I158: $ | J158: 19 | K158: 3000 | L158: 500 | M158: 2500
A159: 1 | B159: 2018-01-07 | C159: 4 | D159: صمغ mariage | E159: علب | F159: 1 | H159: 3000 | I159: $ | J159: 40 | K159: 3000 | L159: 500 | M159: 2500
A160: 1 | B160: 2018-01-07 | C160: 5 | D160: eveline total 8 in1 | E160: قطع | F160: 1 | H160: 8000 | I160: $ | J160: 12 | K160: 8000 | L160: 1000 | M160: 7000
A161: 325148 | B161: 2018-01-07 | C161: 1 | D161: اظافر | E161: سيت 18 اظفر | F161: 2 | H161: 8000 | I161: $ | J161: -144 | K161: 16000 | L161: 1000 | M161: 15000
A162: 325148 | B162: 2018-01-07 | C162: 2 | D162: صمغ mariage | E162: علب | F162: 1 | H162: 3000 | I162: $ | J162: 39 | K162: 3000 | M162: 3000
A163: 325148 | B163: 2018-01-07 | C163: 3 | D163: استون كولدن روز | E163: علبه | F163: 1 | H163: 3000 | I163: $ | J163: 18 | K163: 3000 | M163: 3000
A164: 1 | B164: 2018-01-07 | C164: 1 | D164: اظافر | E164: سيت 18 اظفر | F164: 4 | H164: 8000 | I164: $ | J164: -146 | K164: 32000 | M164: 32000
A165: 1 | B165: 2018-01-07 | C165: 2 | D165: صمغ mariage | E165: علب | F165: 3 | H165: 3000 | I165: $ | J165: 38 | K165: 9000 | L165: 1000 | M165: 8000
A166: 1 | B166: 2018-01-07 | C166: 3 | D166: استون كولدن روز | E166: علبه | F166: 1 | H166: 3000 | I166: $ | J166: 17 | K166: 3000 | L166: 3000 | M166: 0
A167: 8240 | B167: 2018-01-07 | C167: 1 | D167: eveline total 8 in1 | E167: قطع | F167: 4 | H167: 8000 | I167: $ | J167: 11 | K167: 32000 | M167: 32000
A168: 8240 | B168: 2018-01-07 | C168: 2 | D168: استون كولدن روز | E168: علبه | F168: 1 | H168: 3000 | I168: $ | J168: 16 | K168: 3000 | L168: 3000 | M168: 0
A169: 8241 | B169: 2018-01-07 | C169: 1 | D169: اظافر | E169: سيت 18 اظفر | F169: 5 | H169: 8000 | I169: $ | J169: -150 | K169: 40000 | M169: 40000
A170: 8241 | B170: 2018-01-07 | C170: 2 | D170: صمغ mariage | E170: علب | F170: 1 | H170: 3000 | I170: $ | J170: 35 | K170: 3000 | L170: 2000 | M170: 1000
A171: 8242 | B171: 2018-01-07 | C171: 1 | D171: اظافر | E171: سيت 18 اظفر | F171: 1 | H171: 8000 | I171: $ | J171: -155 | K171: 8000 | M171: 8000
A172: 8242 | B172: 2018-01-07 | C172: 2 | D172: صمغ mariage | E172: علب | F172: 1 | H172: 3000 | I172: $ | J172: 34 | K172: 3000 | L172: 2000 | M172: 1000
A173: 8243 | B173: 2018-01-07 | C173: 1 | D173: اظافر | E173: سيت 18 اظفر | F173: 1 | H173: 8000 | I173: $ | J173: -156 | K173: 8000 | L173: 2000 | M173: 6000
A174: 8244 | B174: 2018-01-07 | C174: 1 | D174: اظافر | E174: سيت 18 اظفر | F174: 1 | H174: 8000 | I174: $ | J174: -157 | K174: 8000 | M174: 8000
A175: 8244 | B175: 2018-01-07 | C175: 2 | D175: صمغ mariage | E175: علب | F175: 1 | H175: 3000 | I175: $ | J175: 33 | K175: 3000 | L175: 2000 | M175: 1000
A176: 8245 | B176: 2018-01-07 | C176: 1 | D176: اظافر | E176: سيت 18 اظفر | F176: 2 | H176: 8000 | I176: $ | J176: -158 | K176: 16000 | M176: 16000
A177: 8245 | B177: 2018-01-07 | C177: 2 | D177: صمغ mariage | E177: علب | F177: 2 | H177: 3000 | I177: $ | J177: 32 | K177: 6000 | M177: 6000
A178: 8246 | B178: 2018-01-07 | C178: 1 | D178: اظافر | E178: سيت 18 اظفر | F178: 2 | H178: 8000 | I178: $ | J178: -160 | K178: 16000 | M178: 16000
A179: 8248 | B179: 2018-01-07 | C179: 1 | D179: اظافر | E179: سيت 18 اظفر | F179: 2 | H179: 8000 | I179: $ | J179: -162 | K179: 16000 | M179: 16000
A180: 8248 | B180: 2018-01-07 | C180: 2 | D180: صمغ mariage | E180: علب | F180: 1 | H180: 3000 | I180: $ | J180: 30 | K180: 3000 | M180: 3000
A181: 8250 | B181: 2018-01-07 | C181: 1 | D181: اظافر | E181: سيت 18 اظفر | F181: 1 | H181: 8000 | I181: $ | J181: -164 | K181: 8000 | M181: 8000
A182: 22301 | B182: 2018-01-07 | C182: 1 | D182: اظافر | E182: سيت 18 اظفر | F182: 2 | H182: 8000 | I182: $ | J182: -165 | K182: 16000 | M182: 16000
A183: 22302 | B183: 2018-01-07 | C183: 1 | D183: اظافر | E183: سيت 18 اظفر | F183: 2 | H183: 8000 | I183: $ | J183: -167 | K183: 16000 | M183: 16000
A184: 22302 | B184: 2018-01-07 | C184: 2 | D184: صمغ mariage | E184: علب | F184: 1 | H184: 3000 | I184: $ | J184: 53 | K184: 3000 | M184: 3000
A185: 22303 | B185: 2018-01-07 | C185: 1 | D185: اظافر | E185: سيت 18 اظفر | F185: 1 | H185: 8000 | I185: $ | J185: -169 | K185: 8000 | M185: 8000
A186: 22303 | B186: 2018-01-07 | C186: 2 | D186: صمغ mariage | E186: علب | F186: 1 | H186: 3000 | I186: $ | J186: 52 | K186: 3000 | M186: 3000
A187: 1 | B187: 2018-01-08 | C187: 1 | D187: اظافر | E187: سيت 18 اظفر | F187: 4 | H187: 8000 | I187: $ | J187: -170 | K187: 32000 | M187: 32000
A188: 1 | B188: 2018-01-08 | C188: 2 | D188: اظافر قدم | E188: سيت 20 اظفر | F188: 1 | H188: 10000 | I188: $ | J188: 9 | K188: 10000 | M188: 10000
A189: 1 | B189: 2018-01-08 | C189: 3 | D189: صمغ mariage | E189: علب | F189: 1 | H189: 3000 | I189: $ | J189: 51 | K189: 3000 | M189: 3000
A190: 22304 | B190: 2018-01-08 | C190: 1 | D190: اظافر | E190: سيت 18 اظفر | F190: 1 | H190: 8000 | I190: $ | J190: -174 | K190: 8000 | M190: 8000
A191: 22304 | B191: 2018-01-08 | C191: 2 | D191: صمغ mariage | E191: علب | F191: 1 | H191: 3000 | I191: $ | J191: 50 | K191: 3000 | M191: 3000
A192: 22305 | B192: 2018-01-08 | C192: 1 | D192: اظافر | E192: سيت 18 اظفر | F192: 1 | H192: 8000 | I192: $ | J192: -175 | K192: 8000 | M192: 8000
A193: 1 | B193: 2018-01-08 | C193: 1 | D193: اظافر | E193: سيت 18 اظفر | F193: 1 | H193: 8000 | I193: $ | J193: -176 | K193: 8000 | M193: 8000
A194: 1 | B194: 2018-01-08 | C194: 2 | D194: استون كولدن روز | E194: علبه | F194: 1 | H194: 3000 | I194: $ | J194: 15 | K194: 3000 | L194: 3000 | M194: 0
A195: 1 | B195: 2018-01-08 | C195: 3 | D195: eveline total 8 in1 | E195: قطع | F195: 1 | H195: 8000 | I195: $ | J195: 7 | K195: 8000 | M195: 8000
A196: 1 | B196: 2018-01-08 | C196: 4 | D196: صمغ mariage | E196: علب | F196: 1 | H196: 3000 | I196: $ | J196: 49 | K196: 3000 | M196: 3000
A197: 22307 | B197: 2018-01-08 | C197: 1 | D197: اظافر | E197: سيت 18 اظفر | F197: 2 | H197: 8000 | I197: $ | J197: -177 | K197: 16000 | M197: 16000
A198: 22307 | B198: 2018-01-08 | C198: 2 | D198: صمغ mariage | E198: علب | F198: 2 | H198: 3000 | I198: $ | J198: 48 | K198: 6000 | M198: 6000
A199: 22310 | B199: 2018-01-08 | C199: 1 | D199: اظافر | E199: سيت 18 اظفر | F199: 4 | H199: 8000 | I199: $ | J199: -179 | K199: 32000 | M199: 32000
A200: 22310 | B200: 2018-01-08 | C200: 2 | D200: صمغ mariage | E200: علب | F200: 2 | H200: 3000 | I200: $ | J200: 46 | K200: 6000 | M200: 6000
A201: 22311 | B201: 2018-01-08 | C201: 1 | D201: صمغ mariage | E201: علب | F201: 1 | H201: 3000 | I201: $ | J201: 44 | K201: 3000 | M201: 3000
A202: 22311 | B202: 2018-01-08 | C202: 2 | D202: اظافر | E202: سيت 18 اظفر | F202: 1 | H202: 8000 | I202: $ | J202: -183 | K202: 8000 | M202: 8000
... 181 more rows

Sheet مشتريات
A4: رقم الفاتوره | B4: تاريخ الفاتوره | C4: تسلسل | D4: اسم المورد | E4: رقم تلفون المورد | F4: صنف | G4: الوحده | H4: الكميه | I4: سعر الشراء | J4: المجموع
A5: 426 | B5: 2018-07-07 | D5: شركة كولدر روز | E5: 7719444948 | F5: اسيتون كولدن روز | G5: كارتون | H5: 1 | I5: 26000 | J5: 26000
A6: 426 | B6: 2018-07-07 | D6: شركة كولدن روز | E6: 7901107720 | F6: صبغ اظافر ice chic | G6: درزن | H6: 1 | I6: 9000 | J6: 9000
A7: 378 | B7: 2018-07-07 | D7: سيدتي الجميله | E7: 7708881690 | F7: اظافر pretty women | G7: درزن | H7: 4 | I7: 12000 | J7: 48000
A8: 378 | B8: 2018-07-07 | D8: سيدتي الجميله | E8: 7708881690 | F8: صمغ اظافر marage | G8: درزن | H8: 5 | I8: 9000 | J8: 45000
A9: 378 | B9: 2018-07-07 | D9: سيدتي الجميله | E9: 7708881690 | F9: اظافر 500 اظفر | G9: علب | H9: 2 | I9: 2500 | J9: 5000
A10: 1 | B10: 2018-07-07 | D10: محل ابوعمر | E10: لا يوجد | F10: علاكة صغيره | G10: درزن | H10: 2 | I10: 2000 | J10: 4000
A11: 1 | B11: 2018-07-07 | D11: محل ابوعمر | E11: لا يوجد | F11: علاكة وسط | G11: درزن | H11: 2 | I11: 3000 | J11: 6000
A12: 1 | B12: 2018-07-07 | D12: محل ابوعمر | E12: لا يوجد | F12: علبه هديه | G12: علب | H12: 1 | I12: 2000 | J12: 2000
A13: 2 | B13: 2018-07-07 | D13: جويل | E13: لايوجد | F13: اظافر جوييل مقوسه | G13: علب | H13: 3 | I13: 3000 | J13: 9000
A14: 3 | B14: 2018-07-07 | D14: محل في الشورجه | E14: لا يوجد | F14: اظافر ورديه | G14: درزن | H14: 1 | I14: 18000 | J14: 18000
A15: 11 | B15: 2018-12-07 | D15: مول بغداد | E15: لا يوجد | F15: صيغ فلارمر | G15: قطع | H15: 13 | I15: 1000 | J15: 13000
A16: 11 | B16: 2018-12-07 | D16: حاجة 500 | E16: لا يوجد | F16: ستراس | G16: علب | H16: 57 | I16: 500 | J16: 28500
A17: 125 | B17: 2018-12-07 | D17: مول بغداد | E17: لايوجد | F17: قطن | G17: قطع | H17: 3 | I17: 1000 | J17: 3000
A18: 482 | B18: 14/7/2018 | D18: شركة كولدن روز | E18: 7719444984 | F18: جل مات الاظافر | G18: درزن | H18: 1 | I18: 19000 | J18: 19000
A19: 482 | B19: 14/7/2018 | D19: شركة كولدن روز | E19: 7719444984 | F19: صبغ اظافر expert | G19: قطع | H19: 4 | I19: 1000 | J19: 4000
A20: 1 | B20: 14/7/2018 | D20: ابو عمر | E20: لا يوجد | F20: علب طويلة | G20: درزن | H20: 3 | I20: 6000 | J20: 18000
A21: 1 | B21: 14/7/2018 | D21: ابو عمر | E21: لا يوجد | F21: علب صغيره مربعه | G21: درزن | H21: 2 | I21: 3500 | J21: 7000
A22: 1 | B22: 14/7/2018 | C22: =IFERROR(IF(D22<>"",1,""),"") -> 1 | D22: سيدتي الجميله | E22: 7708881690 | F22: اظافر pertty women | G22: درزن | H22: 2 | I22: 12000 | J22: 24000
A23: 1 | B23: 15/7/2018 | C23: 1 | D23: حاجة 500 | E23: لا يوجد | F23: ستراس | G23: علب | H23: 79 | I23: 500 | J23: 39500
A24: 1 | B24: 26/7/2018 | C24: 1 | D24: شانيل | E24: لا يوجد | F24: اظافر قدم | G24: علبة 20 اظفر | H24: 12 | I24: 1750 | J24: 21000
A25: 1 | B25: 27/7/2018 | C25: 1 | D25: الشورجه | E25: لا يوجد | F25: علاليك | G25: درزن | H25: 4 | I25: 5000 | J25: 20000
A26: 1 | B26: 27/7/2018 | C26: 1 | D26: الشورجه | E26: لا يوجد | F26: علب | G26: درزن | H26: 10 | I26: 6000 | J26: 60000
A27: 1 | B27: 27/7/2018 | C27: 1 | D27: الشورجه | E27: لا يوجد | F27: ستراس | G27: قطعه | H27: 15 | I27: 1500 | J27: 22500
A28: 1 | B28: 27/7/2018 | C28: 1 | D28: الشورجه | E28: لا يوجد | F28: صبغ كلتر | G28: قطع | H28: 9 | I28: 1000 | J28: 9000
A29: 1 | B29: 27/7/2018 | C29: 1 | D29: شركة جويل | E29: لا يوجد | F29: علب اظافر | G29: قطع | H29: 1 | I29: 4000 | J29: 4000
A30: 1 | B30: 27/7/2018 | C30: 1 | D30: شورجة | E30: لا يوجد | F30: اظافر | G30: درزن | H30: 2 | I30: 18000 | J30: 36000
A31: 1 | B31: 2018-08-08 | C31: 1 | D31: الشورجه | E31: لا يوجد | F31: ستراس ورد | G31: درزن | H31: 4 | I31: 15000 | J31: 60000
A32: 1 | B32: 25/8/2018 | C32: 1 | D32: مول زيونه | E32: يوجد | F32: صبغ اظافر | G32: قطع | H32: 28 | I32: 1300 | J32: 36400
A33: 1 | B33: 25/8/2018 | C33: 1 | D33: مول زيونه | E33: يوجد | F33: ماسكارة رموش | G33: قطع | H33: 4 | I33: 3750 | J33: 15000
A34: 1 | B34: 2018-01-09 | C34: 1 | D34: الشورجة | F34: اظافر زلومة | G34: درزن | H34: 2 | I34: 1000 | J34: 2000
A35: 1 | B35: 2018-01-09 | C35: 1 | D35: الشورجة | E35: لا ييوجد | F35: صبغ اظافر not | G35: علب | H35: 2 | I35: 1500 | J35: 3000
A36: 1 | B36: 2018-01-09 | C36: 1 | D36: الشورجة | E36: لا ييوجد | F36: top matt | G36: درزن | H36: 1 | I36: 24000 | J36: 24000
A37: 1 | B37: 2018-01-09 | C37: 1 | D37: الشورجة | E37: لا ييوجد | F37: ستراس | G37: علب | H37: 6 | I37: 1500 | J37: 9000
A38: 1 | B38: 2018-01-09 | C38: 1 | D38: الشورجة | E38: لا ييوجد | F38: اظافر قدم | G38: علب | H38: 3 | I38: 3000 | J38: 9000
A39: 1 | B39: 2018-01-09 | C39: 1 | D39: الشورجة | E39: لا ييوجد | F39: اظافر جويل | G39: علب | H39: 4 | I39: 3000 | J39: 12000
A40: 1 | B40: 2018-01-09 | C40: 1 | D40: الشورجة | E40: لا يوجد | F40: ستراس | G40: درزن | H40: 2 | I40: 16000 | J40: 32000
A41: 1 | B41: 2018-01-09 | C41: 1 | D41: الشورجة | E41: لا يوجد | F41: كولدن روز | G41: درزن | H41: 1 | I41: 30000 | J41: 30000
A42: 1 | B42: 2018-01-09 | C42: 1 | D42: مول زيونه | E42: لا يوجد | F42: اظافر | G42: قطع | H42: 12 | I42: 1916.666667 | J42: 23000
A43: 1 | B43: 2018-01-09 | C43: 1 | D43: مول زيونه | E43: لا يوجد | F43: مبرد كهربائي | G43: قطع | H43: 1 | I43: 10000 | J43: 10000
A44: 2 | B44: 2018-01-09 | C44: 1 | D44: ابوعمر | E44: لا يوجد | F44: علب اظافر | G44: درازن | H44: 60 | I44: 6000 | J44: 360000
A45: 3 | B45: 2018-01-09 | C45: 1 | D45: الشورجه | E45: لا يوجد | F45: ستراس | G45: درازن | H45: 3 | I45: 16666.66667 | J45: 50000
A46: 4 | B46: 2018-01-09 | C46: 1 | D46: حاجه | E46: لا يوجد | F46: ستراس | G46: درزن | H46: 10 | I46: 6000 | J46: 60000
A47: 2 | B47: 2018-01-09 | C47: 1 | D47: حاجه | E47: لا يوجد | F47: ستراس | G47: درزن | H47: 7 | I47: 6428.571429 | J47: 45000
C70: =IFERROR(IF(D70<>"",1,""),"") -> 
C134: =IFERROR(IF(D134<>"",1,""),"") -> 
C198: =IFERROR(IF(D198<>"",1,""),"") -> 
C262: =IFERROR(IF(D262<>"",1,""),"") -> 
C326: =IFERROR(IF(D326<>"",1,""),"") -> 
C390: =IFERROR(IF(D390<>"",1,""),"") -> 
C454: =IFERROR(IF(D454<>"",1,""),"") -> 
C518: =IFERROR(IF(D518<>"",1,""),"") -> 
C582: =IFERROR(IF(D582<>"",1,""),"") -> 
C646: =IFERROR(IF(D646<>"",1,""),"") -> 
C710: =IFERROR(IF(D710<>"",1,""),"") -> 
C774: =IFERROR(IF(D774<>"",1,""),"") -> 

Sheet تقرير المشتريات
A1: من | B1: 2018-01-09
A2: الى | B2: 2018-01-09
E3: =SUM(E5:E222) -> 2237000
A4: صنف | B4: الوحده | C4: الكميه | D4: سعر الشراء | E4: المجموع
A5: اسيتون كولدن روز | B5: كارتون | C5: =SUMIFS(مشتريات!$H$5:$H$1048576,مشتريات!$B$5:$B$1048576,">="&'تقرير المشتريات'!$B$1,مشتريات!$B$5:$B$1048576,"<="&'تقرير المشتريات'!$B$2,مشتريات!$F$5:$F$1048576,مشتريات!F5) -> 0 | D5: =SUMIFS(مشتريات!$I$5:$I$1048576,مشتريات!$B$5:$B$1048576,">="&'تقرير المشتريات'!$B$1,مشتريات!$B$5:$B$1048576,"<="&'تقرير المشتريات'!$B$2,مشتريات!$F$5:$F$1048576,مشتريات!F5) -> 0 | E5: =SUMIFS(مشتريات!$J$5:$J$1048576,مشتريات!$B$5:$B$1048576,">="&'تقرير المشتريات'!$B$1,مشتريات!$B$5:$B$1048576,"<="&'تقرير المشتريات'!$B$2,مشتريات!$F$5:$F$1048576,مشتريات!F5) -> 0
A6: صبغ اظافر ice chic | B6: درزن | C6: =SUMIFS(مشتريات!$H$5:$H$1048576,مشتريات!$B$5:$B$1048576,">="&'تقرير المشتريات'!$B$1,مشتريات!$B$5:$B$1048576,"<="&'تقرير المشتريات'!$B$2,مشتريات!$F$5:$F$1048576,مشتريات!F6) -> 0 | D6: =SUMIFS(مشتريات!$I$5:$I$1048576,مشتريات!$B$5:$B$1048576,">="&'تقرير المشتريات'!$B$1,مشتريات!$B$5:$B$1048576,"<="&'تقرير المشتريات'!$B$2,مشتريات!$F$5:$F$1048576,مشتريات!F6) -> 0 | E6: =SUMIFS(مشتريات!$J$5:$J$1048576,مشتريات!$B$5:$B$1048576,">="&'تقرير المشتريات'!$B$1,مشتريات!$B$5:$B$1048576,"<="&'تقرير المشتريات'!$B$2,مشتريات!$F$5:$F$1048576,مشتريات!F6) -> 0
A7: اظافر pretty women | B7: درزن | C7: =SUMIFS(مشتريات!$H$5:$H$1048576,مشتريات!$B$5:$B$1048576,">="&'تقرير المشتريات'!$B$1,مشتريات!$B$5:$B$1048576,"<="&'تقرير المشتريات'!$B$2,مشتريات!$F$5:$F$1048576,مشتريات!F7) -> 0 | D7: =SUMIFS(مشتريات!$I$5:$I$1048576,مشتريات!$B$5:$B$1048576,">="&'تقرير المشتريات'!$B$1,مشتريات!$B$5:$B$1048576,"<="&'تقرير المشتريات'!$B$2,مشتريات!$F$5:$F$1048576,مشتريات!F7) -> 0 | E7: =SUMIFS(مشتريات!$J$5:$J$1048576,مشتريات!$B$5:$B$1048576,">="&'تقرير المشتريات'!$B$1,مشتريات!$B$5:$B$1048576,"<="&'تقرير المشتريات'!$B$2,مشتريات!$F$5:$F$1048576,مشتريات!F7) -> 0
A8: صمغ اظافر marage | B8: درزن | C8: =SUMIFS(مشتريات!$H$5:$H$1048576,مشتريات!$B$5:$B$1048576,">="&'تقرير المشتريات'!$B$1,مشتريات!$B$5:$B$1048576,"<="&'تقرير المشتريات'!$B$2,مشتريات!$F$5:$F$1048576,مشتريات!F8) -> 0 | D8: =SUMIFS(مشتريات!$I$5:$I$1048576,مشتريات!$B$5:$B$1048576,">="&'تقرير المشتريات'!$B$1,مشتريات!$B$5:$B$1048576,"<="&'تقرير المشتريات'!$B$2,مشتريات!$F$5:$F$1048576,مشتريات!F8) -> 0 | E8: =SUMIFS(مشتريات!$J$5:$J$1048576,مشتريات!$B$5:$B$1048576,">="&'تقرير المشتريات'!$B$1,مشتريات!$B$5:$B$1048576,"<="&'تقرير المشتريات'!$B$2,مشتريات!$F$5:$F$1048576,مشتريات!F8) -> 0
A9: اظافر 500 اظفر | B9: علب | C9: =SUMIFS(مشتريات!$H$5:$H$1048576,مشتريات!$B$5:$B$1048576,">="&'تقرير المشتريات'!$B$1,مشتريات!$B$5:$B$1048576,"<="&'تقرير المشتريات'!$B$2,مشتريات!$F$5:$F$1048576,مشتريات!F9) -> 0 | D9: =SUMIFS(مشتريات!$I$5:$I$1048576,مشتريات!$B$5:$B$1048576,">="&'تقرير المشتريات'!$B$1,مشتريات!$B$5:$B$1048576,"<="&'تقرير المشتريات'!$B$2,مشتريات!$F$5:$F$1048576,مشتريات!F9) -> 0 | E9: =SUMIFS(مشتريات!$J$5:$J$1048576,مشتريات!$B$5:$B$1048576,">="&'تقرير المشتريات'!$B$1,مشتريات!$B$5:$B$1048576,"<="&'تقرير المشتريات'!$B$2,مشتريات!$F$5:$F$1048576,مشتريات!F9) -> 0
A10: علاكة صغيره | B10: درزن | C10: =SUMIFS(مشتريات!$H$5:$H$1048576,مشتريات!$B$5:$B$1048576,">="&'تقرير المشتريات'!$B$1,مشتريات!$B$5:$B$1048576,"<="&'تقرير المشتريات'!$B$2,مشتريات!$F$5:$F$1048576,مشتريات!F10) -> 0 | D10: =SUMIFS(مشتريات!$I$5:$I$1048576,مشتريات!$B$5:$B$1048576,">="&'تقرير المشتريات'!$B$1,مشتريات!$B$5:$B$1048576,"<="&'تقرير المشتريات'!$B$2,مشتريات!$F$5:$F$1048576,مشتريات!F10) -> 0 | E10: =SUMIFS(مشتريات!$J$5:$J$1048576,مشتريات!$B$5:$B$1048576,">="&'تقرير المشتريات'!$B$1,مشتريات!$B$5:$B$1048576,"<="&'تقرير المشتريات'!$B$2,مشتريات!$F$5:$F$1048576,مشتريات!F10) -> 0
A11: علاكة وسط | B11: درزن | C11: =SUMIFS(مشتريات!$H$5:$H$1048576,مشتريات!$B$5:$B$1048576,">="&'تقرير المشتريات'!$B$1,مشتريات!$B$5:$B$1048576,"<="&'تقرير المشتريات'!$B$2,مشتريات!$F$5:$F$1048576,مشتريات!F11) -> 0 | D11: =SUMIFS(مشتريات!$I$5:$I$1048576,مشتريات!$B$5:$B$1048576,">="&'تقرير المشتريات'!$B$1,مشتريات!$B$5:$B$1048576,"<="&'تقرير المشتريات'!$B$2,مشتريات!$F$5:$F$1048576,مشتريات!F11) -> 0 | E11: =SUMIFS(مشتريات!$J$5:$J$1048576,مشتريات!$B$5:$B$1048576,">="&'تقرير المشتريات'!$B$1,مشتريات!$B$5:$B$1048576,"<="&'تقرير المشتريات'!$B$2,مشتريات!$F$5:$F$1048576,مشتريات!F11) -> 0
A12: علبه هديه | B12: علب | C12: =SUMIFS(مشتريات!$H$5:$H$1048576,مشتريات!$B$5:$B$1048576,">="&'تقرير المشتريات'!$B$1,مشتريات!$B$5:$B$1048576,"<="&'تقرير المشتريات'!$B$2,مشتريات!$F$5:$F$1048576,مشتريات!F12) -> 0 | D12: =SUMIFS(مشتريات!$I$5:$I$1048576,مشتريات!$B$5:$B$1048576,">="&'تقرير المشتريات'!$B$1,مشتريات!$B$5:$B$1048576,"<="&'تقرير المشتريات'!$B$2,مشتريات!$F$5:$F$1048576,مشتريات!F12) -> 0 | E12: =SUMIFS(مشتريات!$J$5:$J$1048576,مشتريات!$B$5:$B$1048576,">="&'تقرير المشتريات'!$B$1,مشتريات!$B$5:$B$1048576,"<="&'تقرير المشتريات'!$B$2,مشتريات!$F$5:$F$1048576,مشتريات!F12) -> 0
A13: اظافر جوييل مقوسه | B13: علب | C13: =SUMIFS(مشتريات!$H$5:$H$1048576,مشتريات!$B$5:$B$1048576,">="&'تقرير المشتريات'!$B$1,مشتريات!$B$5:$B$1048576,"<="&'تقرير المشتريات'!$B$2,مشتريات!$F$5:$F$1048576,مشتريات!F13) -> 0 | D13: =SUMIFS(مشتريات!$I$5:$I$1048576,مشتريات!$B$5:$B$1048576,">="&'تقرير المشتريات'!$B$1,مشتريات!$B$5:$B$1048576,"<="&'تقرير المشتريات'!$B$2,مشتريات!$F$5:$F$1048576,مشتريات!F13) -> 0 | E13: =SUMIFS(مشتريات!$J$5:$J$1048576,مشتريات!$B$5:$B$1048576,">="&'تقرير المشتريات'!$B$1,مشتريات!$B$5:$B$1048576,"<="&'تقرير المشتريات'!$B$2,مشتريات!$F$5:$F$1048576,مشتريات!F13) -> 0
A14: اظافر ورديه | B14: درزن | C14: =SUMIFS(مشتريات!$H$5:$H$1048576,مشتريات!$B$5:$B$1048576,">="&'تقرير المشتريات'!$B$1,مشتريات!$B$5:$B$1048576,"<="&'تقرير المشتريات'!$B$2,مشتريات!$F$5:$F$1048576,مشتريات!F14) -> 0 | D14: =SUMIFS(مشتريات!$I$5:$I$1048576,مشتريات!$B$5:$B$1048576,">="&'تقرير المشتريات'!$B$1,مشتريات!$B$5:$B$1048576,"<="&'تقرير المشتريات'!$B$2,مشتريات!$F$5:$F$1048576,مشتريات!F14) -> 0 | E14: =SUMIFS(مشتريات!$J$5:$J$1048576,مشتريات!$B$5:$B$1048576,">="&'تقرير المشتريات'!$B$1,مشتريات!$B$5:$B$1048576,"<="&'تقرير المشتريات'!$B$2,مشتريات!$F$5:$F$1048576,مشتريات!F14) -> 0
A15: صيغ فلارمر | B15: قطع | C15: =SUMIFS(مشتريات!$H$5:$H$1048576,مشتريات!$B$5:$B$1048576,">="&'تقرير المشتريات'!$B$1,مشتريات!$B$5:$B$1048576,"<="&'تقرير المشتريات'!$B$2,مشتريات!$F$5:$F$1048576,مشتريات!F15) -> 0 | D15: =SUMIFS(مشتريات!$I$5:$I$1048576,مشتريات!$B$5:$B$1048576,">="&'تقرير المشتريات'!$B$1,مشتريات!$B$5:$B$1048576,"<="&'تقرير المشتريات'!$B$2,مشتريات!$F$5:$F$1048576,مشتريات!F15) -> 0 | E15: =SUMIFS(مشتريات!$J$5:$J$1048576,مشتريات!$B$5:$B$1048576,">="&'تقرير المشتريات'!$B$1,مشتريات!$B$5:$B$1048576,"<="&'تقرير المشتريات'!$B$2,مشتريات!$F$5:$F$1048576,مشتريات!F15) -> 0
A16: ستراس | B16: علب | C16: =SUMIFS(مشتريات!$H$5:$H$1048576,مشتريات!$B$5:$B$1048576,">="&'تقرير المشتريات'!$B$1,مشتريات!$B$5:$B$1048576,"<="&'تقرير المشتريات'!$B$2,مشتريات!$F$5:$F$1048576,مشتريات!F16) -> 0 | D16: =SUMIFS(مشتريات!$I$5:$I$1048576,مشتريات!$B$5:$B$1048576,">="&'تقرير المشتريات'!$B$1,مشتريات!$B$5:$B$1048576,"<="&'تقرير المشتريات'!$B$2,مشتريات!$F$5:$F$1048576,مشتريات!F16) -> 0 | E16: =SUMIFS(مشتريات!$J$5:$J$1048576,مشتريات!$B$5:$B$1048576,">="&'تقرير المشتريات'!$B$1,مشتريات!$B$5:$B$1048576,"<="&'تقرير المشتريات'!$B$2,مشتريات!$F$5:$F$1048576,مشتريات!F16) -> 0
A17: قطن | B17: قطع | C17: =SUMIFS(مشتريات!$H$5:$H$1048576,مشتريات!$B$5:$B$1048576,">="&'تقرير المشتريات'!$B$1,مشتريات!$B$5:$B$1048576,"<="&'تقرير المشتريات'!$B$2,مشتريات!$F$5:$F$1048576,مشتريات!F17) -> 0 | D17: =SUMIFS(مشتريات!$I$5:$I$1048576,مشتريات!$B$5:$B$1048576,">="&'تقرير المشتريات'!$B$1,مشتريات!$B$5:$B$1048576,"<="&'تقرير المشتريات'!$B$2,مشتريات!$F$5:$F$1048576,مشتريات!F17) -> 0 | E17: =SUMIFS(مشتريات!$J$5:$J$1048576,مشتريات!$B$5:$B$1048576,">="&'تقرير المشتريات'!$B$1,مشتريات!$B$5:$B$1048576,"<="&'تقرير المشتريات'!$B$2,مشتريات!$F$5:$F$1048576,مشتريات!F17) -> 0
A18: جل مات الاظافر | B18: درزن | C18: =SUMIFS(مشتريات!$H$5:$H$1048576,مشتريات!$B$5:$B$1048576,">="&'تقرير المشتريات'!$B$1,مشتريات!$B$5:$B$1048576,"<="&'تقرير المشتريات'!$B$2,مشتريات!$F$5:$F$1048576,مشتريات!F18) -> 0 | D18: =SUMIFS(مشتريات!$I$5:$I$1048576,مشتريات!$B$5:$B$1048576,">="&'تقرير المشتريات'!$B$1,مشتريات!$B$5:$B$1048576,"<="&'تقرير المشتريات'!$B$2,مشتريات!$F$5:$F$1048576,مشتريات!F18) -> 0 | E18: =SUMIFS(مشتريات!$J$5:$J$1048576,مشتريات!$B$5:$B$1048576,">="&'تقرير المشتريات'!$B$1,مشتريات!$B$5:$B$1048576,"<="&'تقرير المشتريات'!$B$2,مشتريات!$F$5:$F$1048576,مشتريات!F18) -> 0
A19: صبغ اظافر expert | B19: قطع | C19: =SUMIFS(مشتريات!$H$5:$H$1048576,مشتريات!$B$5:$B$1048576,">="&'تقرير المشتريات'!$B$1,مشتريات!$B$5:$B$1048576,"<="&'تقرير المشتريات'!$B$2,مشتريات!$F$5:$F$1048576,مشتريات!F19) -> 0 | D19: =SUMIFS(مشتريات!$I$5:$I$1048576,مشتريات!$B$5:$B$1048576,">="&'تقرير المشتريات'!$B$1,مشتريات!$B$5:$B$1048576,"<="&'تقرير المشتريات'!$B$2,مشتريات!$F$5:$F$1048576,مشتريات!F19) -> 0 | E19: =SUMIFS(مشتريات!$J$5:$J$1048576,مشتريات!$B$5:$B$1048576,">="&'تقرير المشتريات'!$B$1,مشتريات!$B$5:$B$1048576,"<="&'تقرير المشتريات'!$B$2,مشتريات!$F$5:$F$1048576,مشتريات!F19) -> 0
A20: علب طويلة | B20: درزن | C20: =SUMIFS(مشتريات!$H$5:$H$1048576,مشتريات!$B$5:$B$1048576,">="&'تقرير المشتريات'!$B$1,مشتريات!$B$5:$B$1048576,"<="&'تقرير المشتريات'!$B$2,مشتريات!$F$5:$F$1048576,مشتريات!F20) -> 0 | D20: =SUMIFS(مشتريات!$I$5:$I$1048576,مشتريات!$B$5:$B$1048576,">="&'تقرير المشتريات'!$B$1,مشتريات!$B$5:$B$1048576,"<="&'تقرير المشتريات'!$B$2,مشتريات!$F$5:$F$1048576,مشتريات!F20) -> 0 | E20: =SUMIFS(مشتريات!$J$5:$J$1048576,مشتريات!$B$5:$B$1048576,">="&'تقرير المشتريات'!$B$1,مشتريات!$B$5:$B$1048576,"<="&'تقرير المشتريات'!$B$2,مشتريات!$F$5:$F$1048576,مشتريات!F20) -> 0
A21: علب صغيره مربعه | B21: درزن | C21: =SUMIFS(مشتريات!$H$5:$H$1048576,مشتريات!$B$5:$B$1048576,">="&'تقرير المشتريات'!$B$1,مشتريات!$B$5:$B$1048576,"<="&'تقرير المشتريات'!$B$2,مشتريات!$F$5:$F$1048576,مشتريات!F21) -> 0 | D21: =SUMIFS(مشتريات!$I$5:$I$1048576,مشتريات!$B$5:$B$1048576,">="&'تقرير المشتريات'!$B$1,مشتريات!$B$5:$B$1048576,"<="&'تقرير المشتريات'!$B$2,مشتريات!$F$5:$F$1048576,مشتريات!F21) -> 0 | E21: =SUMIFS(مشتريات!$J$5:$J$1048576,مشتريات!$B$5:$B$1048576,">="&'تقرير المشتريات'!$B$1,مشتريات!$B$5:$B$1048576,"<="&'تقرير المشتريات'!$B$2,مشتريات!$F$5:$F$1048576,مشتريات!F21) -> 0
A22: اظافر pertty women | B22: درزن | C22: =SUMIFS(مشتريات!$H$5:$H$1048576,مشتريات!$B$5:$B$1048576,">="&'تقرير المشتريات'!$B$1,مشتريات!$B$5:$B$1048576,"<="&'تقرير المشتريات'!$B$2,مشتريات!$F$5:$F$1048576,مشتريات!F22) -> 0 | D22: =SUMIFS(مشتريات!$I$5:$I$1048576,مشتريات!$B$5:$B$1048576,">="&'تقرير المشتريات'!$B$1,مشتريات!$B$5:$B$1048576,"<="&'تقرير المشتريات'!$B$2,مشتريات!$F$5:$F$1048576,مشتريات!F22) -> 0 | E22: =SUMIFS(مشتريات!$J$5:$J$1048576,مشتريات!$B$5:$B$1048576,">="&'تقرير المشتريات'!$B$1,مشتريات!$B$5:$B$1048576,"<="&'تقرير المشتريات'!$B$2,مشتريات!$F$5:$F$1048576,مشتريات!F22) -> 0
A23: ستراس | B23: علب | C23: =SUMIFS(مشتريات!$H$5:$H$1048576,مشتريات!$B$5:$B$1048576,">="&'تقرير المشتريات'!$B$1,مشتريات!$B$5:$B$1048576,"<="&'تقرير المشتريات'!$B$2,مشتريات!$F$5:$F$1048576,مشتريات!F23) -> 28 | D23: =SUMIFS(مشتريات!$I$5:$I$1048576,مشتريات!$B$5:$B$1048576,">="&'تقرير المشتريات'!$B$1,مشتريات!$B$5:$B$1048576,"<="&'تقرير المشتريات'!$B$2,مشتريات!$F$5:$F$1048576,مشتريات!F23) -> 46595.2381 | E23: =SUMIFS(مشتريات!$J$5:$J$1048576,مشتريات!$B$5:$B$1048576,">="&'تقرير المشتريات'!$B$1,مشتريات!$B$5:$B$1048576,"<="&'تقرير المشتريات'!$B$2,مشتريات!$F$5:$F$1048576,مشتريات!F23) -> 196000
A24: اظافر قدم | B24: علبة 20 اظفر | C24: =SUMIFS(مشتريات!$H$5:$H$1048576,مشتريات!$B$5:$B$1048576,">="&'تقرير المشتريات'!$B$1,مشتريات!$B$5:$B$1048576,"<="&'تقرير المشتريات'!$B$2,مشتريات!$F$5:$F$1048576,مشتريات!F24) -> 3 | D24: =SUMIFS(مشتريات!$I$5:$I$1048576,مشتريات!$B$5:$B$1048576,">="&'تقرير المشتريات'!$B$1,مشتريات!$B$5:$B$1048576,"<="&'تقرير المشتريات'!$B$2,مشتريات!$F$5:$F$1048576,مشتريات!F24) -> 3000 | E24: =SUMIFS(مشتريات!$J$5:$J$1048576,مشتريات!$B$5:$B$1048576,">="&'تقرير المشتريات'!$B$1,مشتريات!$B$5:$B$1048576,"<="&'تقرير المشتريات'!$B$2,مشتريات!$F$5:$F$1048576,مشتريات!F24) -> 9000
A25: علاليك | B25: درزن | C25: =SUMIFS(مشتريات!$H$5:$H$1048576,مشتريات!$B$5:$B$1048576,">="&'تقرير المشتريات'!$B$1,مشتريات!$B$5:$B$1048576,"<="&'تقرير المشتريات'!$B$2,مشتريات!$F$5:$F$1048576,مشتريات!F25) -> 0 | D25: =SUMIFS(مشتريات!$I$5:$I$1048576,مشتريات!$B$5:$B$1048576,">="&'تقرير المشتريات'!$B$1,مشتريات!$B$5:$B$1048576,"<="&'تقرير المشتريات'!$B$2,مشتريات!$F$5:$F$1048576,مشتريات!F25) -> 0 | E25: =SUMIFS(مشتريات!$J$5:$J$1048576,مشتريات!$B$5:$B$1048576,">="&'تقرير المشتريات'!$B$1,مشتريات!$B$5:$B$1048576,"<="&'تقرير المشتريات'!$B$2,مشتريات!$F$5:$F$1048576,مشتريات!F25) -> 0
A26: علب | B26: درزن | C26: =SUMIFS(مشتريات!$H$5:$H$1048576,مشتريات!$B$5:$B$1048576,">="&'تقرير المشتريات'!$B$1,مشتريات!$B$5:$B$1048576,"<="&'تقرير المشتريات'!$B$2,مشتريات!$F$5:$F$1048576,مشتريات!F26) -> 0 | D26: =SUMIFS(مشتريات!$I$5:$I$1048576,مشتريات!$B$5:$B$1048576,">="&'تقرير المشتريات'!$B$1,مشتريات!$B$5:$B$1048576,"<="&'تقرير المشتريات'!$B$2,مشتريات!$F$5:$F$1048576,مشتريات!F26) -> 0 | E26: =SUMIFS(مشتريات!$J$5:$J$1048576,مشتريات!$B$5:$B$1048576,">="&'تقرير المشتريات'!$B$1,مشتريات!$B$5:$B$1048576,"<="&'تقرير المشتريات'!$B$2,مشتريات!$F$5:$F$1048576,مشتريات!F26) -> 0
A27: ستراس | B27: قطعه | C27: =SUMIFS(مشتريات!$H$5:$H$1048576,مشتريات!$B$5:$B$1048576,">="&'تقرير المشتريات'!$B$1,مشتريات!$B$5:$B$1048576,"<="&'تقرير المشتريات'!$B$2,مشتريات!$F$5:$F$1048576,مشتريات!F27) -> 28 | D27: =SUMIFS(مشتريات!$I$5:$I$1048576,مشتريات!$B$5:$B$1048576,">="&'تقرير المشتريات'!$B$1,مشتريات!$B$5:$B$1048576,"<="&'تقرير المشتريات'!$B$2,مشتريات!$F$5:$F$1048576,مشتريات!F27) -> 46595.2381 | E27: =SUMIFS(مشتريات!$J$5:$J$1048576,مشتريات!$B$5:$B$1048576,">="&'تقرير المشتريات'!$B$1,مشتريات!$B$5:$B$1048576,"<="&'تقرير المشتريات'!$B$2,مشتريات!$F$5:$F$1048576,مشتريات!F27) -> 196000
A28: صبغ كلتر | B28: قطع | C28: =SUMIFS(مشتريات!$H$5:$H$1048576,مشتريات!$B$5:$B$1048576,">="&'تقرير المشتريات'!$B$1,مشتريات!$B$5:$B$1048576,"<="&'تقرير المشتريات'!$B$2,مشتريات!$F$5:$F$1048576,مشتريات!F28) -> 0 | D28: =SUMIFS(مشتريات!$I$5:$I$1048576,مشتريات!$B$5:$B$1048576,">="&'تقرير المشتريات'!$B$1,مشتريات!$B$5:$B$1048576,"<="&'تقرير المشتريات'!$B$2,مشتريات!$F$5:$F$1048576,مشتريات!F28) -> 0 | E28: =SUMIFS(مشتريات!$J$5:$J$1048576,مشتريات!$B$5:$B$1048576,">="&'تقرير المشتريات'!$B$1,مشتريات!$B$5:$B$1048576,"<="&'تقرير المشتريات'!$B$2,مشتريات!$F$5:$F$1048576,مشتريات!F28) -> 0
A29: علب اظافر | B29: قطع | C29: =SUMIFS(مشتريات!$H$5:$H$1048576,مشتريات!$B$5:$B$1048576,">="&'تقرير المشتريات'!$B$1,مشتريات!$B$5:$B$1048576,"<="&'تقرير المشتريات'!$B$2,مشتريات!$F$5:$F$1048576,مشتريات!F29) -> 60 | D29: =SUMIFS(مشتريات!$I$5:$I$1048576,مشتريات!$B$5:$B$1048576,">="&'تقرير المشتريات'!$B$1,مشتريات!$B$5:$B$1048576,"<="&'تقرير المشتريات'!$B$2,مشتريات!$F$5:$F$1048576,مشتريات!F29) -> 6000 | E29: =SUMIFS(مشتريات!$J$5:$J$1048576,مشتريات!$B$5:$B$1048576,">="&'تقرير المشتريات'!$B$1,مشتريات!$B$5:$B$1048576,"<="&'تقرير المشتريات'!$B$2,مشتريات!$F$5:$F$1048576,مشتريات!F29) -> 360000
A30: اظافر | B30: درزن | C30: =SUMIFS(مشتريات!$H$5:$H$1048576,مشتريات!$B$5:$B$1048576,">="&'تقرير المشتريات'!$B$1,مشتريات!$B$5:$B$1048576,"<="&'تقرير المشتريات'!$B$2,مشتريات!$F$5:$F$1048576,مشتريات!F30) -> 12 | D30: =SUMIFS(مشتريات!$I$5:$I$1048576,مشتريات!$B$5:$B$1048576,">="&'تقرير المشتريات'!$B$1,مشتريات!$B$5:$B$1048576,"<="&'تقرير المشتريات'!$B$2,مشتريات!$F$5:$F$1048576,مشتريات!F30) -> 1916.666667 | E30: =SUMIFS(مشتريات!$J$5:$J$1048576,مشتريات!$B$5:$B$1048576,">="&'تقرير المشتريات'!$B$1,مشتريات!$B$5:$B$1048576,"<="&'تقرير المشتريات'!$B$2,مشتريات!$F$5:$F$1048576,مشتريات!F30) -> 23000
A31: ستراس ورد | B31: درزن | C31: =SUMIFS(مشتريات!$H$5:$H$1048576,مشتريات!$B$5:$B$1048576,">="&'تقرير المشتريات'!$B$1,مشتريات!$B$5:$B$1048576,"<="&'تقرير المشتريات'!$B$2,مشتريات!$F$5:$F$1048576,مشتريات!F31) -> 0 | D31: =SUMIFS(مشتريات!$I$5:$I$1048576,مشتريات!$B$5:$B$1048576,">="&'تقرير المشتريات'!$B$1,مشتريات!$B$5:$B$1048576,"<="&'تقرير المشتريات'!$B$2,مشتريات!$F$5:$F$1048576,مشتريات!F31) -> 0 | E31: =SUMIFS(مشتريات!$J$5:$J$1048576,مشتريات!$B$5:$B$1048576,">="&'تقرير المشتريات'!$B$1,مشتريات!$B$5:$B$1048576,"<="&'تقرير المشتريات'!$B$2,مشتريات!$F$5:$F$1048576,مشتريات!F31) -> 0
A32: صبغ اظافر | B32: قطع | C32: =SUMIFS(مشتريات!$H$5:$H$1048576,مشتريات!$B$5:$B$1048576,">="&'تقرير المشتريات'!$B$1,مشتريات!$B$5:$B$1048576,"<="&'تقرير المشتريات'!$B$2,مشتريات!$F$5:$F$1048576,مشتريات!F32) -> 0 | D32: =SUMIFS(مشتريات!$I$5:$I$1048576,مشتريات!$B$5:$B$1048576,">="&'تقرير المشتريات'!$B$1,مشتريات!$B$5:$B$1048576,"<="&'تقرير المشتريات'!$B$2,مشتريات!$F$5:$F$1048576,مشتريات!F32) -> 0 | E32: =SUMIFS(مشتريات!$J$5:$J$1048576,مشتريات!$B$5:$B$1048576,">="&'تقرير المشتريات'!$B$1,مشتريات!$B$5:$B$1048576,"<="&'تقرير المشتريات'!$B$2,مشتريات!$F$5:$F$1048576,مشتريات!F32) -> 0
A33: ماسكارة رموش | B33: قطع | C33: =SUMIFS(مشتريات!$H$5:$H$1048576,مشتريات!$B$5:$B$1048576,">="&'تقرير المشتريات'!$B$1,مشتريات!$B$5:$B$1048576,"<="&'تقرير المشتريات'!$B$2,مشتريات!$F$5:$F$1048576,مشتريات!F33) -> 0 | D33: =SUMIFS(مشتريات!$I$5:$I$1048576,مشتريات!$B$5:$B$1048576,">="&'تقرير المشتريات'!$B$1,مشتريات!$B$5:$B$1048576,"<="&'تقرير المشتريات'!$B$2,مشتريات!$F$5:$F$1048576,مشتريات!F33) -> 0 | E33: =SUMIFS(مشتريات!$J$5:$J$1048576,مشتريات!$B$5:$B$1048576,">="&'تقرير المشتريات'!$B$1,مشتريات!$B$5:$B$1048576,"<="&'تقرير المشتريات'!$B$2,مشتريات!$F$5:$F$1048576,مشتريات!F33) -> 0
A34: اظافر زلومة | B34: درزن | C34: =SUMIFS(مشتريات!$H$5:$H$1048576,مشتريات!$B$5:$B$1048576,">="&'تقرير المشتريات'!$B$1,مشتريات!$B$5:$B$1048576,"<="&'تقرير المشتريات'!$B$2,مشتريات!$F$5:$F$1048576,مشتريات!F34) -> 2 | D34: =SUMIFS(مشتريات!$I$5:$I$1048576,مشتريات!$B$5:$B$1048576,">="&'تقرير المشتريات'!$B$1,مشتريات!$B$5:$B$1048576,"<="&'تقرير المشتريات'!$B$2,مشتريات!$F$5:$F$1048576,مشتريات!F34) -> 1000 | E34: =SUMIFS(مشتريات!$J$5:$J$1048576,مشتريات!$B$5:$B$1048576,">="&'تقرير المشتريات'!$B$1,مشتريات!$B$5:$B$1048576,"<="&'تقرير المشتريات'!$B$2,مشتريات!$F$5:$F$1048576,مشتريات!F34) -> 2000
A35: صبغ اظافر not | B35: علب | C35: =SUMIFS(مشتريات!$H$5:$H$1048576,مشتريات!$B$5:$B$1048576,">="&'تقرير المشتريات'!$B$1,مشتريات!$B$5:$B$1048576,"<="&'تقرير المشتريات'!$B$2,مشتريات!$F$5:$F$1048576,مشتريات!F35) -> 2 | D35: =SUMIFS(مشتريات!$I$5:$I$1048576,مشتريات!$B$5:$B$1048576,">="&'تقرير المشتريات'!$B$1,مشتريات!$B$5:$B$1048576,"<="&'تقرير المشتريات'!$B$2,مشتريات!$F$5:$F$1048576,مشتريات!F35) -> 1500 | E35: =SUMIFS(مشتريات!$J$5:$J$1048576,مشتريات!$B$5:$B$1048576,">="&'تقرير المشتريات'!$B$1,مشتريات!$B$5:$B$1048576,"<="&'تقرير المشتريات'!$B$2,مشتريات!$F$5:$F$1048576,مشتريات!F35) -> 3000
A36: top matt | B36: درزن | C36: =SUMIFS(مشتريات!$H$5:$H$1048576,مشتريات!$B$5:$B$1048576,">="&'تقرير المشتريات'!$B$1,مشتريات!$B$5:$B$1048576,"<="&'تقرير المشتريات'!$B$2,مشتريات!$F$5:$F$1048576,مشتريات!F36) -> 1 | D36: =SUMIFS(مشتريات!$I$5:$I$1048576,مشتريات!$B$5:$B$1048576,">="&'تقرير المشتريات'!$B$1,مشتريات!$B$5:$B$1048576,"<="&'تقرير المشتريات'!$B$2,مشتريات!$F$5:$F$1048576,مشتريات!F36) -> 24000 | E36: =SUMIFS(مشتريات!$J$5:$J$1048576,مشتريات!$B$5:$B$1048576,">="&'تقرير المشتريات'!$B$1,مشتريات!$B$5:$B$1048576,"<="&'تقرير المشتريات'!$B$2,مشتريات!$F$5:$F$1048576,مشتريات!F36) -> 24000
A37: ستراس | B37: علب | C37: =SUMIFS(مشتريات!$H$5:$H$1048576,مشتريات!$B$5:$B$1048576,">="&'تقرير المشتريات'!$B$1,مشتريات!$B$5:$B$1048576,"<="&'تقرير المشتريات'!$B$2,مشتريات!$F$5:$F$1048576,مشتريات!F37) -> 28 | D37: =SUMIFS(مشتريات!$I$5:$I$1048576,مشتريات!$B$5:$B$1048576,">="&'تقرير المشتريات'!$B$1,مشتريات!$B$5:$B$1048576,"<="&'تقرير المشتريات'!$B$2,مشتريات!$F$5:$F$1048576,مشتريات!F37) -> 46595.2381 | E37: =SUMIFS(مشتريات!$J$5:$J$1048576,مشتريات!$B$5:$B$1048576,">="&'تقرير المشتريات'!$B$1,مشتريات!$B$5:$B$1048576,"<="&'تقرير المشتريات'!$B$2,مشتريات!$F$5:$F$1048576,مشتريات!F37) -> 196000
A38: اظافر قدم | B38: علب | C38: =SUMIFS(مشتريات!$H$5:$H$1048576,مشتريات!$B$5:$B$1048576,">="&'تقرير المشتريات'!$B$1,مشتريات!$B$5:$B$1048576,"<="&'تقرير المشتريات'!$B$2,مشتريات!$F$5:$F$1048576,مشتريات!F38) -> 3 | D38: =SUMIFS(مشتريات!$I$5:$I$1048576,مشتريات!$B$5:$B$1048576,">="&'تقرير المشتريات'!$B$1,مشتريات!$B$5:$B$1048576,"<="&'تقرير المشتريات'!$B$2,مشتريات!$F$5:$F$1048576,مشتريات!F38) -> 3000 | E38: =SUMIFS(مشتريات!$J$5:$J$1048576,مشتريات!$B$5:$B$1048576,">="&'تقرير المشتريات'!$B$1,مشتريات!$B$5:$B$1048576,"<="&'تقرير المشتريات'!$B$2,مشتريات!$F$5:$F$1048576,مشتريات!F38) -> 9000
A39: اظافر جويل | B39: علب | C39: =SUMIFS(مشتريات!$H$5:$H$1048576,مشتريات!$B$5:$B$1048576,">="&'تقرير المشتريات'!$B$1,مشتريات!$B$5:$B$1048576,"<="&'تقرير المشتريات'!$B$2,مشتريات!$F$5:$F$1048576,مشتريات!F39) -> 4 | D39: =SUMIFS(مشتريات!$I$5:$I$1048576,مشتريات!$B$5:$B$1048576,">="&'تقرير المشتريات'!$B$1,مشتريات!$B$5:$B$1048576,"<="&'تقرير المشتريات'!$B$2,مشتريات!$F$5:$F$1048576,مشتريات!F39) -> 3000 | E39: =SUMIFS(مشتريات!$J$5:$J$1048576,مشتريات!$B$5:$B$1048576,">="&'تقرير المشتريات'!$B$1,مشتريات!$B$5:$B$1048576,"<="&'تقرير المشتريات'!$B$2,مشتريات!$F$5:$F$1048576,مشتريات!F39) -> 12000
A40: ستراس | B40: درزن | C40: =SUMIFS(مشتريات!$H$5:$H$1048576,مشتريات!$B$5:$B$1048576,">="&'تقرير المشتريات'!$B$1,مشتريات!$B$5:$B$1048576,"<="&'تقرير المشتريات'!$B$2,مشتريات!$F$5:$F$1048576,مشتريات!F40) -> 28 | D40: =SUMIFS(مشتريات!$I$5:$I$1048576,مشتريات!$B$5:$B$1048576,">="&'تقرير المشتريات'!$B$1,مشتريات!$B$5:$B$1048576,"<="&'تقرير المشتريات'!$B$2,مشتريات!$F$5:$F$1048576,مشتريات!F40) -> 46595.2381 | E40: =SUMIFS(مشتريات!$J$5:$J$1048576,مشتريات!$B$5:$B$1048576,">="&'تقرير المشتريات'!$B$1,مشتريات!$B$5:$B$1048576,"<="&'تقرير المشتريات'!$B$2,مشتريات!$F$5:$F$1048576,مشتريات!F40) -> 196000
A41: كولدن روز | B41: درزن | C41: =SUMIFS(مشتريات!$H$5:$H$1048576,مشتريات!$B$5:$B$1048576,">="&'تقرير المشتريات'!$B$1,مشتريات!$B$5:$B$1048576,"<="&'تقرير المشتريات'!$B$2,مشتريات!$F$5:$F$1048576,مشتريات!F41) -> 1 | D41: =SUMIFS(مشتريات!$I$5:$I$1048576,مشتريات!$B$5:$B$1048576,">="&'تقرير المشتريات'!$B$1,مشتريات!$B$5:$B$1048576,"<="&'تقرير المشتريات'!$B$2,مشتريات!$F$5:$F$1048576,مشتريات!F41) -> 30000 | E41: =SUMIFS(مشتريات!$J$5:$J$1048576,مشتريات!$B$5:$B$1048576,">="&'تقرير المشتريات'!$B$1,مشتريات!$B$5:$B$1048576,"<="&'تقرير المشتريات'!$B$2,مشتريات!$F$5:$F$1048576,مشتريات!F41) -> 30000
A42: اظافر | B42: قطع | C42: =SUMIFS(مشتريات!$H$5:$H$1048576,مشتريات!$B$5:$B$1048576,">="&'تقرير المشتريات'!$B$1,مشتريات!$B$5:$B$1048576,"<="&'تقرير المشتريات'!$B$2,مشتريات!$F$5:$F$1048576,مشتريات!F42) -> 12 | D42: =SUMIFS(مشتريات!$I$5:$I$1048576,مشتريات!$B$5:$B$1048576,">="&'تقرير المشتريات'!$B$1,مشتريات!$B$5:$B$1048576,"<="&'تقرير المشتريات'!$B$2,مشتريات!$F$5:$F$1048576,مشتريات!F42) -> 1916.666667 | E42: =SUMIFS(مشتريات!$J$5:$J$1048576,مشتريات!$B$5:$B$1048576,">="&'تقرير المشتريات'!$B$1,مشتريات!$B$5:$B$1048576,"<="&'تقرير المشتريات'!$B$2,مشتريات!$F$5:$F$1048576,مشتريات!F42) -> 23000
A43: مبرد كهربائي | B43: قطع | C43: =SUMIFS(مشتريات!$H$5:$H$1048576,مشتريات!$B$5:$B$1048576,">="&'تقرير المشتريات'!$B$1,مشتريات!$B$5:$B$1048576,"<="&'تقرير المشتريات'!$B$2,مشتريات!$F$5:$F$1048576,مشتريات!F43) -> 1 | D43: =SUMIFS(مشتريات!$I$5:$I$1048576,مشتريات!$B$5:$B$1048576,">="&'تقرير المشتريات'!$B$1,مشتريات!$B$5:$B$1048576,"<="&'تقرير المشتريات'!$B$2,مشتريات!$F$5:$F$1048576,مشتريات!F43) -> 10000 | E43: =SUMIFS(مشتريات!$J$5:$J$1048576,مشتريات!$B$5:$B$1048576,">="&'تقرير المشتريات'!$B$1,مشتريات!$B$5:$B$1048576,"<="&'تقرير المشتريات'!$B$2,مشتريات!$F$5:$F$1048576,مشتريات!F43) -> 10000
A44: علب اظافر | B44: درازن | C44: =SUMIFS(مشتريات!$H$5:$H$1048576,مشتريات!$B$5:$B$1048576,">="&'تقرير المشتريات'!$B$1,مشتريات!$B$5:$B$1048576,"<="&'تقرير المشتريات'!$B$2,مشتريات!$F$5:$F$1048576,مشتريات!F44) -> 60 | D44: =SUMIFS(مشتريات!$I$5:$I$1048576,مشتريات!$B$5:$B$1048576,">="&'تقرير المشتريات'!$B$1,مشتريات!$B$5:$B$1048576,"<="&'تقرير المشتريات'!$B$2,مشتريات!$F$5:$F$1048576,مشتريات!F44) -> 6000 | E44: =SUMIFS(مشتريات!$J$5:$J$1048576,مشتريات!$B$5:$B$1048576,">="&'تقرير المشتريات'!$B$1,مشتريات!$B$5:$B$1048576,"<="&'تقرير المشتريات'!$B$2,مشتريات!$F$5:$F$1048576,مشتريات!F44) -> 360000
A45: ستراس | B45: درازن | C45: =SUMIFS(مشتريات!$H$5:$H$1048576,مشتريات!$B$5:$B$1048576,">="&'تقرير المشتريات'!$B$1,مشتريات!$B$5:$B$1048576,"<="&'تقرير المشتريات'!$B$2,مشتريات!$F$5:$F$1048576,مشتريات!F45) -> 28 | D45: =SUMIFS(مشتريات!$I$5:$I$1048576,مشتريات!$B$5:$B$1048576,">="&'تقرير المشتريات'!$B$1,مشتريات!$B$5:$B$1048576,"<="&'تقرير المشتريات'!$B$2,مشتريات!$F$5:$F$1048576,مشتريات!F45) -> 46595.2381 | E45: =SUMIFS(مشتريات!$J$5:$J$1048576,مشتريات!$B$5:$B$1048576,">="&'تقرير المشتريات'!$B$1,مشتريات!$B$5:$B$1048576,"<="&'تقرير المشتريات'!$B$2,مشتريات!$F$5:$F$1048576,مشتريات!F45) -> 196000
A46: ستراس | B46: درزن | C46: =SUMIFS(مشتريات!$H$5:$H$1048576,مشتريات!$B$5:$B$1048576,">="&'تقرير المشتريات'!$B$1,مشتريات!$B$5:$B$1048576,"<="&'تقرير المشتريات'!$B$2,مشتريات!$F$5:$F$1048576,مشتريات!F46) -> 28 | D46: =SUMIFS(مشتريات!$I$5:$I$1048576,مشتريات!$B$5:$B$1048576,">="&'تقرير المشتريات'!$B$1,مشتريات!$B$5:$B$1048576,"<="&'تقرير المشتريات'!$B$2,مشتريات!$F$5:$F$1048576,مشتريات!F46) -> 46595.2381 | E46: =SUMIFS(مشتريات!$J$5:$J$1048576,مشتريات!$B$5:$B$1048576,">="&'تقرير المشتريات'!$B$1,مشتريات!$B$5:$B$1048576,"<="&'تقرير المشتريات'!$B$2,مشتريات!$F$5:$F$1048576,مشتريات!F46) -> 196000
A47: ستراس | B47: درزن | C47: =SUMIFS(مشتريات!$H$5:$H$1048576,مشتريات!$B$5:$B$1048576,">="&'تقرير المشتريات'!$B$1,مشتريات!$B$5:$B$1048576,"<="&'تقرير المشتريات'!$B$2,مشتريات!$F$5:$F$1048576,مشتريات!F47) -> 28 | D47: =SUMIFS(مشتريات!$I$5:$I$1048576,مشتريات!$B$5:$B$1048576,">="&'تقرير المشتريات'!$B$1,مشتريات!$B$5:$B$1048576,"<="&'تقرير المشتريات'!$B$2,مشتريات!$F$5:$F$1048576,مشتريات!F47) -> 46595.2381 | E47: =SUMIFS(مشتريات!$J$5:$J$1048576,مشتريات!$B$5:$B$1048576,">="&'تقرير المشتريات'!$B$1,مشتريات!$B$5:$B$1048576,"<="&'تقرير المشتريات'!$B$2,مشتريات!$F$5:$F$1048576,مشتريات!F47) -> 196000
C48: =SUMIFS(مشتريات!$H$5:$H$1048576,مشتريات!$B$5:$B$1048576,">="&'تقرير المشتريات'!$B$1,مشتريات!$B$5:$B$1048576,"<="&'تقرير المشتريات'!$B$2,مشتريات!$F$5:$F$1048576,مشتريات!F48) -> 0 | D48: =SUMIFS(مشتريات!$I$5:$I$1048576,مشتريات!$B$5:$B$1048576,">="&'تقرير المشتريات'!$B$1,مشتريات!$B$5:$B$1048576,"<="&'تقرير المشتريات'!$B$2,مشتريات!$F$5:$F$1048576,مشتريات!F48) -> 0 | E48: =SUMIFS(مشتريات!$J$5:$J$1048576,مشتريات!$B$5:$B$1048576,">="&'تقرير المشتريات'!$B$1,مشتريات!$B$5:$B$1048576,"<="&'تقرير المشتريات'!$B$2,مشتريات!$F$5:$F$1048576,مشتريات!F48) -> 0
C49: =SUMIFS(مشتريات!$H$5:$H$1048576,مشتريات!$B$5:$B$1048576,">="&'تقرير المشتريات'!$B$1,مشتريات!$B$5:$B$1048576,"<="&'تقرير المشتريات'!$B$2,مشتريات!$F$5:$F$1048576,مشتريات!F49) -> 0 | D49: =SUMIFS(مشتريات!$I$5:$I$1048576,مشتريات!$B$5:$B$1048576,">="&'تقرير المشتريات'!$B$1,مشتريات!$B$5:$B$1048576,"<="&'تقرير المشتريات'!$B$2,مشتريات!$F$5:$F$1048576,مشتريات!F49) -> 0 | E49: =SUMIFS(مشتريات!$J$5:$J$1048576,مشتريات!$B$5:$B$1048576,">="&'تقرير المشتريات'!$B$1,مشتريات!$B$5:$B$1048576,"<="&'تقرير المشتريات'!$B$2,مشتريات!$F$5:$F$1048576,مشتريات!F49) -> 0
C50: =SUMIFS(مشتريات!$H$5:$H$1048576,مشتريات!$B$5:$B$1048576,">="&'تقرير المشتريات'!$B$1,مشتريات!$B$5:$B$1048576,"<="&'تقرير المشتريات'!$B$2,مشتريات!$F$5:$F$1048576,مشتريات!F50) -> 0 | D50: =SUMIFS(مشتريات!$I$5:$I$1048576,مشتريات!$B$5:$B$1048576,">="&'تقرير المشتريات'!$B$1,مشتريات!$B$5:$B$1048576,"<="&'تقرير المشتريات'!$B$2,مشتريات!$F$5:$F$1048576,مشتريات!F50) -> 0 | E50: =SUMIFS(مشتريات!$J$5:$J$1048576,مشتريات!$B$5:$B$1048576,">="&'تقرير المشتريات'!$B$1,مشتريات!$B$5:$B$1048576,"<="&'تقرير المشتريات'!$B$2,مشتريات!$F$5:$F$1048576,مشتريات!F50) -> 0
C51: =SUMIFS(مشتريات!$H$5:$H$1048576,مشتريات!$B$5:$B$1048576,">="&'تقرير المشتريات'!$B$1,مشتريات!$B$5:$B$1048576,"<="&'تقرير المشتريات'!$B$2,مشتريات!$F$5:$F$1048576,مشتريات!F51) -> 0 | D51: =SUMIFS(مشتريات!$I$5:$I$1048576,مشتريات!$B$5:$B$1048576,">="&'تقرير المشتريات'!$B$1,مشتريات!$B$5:$B$1048576,"<="&'تقرير المشتريات'!$B$2,مشتريات!$F$5:$F$1048576,مشتريات!F51) -> 0 | E51: =SUMIFS(مشتريات!$J$5:$J$1048576,مشتريات!$B$5:$B$1048576,">="&'تقرير المشتريات'!$B$1,مشتريات!$B$5:$B$1048576,"<="&'تقرير المشتريات'!$B$2,مشتريات!$F$5:$F$1048576,مشتريات!F51) -> 0
C52: =SUMIFS(مشتريات!$H$5:$H$1048576,مشتريات!$B$5:$B$1048576,">="&'تقرير المشتريات'!$B$1,مشتريات!$B$5:$B$1048576,"<="&'تقرير المشتريات'!$B$2,مشتريات!$F$5:$F$1048576,مشتريات!F52) -> 0 | D52: =SUMIFS(مشتريات!$I$5:$I$1048576,مشتريات!$B$5:$B$1048576,">="&'تقرير المشتريات'!$B$1,مشتريات!$B$5:$B$1048576,"<="&'تقرير المشتريات'!$B$2,مشتريات!$F$5:$F$1048576,مشتريات!F52) -> 0 | E52: =SUMIFS(مشتريات!$J$5:$J$1048576,مشتريات!$B$5:$B$1048576,">="&'تقرير المشتريات'!$B$1,مشتريات!$B$5:$B$1048576,"<="&'تقرير المشتريات'!$B$2,مشتريات!$F$5:$F$1048576,مشتريات!F52) -> 0
C53: =SUMIFS(مشتريات!$H$5:$H$1048576,مشتريات!$B$5:$B$1048576,">="&'تقرير المشتريات'!$B$1,مشتريات!$B$5:$B$1048576,"<="&'تقرير المشتريات'!$B$2,مشتريات!$F$5:$F$1048576,مشتريات!F53) -> 0 | D53: =SUMIFS(مشتريات!$I$5:$I$1048576,مشتريات!$B$5:$B$1048576,">="&'تقرير المشتريات'!$B$1,مشتريات!$B$5:$B$1048576,"<="&'تقرير المشتريات'!$B$2,مشتريات!$F$5:$F$1048576,مشتريات!F53) -> 0 | E53: =SUMIFS(مشتريات!$J$5:$J$1048576,مشتريات!$B$5:$B$1048576,">="&'تقرير المشتريات'!$B$1,مشتريات!$B$5:$B$1048576,"<="&'تقرير المشتريات'!$B$2,مشتريات!$F$5:$F$1048576,مشتريات!F53) -> 0
C54: =SUMIFS(مشتريات!$H$5:$H$1048576,مشتريات!$B$5:$B$1048576,">="&'تقرير المشتريات'!$B$1,مشتريات!$B$5:$B$1048576,"<="&'تقرير المشتريات'!$B$2,مشتريات!$F$5:$F$1048576,مشتريات!F54) -> 0 | D54: =SUMIFS(مشتريات!$I$5:$I$1048576,مشتريات!$B$5:$B$1048576,">="&'تقرير المشتريات'!$B$1,مشتريات!$B$5:$B$1048576,"<="&'تقرير المشتريات'!$B$2,مشتريات!$F$5:$F$1048576,مشتريات!F54) -> 0 | E54: =SUMIFS(مشتريات!$J$5:$J$1048576,مشتريات!$B$5:$B$1048576,">="&'تقرير المشتريات'!$B$1,مشتريات!$B$5:$B$1048576,"<="&'تقرير المشتريات'!$B$2,مشتريات!$F$5:$F$1048576,مشتريات!F54) -> 0
C55: =SUMIFS(مشتريات!$H$5:$H$1048576,مشتريات!$B$5:$B$1048576,">="&'تقرير المشتريات'!$B$1,مشتريات!$B$5:$B$1048576,"<="&'تقرير المشتريات'!$B$2,مشتريات!$F$5:$F$1048576,مشتريات!F55) -> 0 | D55: =SUMIFS(مشتريات!$I$5:$I$1048576,مشتريات!$B$5:$B$1048576,">="&'تقرير المشتريات'!$B$1,مشتريات!$B$5:$B$1048576,"<="&'تقرير المشتريات'!$B$2,مشتريات!$F$5:$F$1048576,مشتريات!F55) -> 0 | E55: =SUMIFS(مشتريات!$J$5:$J$1048576,مشتريات!$B$5:$B$1048576,">="&'تقرير المشتريات'!$B$1,مشتريات!$B$5:$B$1048576,"<="&'تقرير المشتريات'!$B$2,مشتريات!$F$5:$F$1048576,مشتريات!F55) -> 0
C56: =SUMIFS(مشتريات!$H$5:$H$1048576,مشتريات!$B$5:$B$1048576,">="&'تقرير المشتريات'!$B$1,مشتريات!$B$5:$B$1048576,"<="&'تقرير المشتريات'!$B$2,مشتريات!$F$5:$F$1048576,مشتريات!F56) -> 0 | D56: =SUMIFS(مشتريات!$I$5:$I$1048576,مشتريات!$B$5:$B$1048576,">="&'تقرير المشتريات'!$B$1,مشتريات!$B$5:$B$1048576,"<="&'تقرير المشتريات'!$B$2,مشتريات!$F$5:$F$1048576,مشتريات!F56) -> 0 | E56: =SUMIFS(مشتريات!$J$5:$J$1048576,مشتريات!$B$5:$B$1048576,">="&'تقرير المشتريات'!$B$1,مشتريات!$B$5:$B$1048576,"<="&'تقرير المشتريات'!$B$2,مشتريات!$F$5:$F$1048576,مشتريات!F56) -> 0
C57: =SUMIFS(مشتريات!$H$5:$H$1048576,مشتريات!$B$5:$B$1048576,">="&'تقرير المشتريات'!$B$1,مشتريات!$B$5:$B$1048576,"<="&'تقرير المشتريات'!$B$2,مشتريات!$F$5:$F$1048576,مشتريات!F57) -> 0 | D57: =SUMIFS(مشتريات!$I$5:$I$1048576,مشتريات!$B$5:$B$1048576,">="&'تقرير المشتريات'!$B$1,مشتريات!$B$5:$B$1048576,"<="&'تقرير المشتريات'!$B$2,مشتريات!$F$5:$F$1048576,مشتريات!F57) -> 0 | E57: =SUMIFS(مشتريات!$J$5:$J$1048576,مشتريات!$B$5:$B$1048576,">="&'تقرير المشتريات'!$B$1,مشتريات!$B$5:$B$1048576,"<="&'تقرير المشتريات'!$B$2,مشتريات!$F$5:$F$1048576,مشتريات!F57) -> 0
C58: =SUMIFS(مشتريات!$H$5:$H$1048576,مشتريات!$B$5:$B$1048576,">="&'تقرير المشتريات'!$B$1,مشتريات!$B$5:$B$1048576,"<="&'تقرير المشتريات'!$B$2,مشتريات!$F$5:$F$1048576,مشتريات!F58) -> 0 | D58: =SUMIFS(مشتريات!$I$5:$I$1048576,مشتريات!$B$5:$B$1048576,">="&'تقرير المشتريات'!$B$1,مشتريات!$B$5:$B$1048576,"<="&'تقرير المشتريات'!$B$2,مشتريات!$F$5:$F$1048576,مشتريات!F58) -> 0 | E58: =SUMIFS(مشتريات!$J$5:$J$1048576,مشتريات!$B$5:$B$1048576,">="&'تقرير المشتريات'!$B$1,مشتريات!$B$5:$B$1048576,"<="&'تقرير المشتريات'!$B$2,مشتريات!$F$5:$F$1048576,مشتريات!F58) -> 0
C59: =SUMIFS(مشتريات!$H$5:$H$1048576,مشتريات!$B$5:$B$1048576,">="&'تقرير المشتريات'!$B$1,مشتريات!$B$5:$B$1048576,"<="&'تقرير المشتريات'!$B$2,مشتريات!$F$5:$F$1048576,مشتريات!F59) -> 0 | D59: =SUMIFS(مشتريات!$I$5:$I$1048576,مشتريات!$B$5:$B$1048576,">="&'تقرير المشتريات'!$B$1,مشتريات!$B$5:$B$1048576,"<="&'تقرير المشتريات'!$B$2,مشتريات!$F$5:$F$1048576,مشتريات!F59) -> 0 | E59: =SUMIFS(مشتريات!$J$5:$J$1048576,مشتريات!$B$5:$B$1048576,">="&'تقرير المشتريات'!$B$1,مشتريات!$B$5:$B$1048576,"<="&'تقرير المشتريات'!$B$2,مشتريات!$F$5:$F$1048576,مشتريات!F59) -> 0
C60: =SUMIFS(مشتريات!$H$5:$H$1048576,مشتريات!$B$5:$B$1048576,">="&'تقرير المشتريات'!$B$1,مشتريات!$B$5:$B$1048576,"<="&'تقرير المشتريات'!$B$2,مشتريات!$F$5:$F$1048576,مشتريات!F60) -> 0 | D60: =SUMIFS(مشتريات!$I$5:$I$1048576,مشتريات!$B$5:$B$1048576,">="&'تقرير المشتريات'!$B$1,مشتريات!$B$5:$B$1048576,"<="&'تقرير المشتريات'!$B$2,مشتريات!$F$5:$F$1048576,مشتريات!F60) -> 0 | E60: =SUMIFS(مشتريات!$J$5:$J$1048576,مشتريات!$B$5:$B$1048576,">="&'تقرير المشتريات'!$B$1,مشتريات!$B$5:$B$1048576,"<="&'تقرير المشتريات'!$B$2,مشتريات!$F$5:$F$1048576,مشتريات!F60) -> 0
C61: =SUMIFS(مشتريات!$H$5:$H$1048576,مشتريات!$B$5:$B$1048576,">="&'تقرير المشتريات'!$B$1,مشتريات!$B$5:$B$1048576,"<="&'تقرير المشتريات'!$B$2,مشتريات!$F$5:$F$1048576,مشتريات!F61) -> 0 | D61: =SUMIFS(مشتريات!$I$5:$I$1048576,مشتريات!$B$5:$B$1048576,">="&'تقرير المشتريات'!$B$1,مشتريات!$B$5:$B$1048576,"<="&'تقرير المشتريات'!$B$2,مشتريات!$F$5:$F$1048576,مشتريات!F61) -> 0 | E61: =SUMIFS(مشتريات!$J$5:$J$1048576,مشتريات!$B$5:$B$1048576,">="&'تقرير المشتريات'!$B$1,مشتريات!$B$5:$B$1048576,"<="&'تقرير المشتريات'!$B$2,مشتريات!$F$5:$F$1048576,مشتريات!F61) -> 0
C62: =SUMIFS(مشتريات!$H$5:$H$1048576,مشتريات!$B$5:$B$1048576,">="&'تقرير المشتريات'!$B$1,مشتريات!$B$5:$B$1048576,"<="&'تقرير المشتريات'!$B$2,مشتريات!$F$5:$F$1048576,مشتريات!F62) -> 0 | D62: =SUMIFS(مشتريات!$I$5:$I$1048576,مشتريات!$B$5:$B$1048576,">="&'تقرير المشتريات'!$B$1,مشتريات!$B$5:$B$1048576,"<="&'تقرير المشتريات'!$B$2,مشتريات!$F$5:$F$1048576,مشتريات!F62) -> 0 | E62: =SUMIFS(مشتريات!$J$5:$J$1048576,مشتريات!$B$5:$B$1048576,">="&'تقرير المشتريات'!$B$1,مشتريات!$B$5:$B$1048576,"<="&'تقرير المشتريات'!$B$2,مشتريات!$F$5:$F$1048576,مشتريات!F62) -> 0
C63: =SUMIFS(مشتريات!$H$5:$H$1048576,مشتريات!$B$5:$B$1048576,">="&'تقرير المشتريات'!$B$1,مشتريات!$B$5:$B$1048576,"<="&'تقرير المشتريات'!$B$2,مشتريات!$F$5:$F$1048576,مشتريات!F63) -> 0 | D63: =SUMIFS(مشتريات!$I$5:$I$1048576,مشتريات!$B$5:$B$1048576,">="&'تقرير المشتريات'!$B$1,مشتريات!$B$5:$B$1048576,"<="&'تقرير المشتريات'!$B$2,مشتريات!$F$5:$F$1048576,مشتريات!F63) -> 0 | E63: =SUMIFS(مشتريات!$J$5:$J$1048576,مشتريات!$B$5:$B$1048576,">="&'تقرير المشتريات'!$B$1,مشتريات!$B$5:$B$1048576,"<="&'تقرير المشتريات'!$B$2,مشتريات!$F$5:$F$1048576,مشتريات!F63) -> 0
C64: =SUMIFS(مشتريات!$H$5:$H$1048576,مشتريات!$B$5:$B$1048576,">="&'تقرير المشتريات'!$B$1,مشتريات!$B$5:$B$1048576,"<="&'تقرير المشتريات'!$B$2,مشتريات!$F$5:$F$1048576,مشتريات!F64) -> 0 | D64: =SUMIFS(مشتريات!$I$5:$I$1048576,مشتريات!$B$5:$B$1048576,">="&'تقرير المشتريات'!$B$1,مشتريات!$B$5:$B$1048576,"<="&'تقرير المشتريات'!$B$2,مشتريات!$F$5:$F$1048576,مشتريات!F64) -> 0 | E64: =SUMIFS(مشتريات!$J$5:$J$1048576,مشتريات!$B$5:$B$1048576,">="&'تقرير المشتريات'!$B$1,مشتريات!$B$5:$B$1048576,"<="&'تقرير المشتريات'!$B$2,مشتريات!$F$5:$F$1048576,مشتريات!F64) -> 0
C65: =SUMIFS(مشتريات!$H$5:$H$1048576,مشتريات!$B$5:$B$1048576,">="&'تقرير المشتريات'!$B$1,مشتريات!$B$5:$B$1048576,"<="&'تقرير المشتريات'!$B$2,مشتريات!$F$5:$F$1048576,مشتريات!F65) -> 0 | D65: =SUMIFS(مشتريات!$I$5:$I$1048576,مشتريات!$B$5:$B$1048576,">="&'تقرير المشتريات'!$B$1,مشتريات!$B$5:$B$1048576,"<="&'تقرير المشتريات'!$B$2,مشتريات!$F$5:$F$1048576,مشتريات!F65) -> 0 | E65: =SUMIFS(مشتريات!$J$5:$J$1048576,مشتريات!$B$5:$B$1048576,">="&'تقرير المشتريات'!$B$1,مشتريات!$B$5:$B$1048576,"<="&'تقرير المشتريات'!$B$2,مشتريات!$F$5:$F$1048576,مشتريات!F65) -> 0
C66: =SUMIFS(مشتريات!$H$5:$H$1048576,مشتريات!$B$5:$B$1048576,">="&'تقرير المشتريات'!$B$1,مشتريات!$B$5:$B$1048576,"<="&'تقرير المشتريات'!$B$2,مشتريات!$F$5:$F$1048576,مشتريات!F66) -> 0 | D66: =SUMIFS(مشتريات!$I$5:$I$1048576,مشتريات!$B$5:$B$1048576,">="&'تقرير المشتريات'!$B$1,مشتريات!$B$5:$B$1048576,"<="&'تقرير المشتريات'!$B$2,مشتريات!$F$5:$F$1048576,مشتريات!F66) -> 0 | E66: =SUMIFS(مشتريات!$J$5:$J$1048576,مشتريات!$B$5:$B$1048576,">="&'تقرير المشتريات'!$B$1,مشتريات!$B$5:$B$1048576,"<="&'تقرير المشتريات'!$B$2,مشتريات!$F$5:$F$1048576,مشتريات!F66) -> 0
C67: =SUMIFS(مشتريات!$H$5:$H$1048576,مشتريات!$B$5:$B$1048576,">="&'تقرير المشتريات'!$B$1,مشتريات!$B$5:$B$1048576,"<="&'تقرير المشتريات'!$B$2,مشتريات!$F$5:$F$1048576,مشتريات!F67) -> 0 | D67: =SUMIFS(مشتريات!$I$5:$I$1048576,مشتريات!$B$5:$B$1048576,">="&'تقرير المشتريات'!$B$1,مشتريات!$B$5:$B$1048576,"<="&'تقرير المشتريات'!$B$2,مشتريات!$F$5:$F$1048576,مشتريات!F67) -> 0 | E67: =SUMIFS(مشتريات!$J$5:$J$1048576,مشتريات!$B$5:$B$1048576,">="&'تقرير المشتريات'!$B$1,مشتريات!$B$5:$B$1048576,"<="&'تقرير المشتريات'!$B$2,مشتريات!$F$5:$F$1048576,مشتريات!F67) -> 0
C68: =SUMIFS(مشتريات!$H$5:$H$1048576,مشتريات!$B$5:$B$1048576,">="&'تقرير المشتريات'!$B$1,مشتريات!$B$5:$B$1048576,"<="&'تقرير المشتريات'!$B$2,مشتريات!$F$5:$F$1048576,مشتريات!F68) -> 0 | D68: =SUMIFS(مشتريات!$I$5:$I$1048576,مشتريات!$B$5:$B$1048576,">="&'تقرير المشتريات'!$B$1,مشتريات!$B$5:$B$1048576,"<="&'تقرير المشتريات'!$B$2,مشتريات!$F$5:$F$1048576,مشتريات!F68) -> 0 | E68: =SUMIFS(مشتريات!$J$5:$J$1048576,مشتريات!$B$5:$B$1048576,">="&'تقرير المشتريات'!$B$1,مشتريات!$B$5:$B$1048576,"<="&'تقرير المشتريات'!$B$2,مشتريات!$F$5:$F$1048576,مشتريات!F68) -> 0
C69: =SUMIFS(مشتريات!$H$5:$H$1048576,مشتريات!$B$5:$B$1048576,">="&'تقرير المشتريات'!$B$1,مشتريات!$B$5:$B$1048576,"<="&'تقرير المشتريات'!$B$2,مشتريات!$F$5:$F$1048576,مشتريات!F69) -> 0 | D69: =SUMIFS(مشتريات!$I$5:$I$1048576,مشتريات!$B$5:$B$1048576,">="&'تقرير المشتريات'!$B$1,مشتريات!$B$5:$B$1048576,"<="&'تقرير المشتريات'!$B$2,مشتريات!$F$5:$F$1048576,مشتريات!F69) -> 0 | E69: =SUMIFS(مشتريات!$J$5:$J$1048576,مشتريات!$B$5:$B$1048576,">="&'تقرير المشتريات'!$B$1,مشتريات!$B$5:$B$1048576,"<="&'تقرير المشتريات'!$B$2,مشتريات!$F$5:$F$1048576,مشتريات!F69) -> 0
C70: =SUMIFS(مشتريات!$H$5:$H$1048576,مشتريات!$B$5:$B$1048576,">="&'تقرير المشتريات'!$B$1,مشتريات!$B$5:$B$1048576,"<="&'تقرير المشتريات'!$B$2,مشتريات!$F$5:$F$1048576,مشتريات!F70) -> 0 | D70: =SUMIFS(مشتريات!$I$5:$I$1048576,مشتريات!$B$5:$B$1048576,">="&'تقرير المشتريات'!$B$1,مشتريات!$B$5:$B$1048576,"<="&'تقرير المشتريات'!$B$2,مشتريات!$F$5:$F$1048576,مشتريات!F70) -> 0 | E70: =SUMIFS(مشتريات!$J$5:$J$1048576,مشتريات!$B$5:$B$1048576,">="&'تقرير المشتريات'!$B$1,مشتريات!$B$5:$B$1048576,"<="&'تقرير المشتريات'!$B$2,مشتريات!$F$5:$F$1048576,مشتريات!F70) -> 0
C71: =SUMIFS(مشتريات!$H$5:$H$1048576,مشتريات!$B$5:$B$1048576,">="&'تقرير المشتريات'!$B$1,مشتريات!$B$5:$B$1048576,"<="&'تقرير المشتريات'!$B$2,مشتريات!$F$5:$F$1048576,مشتريات!F71) -> 0 | D71: =SUMIFS(مشتريات!$I$5:$I$1048576,مشتريات!$B$5:$B$1048576,">="&'تقرير المشتريات'!$B$1,مشتريات!$B$5:$B$1048576,"<="&'تقرير المشتريات'!$B$2,مشتريات!$F$5:$F$1048576,مشتريات!F71) -> 0 | E71: =SUMIFS(مشتريات!$J$5:$J$1048576,مشتريات!$B$5:$B$1048576,">="&'تقرير المشتريات'!$B$1,مشتريات!$B$5:$B$1048576,"<="&'تقرير المشتريات'!$B$2,مشتريات!$F$5:$F$1048576,مشتريات!F71) -> 0
C72: =SUMIFS(مشتريات!$H$5:$H$1048576,مشتريات!$B$5:$B$1048576,">="&'تقرير المشتريات'!$B$1,مشتريات!$B$5:$B$1048576,"<="&'تقرير المشتريات'!$B$2,مشتريات!$F$5:$F$1048576,مشتريات!F72) -> 0 | D72: =SUMIFS(مشتريات!$I$5:$I$1048576,مشتريات!$B$5:$B$1048576,">="&'تقرير المشتريات'!$B$1,مشتريات!$B$5:$B$1048576,"<="&'تقرير المشتريات'!$B$2,مشتريات!$F$5:$F$1048576,مشتريات!F72) -> 0 | E72: =SUMIFS(مشتريات!$J$5:$J$1048576,مشتريات!$B$5:$B$1048576,">="&'تقرير المشتريات'!$B$1,مشتريات!$B$5:$B$1048576,"<="&'تقرير المشتريات'!$B$2,مشتريات!$F$5:$F$1048576,مشتريات!F72) -> 0
C73: =SUMIFS(مشتريات!$H$5:$H$1048576,مشتريات!$B$5:$B$1048576,">="&'تقرير المشتريات'!$B$1,مشتريات!$B$5:$B$1048576,"<="&'تقرير المشتريات'!$B$2,مشتريات!$F$5:$F$1048576,مشتريات!F73) -> 0 | D73: =SUMIFS(مشتريات!$I$5:$I$1048576,مشتريات!$B$5:$B$1048576,">="&'تقرير المشتريات'!$B$1,مشتريات!$B$5:$B$1048576,"<="&'تقرير المشتريات'!$B$2,مشتريات!$F$5:$F$1048576,مشتريات!F73) -> 0 | E73: =SUMIFS(مشتريات!$J$5:$J$1048576,مشتريات!$B$5:$B$1048576,">="&'تقرير المشتريات'!$B$1,مشتريات!$B$5:$B$1048576,"<="&'تقرير المشتريات'!$B$2,مشتريات!$F$5:$F$1048576,مشتريات!F73) -> 0
C74: =SUMIFS(مشتريات!$H$5:$H$1048576,مشتريات!$B$5:$B$1048576,">="&'تقرير المشتريات'!$B$1,مشتريات!$B$5:$B$1048576,"<="&'تقرير المشتريات'!$B$2,مشتريات!$F$5:$F$1048576,مشتريات!F74) -> 0 | D74: =SUMIFS(مشتريات!$I$5:$I$1048576,مشتريات!$B$5:$B$1048576,">="&'تقرير المشتريات'!$B$1,مشتريات!$B$5:$B$1048576,"<="&'تقرير المشتريات'!$B$2,مشتريات!$F$5:$F$1048576,مشتريات!F74) -> 0 | E74: =SUMIFS(مشتريات!$J$5:$J$1048576,مشتريات!$B$5:$B$1048576,">="&'تقرير المشتريات'!$B$1,مشتريات!$B$5:$B$1048576,"<="&'تقرير المشتريات'!$B$2,مشتريات!$F$5:$F$1048576,مشتريات!F74) -> 0
C75: =SUMIFS(مشتريات!$H$5:$H$1048576,مشتريات!$B$5:$B$1048576,">="&'تقرير المشتريات'!$B$1,مشتريات!$B$5:$B$1048576,"<="&'تقرير المشتريات'!$B$2,مشتريات!$F$5:$F$1048576,مشتريات!F75) -> 0 | D75: =SUMIFS(مشتريات!$I$5:$I$1048576,مشتريات!$B$5:$B$1048576,">="&'تقرير المشتريات'!$B$1,مشتريات!$B$5:$B$1048576,"<="&'تقرير المشتريات'!$B$2,مشتريات!$F$5:$F$1048576,مشتريات!F75) -> 0 | E75: =SUMIFS(مشتريات!$J$5:$J$1048576,مشتريات!$B$5:$B$1048576,">="&'تقرير المشتريات'!$B$1,مشتريات!$B$5:$B$1048576,"<="&'تقرير المشتريات'!$B$2,مشتريات!$F$5:$F$1048576,مشتريات!F75) -> 0
C76: =SUMIFS(مشتريات!$H$5:$H$1048576,مشتريات!$B$5:$B$1048576,">="&'تقرير المشتريات'!$B$1,مشتريات!$B$5:$B$1048576,"<="&'تقرير المشتريات'!$B$2,مشتريات!$F$5:$F$1048576,مشتريات!F76) -> 0 | D76: =SUMIFS(مشتريات!$I$5:$I$1048576,مشتريات!$B$5:$B$1048576,">="&'تقرير المشتريات'!$B$1,مشتريات!$B$5:$B$1048576,"<="&'تقرير المشتريات'!$B$2,مشتريات!$F$5:$F$1048576,مشتريات!F76) -> 0 | E76: =SUMIFS(مشتريات!$J$5:$J$1048576,مشتريات!$B$5:$B$1048576,">="&'تقرير المشتريات'!$B$1,مشتريات!$B$5:$B$1048576,"<="&'تقرير المشتريات'!$B$2,مشتريات!$F$5:$F$1048576,مشتريات!F76) -> 0
C77: =SUMIFS(مشتريات!$H$5:$H$1048576,مشتريات!$B$5:$B$1048576,">="&'تقرير المشتريات'!$B$1,مشتريات!$B$5:$B$1048576,"<="&'تقرير المشتريات'!$B$2,مشتريات!$F$5:$F$1048576,مشتريات!F77) -> 0 | D77: =SUMIFS(مشتريات!$I$5:$I$1048576,مشتريات!$B$5:$B$1048576,">="&'تقرير المشتريات'!$B$1,مشتريات!$B$5:$B$1048576,"<="&'تقرير المشتريات'!$B$2,مشتريات!$F$5:$F$1048576,مشتريات!F77) -> 0 | E77: =SUMIFS(مشتريات!$J$5:$J$1048576,مشتريات!$B$5:$B$1048576,">="&'تقرير المشتريات'!$B$1,مشتريات!$B$5:$B$1048576,"<="&'تقرير المشتريات'!$B$2,مشتريات!$F$5:$F$1048576,مشتريات!F77) -> 0
C78: =SUMIFS(مشتريات!$H$5:$H$1048576,مشتريات!$B$5:$B$1048576,">="&'تقرير المشتريات'!$B$1,مشتريات!$B$5:$B$1048576,"<="&'تقرير المشتريات'!$B$2,مشتريات!$F$5:$F$1048576,مشتريات!F78) -> 0 | D78: =SUMIFS(مشتريات!$I$5:$I$1048576,مشتريات!$B$5:$B$1048576,">="&'تقرير المشتريات'!$B$1,مشتريات!$B$5:$B$1048576,"<="&'تقرير المشتريات'!$B$2,مشتريات!$F$5:$F$1048576,مشتريات!F78) -> 0 | E78: =SUMIFS(مشتريات!$J$5:$J$1048576,مشتريات!$B$5:$B$1048576,">="&'تقرير المشتريات'!$B$1,مشتريات!$B$5:$B$1048576,"<="&'تقرير المشتريات'!$B$2,مشتريات!$F$5:$F$1048576,مشتريات!F78) -> 0
C79: =SUMIFS(مشتريات!$H$5:$H$1048576,مشتريات!$B$5:$B$1048576,">="&'تقرير المشتريات'!$B$1,مشتريات!$B$5:$B$1048576,"<="&'تقرير المشتريات'!$B$2,مشتريات!$F$5:$F$1048576,مشتريات!F79) -> 0 | D79: =SUMIFS(مشتريات!$I$5:$I$1048576,مشتريات!$B$5:$B$1048576,">="&'تقرير المشتريات'!$B$1,مشتريات!$B$5:$B$1048576,"<="&'تقرير المشتريات'!$B$2,مشتريات!$F$5:$F$1048576,مشتريات!F79) -> 0 | E79: =SUMIFS(مشتريات!$J$5:$J$1048576,مشتريات!$B$5:$B$1048576,">="&'تقرير المشتريات'!$B$1,مشتريات!$B$5:$B$1048576,"<="&'تقرير المشتريات'!$B$2,مشتريات!$F$5:$F$1048576,مشتريات!F79) -> 0
C80: =SUMIFS(مشتريات!$H$5:$H$1048576,مشتريات!$B$5:$B$1048576,">="&'تقرير المشتريات'!$B$1,مشتريات!$B$5:$B$1048576,"<="&'تقرير المشتريات'!$B$2,مشتريات!$F$5:$F$1048576,مشتريات!F80) -> 0 | D80: =SUMIFS(مشتريات!$I$5:$I$1048576,مشتريات!$B$5:$B$1048576,">="&'تقرير المشتريات'!$B$1,مشتريات!$B$5:$B$1048576,"<="&'تقرير المشتريات'!$B$2,مشتريات!$F$5:$F$1048576,مشتريات!F80) -> 0 | E80: =SUMIFS(مشتريات!$J$5:$J$1048576,مشتريات!$B$5:$B$1048576,">="&'تقرير المشتريات'!$B$1,مشتريات!$B$5:$B$1048576,"<="&'تقرير المشتريات'!$B$2,مشتريات!$F$5:$F$1048576,مشتريات!F80) -> 0
C81: =SUMIFS(مشتريات!$H$5:$H$1048576,مشتريات!$B$5:$B$1048576,">="&'تقرير المشتريات'!$B$1,مشتريات!$B$5:$B$1048576,"<="&'تقرير المشتريات'!$B$2,مشتريات!$F$5:$F$1048576,مشتريات!F81) -> 0 | D81: =SUMIFS(مشتريات!$I$5:$I$1048576,مشتريات!$B$5:$B$1048576,">="&'تقرير المشتريات'!$B$1,مشتريات!$B$5:$B$1048576,"<="&'تقرير المشتريات'!$B$2,مشتريات!$F$5:$F$1048576,مشتريات!F81) -> 0 | E81: =SUMIFS(مشتريات!$J$5:$J$1048576,مشتريات!$B$5:$B$1048576,">="&'تقرير المشتريات'!$B$1,مشتريات!$B$5:$B$1048576,"<="&'تقرير المشتريات'!$B$2,مشتريات!$F$5:$F$1048576,مشتريات!F81) -> 0
C82: =SUMIFS(مشتريات!$H$5:$H$1048576,مشتريات!$B$5:$B$1048576,">="&'تقرير المشتريات'!$B$1,مشتريات!$B$5:$B$1048576,"<="&'تقرير المشتريات'!$B$2,مشتريات!$F$5:$F$1048576,مشتريات!F82) -> 0 | D82: =SUMIFS(مشتريات!$I$5:$I$1048576,مشتريات!$B$5:$B$1048576,">="&'تقرير المشتريات'!$B$1,مشتريات!$B$5:$B$1048576,"<="&'تقرير المشتريات'!$B$2,مشتريات!$F$5:$F$1048576,مشتريات!F82) -> 0 | E82: =SUMIFS(مشتريات!$J$5:$J$1048576,مشتريات!$B$5:$B$1048576,">="&'تقرير المشتريات'!$B$1,مشتريات!$B$5:$B$1048576,"<="&'تقرير المشتريات'!$B$2,مشتريات!$F$5:$F$1048576,مشتريات!F82) -> 0
C83: =SUMIFS(مشتريات!$H$5:$H$1048576,مشتريات!$B$5:$B$1048576,">="&'تقرير المشتريات'!$B$1,مشتريات!$B$5:$B$1048576,"<="&'تقرير المشتريات'!$B$2,مشتريات!$F$5:$F$1048576,مشتريات!F83) -> 0 | D83: =SUMIFS(مشتريات!$I$5:$I$1048576,مشتريات!$B$5:$B$1048576,">="&'تقرير المشتريات'!$B$1,مشتريات!$B$5:$B$1048576,"<="&'تقرير المشتريات'!$B$2,مشتريات!$F$5:$F$1048576,مشتريات!F83) -> 0 | E83: =SUMIFS(مشتريات!$J$5:$J$1048576,مشتريات!$B$5:$B$1048576,">="&'تقرير المشتريات'!$B$1,مشتريات!$B$5:$B$1048576,"<="&'تقرير المشتريات'!$B$2,مشتريات!$F$5:$F$1048576,مشتريات!F83) -> 0
C84: =SUMIFS(مشتريات!$H$5:$H$1048576,مشتريات!$B$5:$B$1048576,">="&'تقرير المشتريات'!$B$1,مشتريات!$B$5:$B$1048576,"<="&'تقرير المشتريات'!$B$2,مشتريات!$F$5:$F$1048576,مشتريات!F84) -> 0 | D84: =SUMIFS(مشتريات!$I$5:$I$1048576,مشتريات!$B$5:$B$1048576,">="&'تقرير المشتريات'!$B$1,مشتريات!$B$5:$B$1048576,"<="&'تقرير المشتريات'!$B$2,مشتريات!$F$5:$F$1048576,مشتريات!F84) -> 0 | E84: =SUMIFS(مشتريات!$J$5:$J$1048576,مشتريات!$B$5:$B$1048576,">="&'تقرير المشتريات'!$B$1,مشتريات!$B$5:$B$1048576,"<="&'تقرير المشتريات'!$B$2,مشتريات!$F$5:$F$1048576,مشتريات!F84) -> 0
C85: =SUMIFS(مشتريات!$H$5:$H$1048576,مشتريات!$B$5:$B$1048576,">="&'تقرير المشتريات'!$B$1,مشتريات!$B$5:$B$1048576,"<="&'تقرير المشتريات'!$B$2,مشتريات!$F$5:$F$1048576,مشتريات!F85) -> 0 | D85: =SUMIFS(مشتريات!$I$5:$I$1048576,مشتريات!$B$5:$B$1048576,">="&'تقرير المشتريات'!$B$1,مشتريات!$B$5:$B$1048576,"<="&'تقرير المشتريات'!$B$2,مشتريات!$F$5:$F$1048576,مشتريات!F85) -> 0 | E85: =SUMIFS(مشتريات!$J$5:$J$1048576,مشتريات!$B$5:$B$1048576,">="&'تقرير المشتريات'!$B$1,مشتريات!$B$5:$B$1048576,"<="&'تقرير المشتريات'!$B$2,مشتريات!$F$5:$F$1048576,مشتريات!F85) -> 0
C86: =SUMIFS(مشتريات!$H$5:$H$1048576,مشتريات!$B$5:$B$1048576,">="&'تقرير المشتريات'!$B$1,مشتريات!$B$5:$B$1048576,"<="&'تقرير المشتريات'!$B$2,مشتريات!$F$5:$F$1048576,مشتريات!F86) -> 0 | D86: =SUMIFS(مشتريات!$I$5:$I$1048576,مشتريات!$B$5:$B$1048576,">="&'تقرير المشتريات'!$B$1,مشتريات!$B$5:$B$1048576,"<="&'تقرير المشتريات'!$B$2,مشتريات!$F$5:$F$1048576,مشتريات!F86) -> 0 | E86: =SUMIFS(مشتريات!$J$5:$J$1048576,مشتريات!$B$5:$B$1048576,">="&'تقرير المشتريات'!$B$1,مشتريات!$B$5:$B$1048576,"<="&'تقرير المشتريات'!$B$2,مشتريات!$F$5:$F$1048576,مشتريات!F86) -> 0
C87: =SUMIFS(مشتريات!$H$5:$H$1048576,مشتريات!$B$5:$B$1048576,">="&'تقرير المشتريات'!$B$1,مشتريات!$B$5:$B$1048576,"<="&'تقرير المشتريات'!$B$2,مشتريات!$F$5:$F$1048576,مشتريات!F87) -> 0 | D87: =SUMIFS(مشتريات!$I$5:$I$1048576,مشتريات!$B$5:$B$1048576,">="&'تقرير المشتريات'!$B$1,مشتريات!$B$5:$B$1048576,"<="&'تقرير المشتريات'!$B$2,مشتريات!$F$5:$F$1048576,مشتريات!F87) -> 0 | E87: =SUMIFS(مشتريات!$J$5:$J$1048576,مشتريات!$B$5:$B$1048576,">="&'تقرير المشتريات'!$B$1,مشتريات!$B$5:$B$1048576,"<="&'تقرير المشتريات'!$B$2,مشتريات!$F$5:$F$1048576,مشتريات!F87) -> 0
C88: =SUMIFS(مشتريات!$H$5:$H$1048576,مشتريات!$B$5:$B$1048576,">="&'تقرير المشتريات'!$B$1,مشتريات!$B$5:$B$1048576,"<="&'تقرير المشتريات'!$B$2,مشتريات!$F$5:$F$1048576,مشتريات!F88) -> 0 | D88: =SUMIFS(مشتريات!$I$5:$I$1048576,مشتريات!$B$5:$B$1048576,">="&'تقرير المشتريات'!$B$1,مشتريات!$B$5:$B$1048576,"<="&'تقرير المشتريات'!$B$2,مشتريات!$F$5:$F$1048576,مشتريات!F88) -> 0 | E88: =SUMIFS(مشتريات!$J$5:$J$1048576,مشتريات!$B$5:$B$1048576,">="&'تقرير المشتريات'!$B$1,مشتريات!$B$5:$B$1048576,"<="&'تقرير المشتريات'!$B$2,مشتريات!$F$5:$F$1048576,مشتريات!F88) -> 0
C89: =SUMIFS(مشتريات!$H$5:$H$1048576,مشتريات!$B$5:$B$1048576,">="&'تقرير المشتريات'!$B$1,مشتريات!$B$5:$B$1048576,"<="&'تقرير المشتريات'!$B$2,مشتريات!$F$5:$F$1048576,مشتريات!F89) -> 0 | D89: =SUMIFS(مشتريات!$I$5:$I$1048576,مشتريات!$B$5:$B$1048576,">="&'تقرير المشتريات'!$B$1,مشتريات!$B$5:$B$1048576,"<="&'تقرير المشتريات'!$B$2,مشتريات!$F$5:$F$1048576,مشتريات!F89) -> 0 | E89: =SUMIFS(مشتريات!$J$5:$J$1048576,مشتريات!$B$5:$B$1048576,">="&'تقرير المشتريات'!$B$1,مشتريات!$B$5:$B$1048576,"<="&'تقرير المشتريات'!$B$2,مشتريات!$F$5:$F$1048576,مشتريات!F89) -> 0
C90: =SUMIFS(مشتريات!$H$5:$H$1048576,مشتريات!$B$5:$B$1048576,">="&'تقرير المشتريات'!$B$1,مشتريات!$B$5:$B$1048576,"<="&'تقرير المشتريات'!$B$2,مشتريات!$F$5:$F$1048576,مشتريات!F90) -> 0 | D90: =SUMIFS(مشتريات!$I$5:$I$1048576,مشتريات!$B$5:$B$1048576,">="&'تقرير المشتريات'!$B$1,مشتريات!$B$5:$B$1048576,"<="&'تقرير المشتريات'!$B$2,مشتريات!$F$5:$F$1048576,مشتريات!F90) -> 0 | E90: =SUMIFS(مشتريات!$J$5:$J$1048576,مشتريات!$B$5:$B$1048576,">="&'تقرير المشتريات'!$B$1,مشتريات!$B$5:$B$1048576,"<="&'تقرير المشتريات'!$B$2,مشتريات!$F$5:$F$1048576,مشتريات!F90) -> 0
C91: =SUMIFS(مشتريات!$H$5:$H$1048576,مشتريات!$B$5:$B$1048576,">="&'تقرير المشتريات'!$B$1,مشتريات!$B$5:$B$1048576,"<="&'تقرير المشتريات'!$B$2,مشتريات!$F$5:$F$1048576,مشتريات!F91) -> 0 | D91: =SUMIFS(مشتريات!$I$5:$I$1048576,مشتريات!$B$5:$B$1048576,">="&'تقرير المشتريات'!$B$1,مشتريات!$B$5:$B$1048576,"<="&'تقرير المشتريات'!$B$2,مشتريات!$F$5:$F$1048576,مشتريات!F91) -> 0 | E91: =SUMIFS(مشتريات!$J$5:$J$1048576,مشتريات!$B$5:$B$1048576,">="&'تقرير المشتريات'!$B$1,مشتريات!$B$5:$B$1048576,"<="&'تقرير المشتريات'!$B$2,مشتريات!$F$5:$F$1048576,مشتريات!F91) -> 0
C92: =SUMIFS(مشتريات!$H$5:$H$1048576,مشتريات!$B$5:$B$1048576,">="&'تقرير المشتريات'!$B$1,مشتريات!$B$5:$B$1048576,"<="&'تقرير المشتريات'!$B$2,مشتريات!$F$5:$F$1048576,مشتريات!F92) -> 0 | D92: =SUMIFS(مشتريات!$I$5:$I$1048576,مشتريات!$B$5:$B$1048576,">="&'تقرير المشتريات'!$B$1,مشتريات!$B$5:$B$1048576,"<="&'تقرير المشتريات'!$B$2,مشتريات!$F$5:$F$1048576,مشتريات!F92) -> 0 | E92: =SUMIFS(مشتريات!$J$5:$J$1048576,مشتريات!$B$5:$B$1048576,">="&'تقرير المشتريات'!$B$1,مشتريات!$B$5:$B$1048576,"<="&'تقرير المشتريات'!$B$2,مشتريات!$F$5:$F$1048576,مشتريات!F92) -> 0
C93: =SUMIFS(مشتريات!$H$5:$H$1048576,مشتريات!$B$5:$B$1048576,">="&'تقرير المشتريات'!$B$1,مشتريات!$B$5:$B$1048576,"<="&'تقرير المشتريات'!$B$2,مشتريات!$F$5:$F$1048576,مشتريات!F93) -> 0 | D93: =SUMIFS(مشتريات!$I$5:$I$1048576,مشتريات!$B$5:$B$1048576,">="&'تقرير المشتريات'!$B$1,مشتريات!$B$5:$B$1048576,"<="&'تقرير المشتريات'!$B$2,مشتريات!$F$5:$F$1048576,مشتريات!F93) -> 0 | E93: =SUMIFS(مشتريات!$J$5:$J$1048576,مشتريات!$B$5:$B$1048576,">="&'تقرير المشتريات'!$B$1,مشتريات!$B$5:$B$1048576,"<="&'تقرير المشتريات'!$B$2,مشتريات!$F$5:$F$1048576,مشتريات!F93) -> 0
C94: =SUMIFS(مشتريات!$H$5:$H$1048576,مشتريات!$B$5:$B$1048576,">="&'تقرير المشتريات'!$B$1,مشتريات!$B$5:$B$1048576,"<="&'تقرير المشتريات'!$B$2,مشتريات!$F$5:$F$1048576,مشتريات!F94) -> 0 | D94: =SUMIFS(مشتريات!$I$5:$I$1048576,مشتريات!$B$5:$B$1048576,">="&'تقرير المشتريات'!$B$1,مشتريات!$B$5:$B$1048576,"<="&'تقرير المشتريات'!$B$2,مشتريات!$F$5:$F$1048576,مشتريات!F94) -> 0 | E94: =SUMIFS(مشتريات!$J$5:$J$1048576,مشتريات!$B$5:$B$1048576,">="&'تقرير المشتريات'!$B$1,مشتريات!$B$5:$B$1048576,"<="&'تقرير المشتريات'!$B$2,مشتريات!$F$5:$F$1048576,مشتريات!F94) -> 0
C95: =SUMIFS(مشتريات!$H$5:$H$1048576,مشتريات!$B$5:$B$1048576,">="&'تقرير المشتريات'!$B$1,مشتريات!$B$5:$B$1048576,"<="&'تقرير المشتريات'!$B$2,مشتريات!$F$5:$F$1048576,مشتريات!F95) -> 0 | D95: =SUMIFS(مشتريات!$I$5:$I$1048576,مشتريات!$B$5:$B$1048576,">="&'تقرير المشتريات'!$B$1,مشتريات!$B$5:$B$1048576,"<="&'تقرير المشتريات'!$B$2,مشتريات!$F$5:$F$1048576,مشتريات!F95) -> 0 | E95: =SUMIFS(مشتريات!$J$5:$J$1048576,مشتريات!$B$5:$B$1048576,">="&'تقرير المشتريات'!$B$1,مشتريات!$B$5:$B$1048576,"<="&'تقرير المشتريات'!$B$2,مشتريات!$F$5:$F$1048576,مشتريات!F95) -> 0
C96: =SUMIFS(مشتريات!$H$5:$H$1048576,مشتريات!$B$5:$B$1048576,">="&'تقرير المشتريات'!$B$1,مشتريات!$B$5:$B$1048576,"<="&'تقرير المشتريات'!$B$2,مشتريات!$F$5:$F$1048576,مشتريات!F96) -> 0 | D96: =SUMIFS(مشتريات!$I$5:$I$1048576,مشتريات!$B$5:$B$1048576,">="&'تقرير المشتريات'!$B$1,مشتريات!$B$5:$B$1048576,"<="&'تقرير المشتريات'!$B$2,مشتريات!$F$5:$F$1048576,مشتريات!F96) -> 0 | E96: =SUMIFS(مشتريات!$J$5:$J$1048576,مشتريات!$B$5:$B$1048576,">="&'تقرير المشتريات'!$B$1,مشتريات!$B$5:$B$1048576,"<="&'تقرير المشتريات'!$B$2,مشتريات!$F$5:$F$1048576,مشتريات!F96) -> 0
C97: =SUMIFS(مشتريات!$H$5:$H$1048576,مشتريات!$B$5:$B$1048576,">="&'تقرير المشتريات'!$B$1,مشتريات!$B$5:$B$1048576,"<="&'تقرير المشتريات'!$B$2,مشتريات!$F$5:$F$1048576,مشتريات!F97) -> 0 | D97: =SUMIFS(مشتريات!$I$5:$I$1048576,مشتريات!$B$5:$B$1048576,">="&'تقرير المشتريات'!$B$1,مشتريات!$B$5:$B$1048576,"<="&'تقرير المشتريات'!$B$2,مشتريات!$F$5:$F$1048576,مشتريات!F97) -> 0 | E97: =SUMIFS(مشتريات!$J$5:$J$1048576,مشتريات!$B$5:$B$1048576,">="&'تقرير المشتريات'!$B$1,مشتريات!$B$5:$B$1048576,"<="&'تقرير المشتريات'!$B$2,مشتريات!$F$5:$F$1048576,مشتريات!F97) -> 0
C98: =SUMIFS(مشتريات!$H$5:$H$1048576,مشتريات!$B$5:$B$1048576,">="&'تقرير المشتريات'!$B$1,مشتريات!$B$5:$B$1048576,"<="&'تقرير المشتريات'!$B$2,مشتريات!$F$5:$F$1048576,مشتريات!F98) -> 0 | D98: =SUMIFS(مشتريات!$I$5:$I$1048576,مشتريات!$B$5:$B$1048576,">="&'تقرير المشتريات'!$B$1,مشتريات!$B$5:$B$1048576,"<="&'تقرير المشتريات'!$B$2,مشتريات!$F$5:$F$1048576,مشتريات!F98) -> 0 | E98: =SUMIFS(مشتريات!$J$5:$J$1048576,مشتريات!$B$5:$B$1048576,">="&'تقرير المشتريات'!$B$1,مشتريات!$B$5:$B$1048576,"<="&'تقرير المشتريات'!$B$2,مشتريات!$F$5:$F$1048576,مشتريات!F98) -> 0
C99: =SUMIFS(مشتريات!$H$5:$H$1048576,مشتريات!$B$5:$B$1048576,">="&'تقرير المشتريات'!$B$1,مشتريات!$B$5:$B$1048576,"<="&'تقرير المشتريات'!$B$2,مشتريات!$F$5:$F$1048576,مشتريات!F99) -> 0 | D99: =SUMIFS(مشتريات!$I$5:$I$1048576,مشتريات!$B$5:$B$1048576,">="&'تقرير المشتريات'!$B$1,مشتريات!$B$5:$B$1048576,"<="&'تقرير المشتريات'!$B$2,مشتريات!$F$5:$F$1048576,مشتريات!F99) -> 0 | E99: =SUMIFS(مشتريات!$J$5:$J$1048576,مشتريات!$B$5:$B$1048576,">="&'تقرير المشتريات'!$B$1,مشتريات!$B$5:$B$1048576,"<="&'تقرير المشتريات'!$B$2,مشتريات!$F$5:$F$1048576,مشتريات!F99) -> 0
C100: =SUMIFS(مشتريات!$H$5:$H$1048576,مشتريات!$B$5:$B$1048576,">="&'تقرير المشتريات'!$B$1,مشتريات!$B$5:$B$1048576,"<="&'تقرير المشتريات'!$B$2,مشتريات!$F$5:$F$1048576,مشتريات!F100) -> 0 | D100: =SUMIFS(مشتريات!$I$5:$I$1048576,مشتريات!$B$5:$B$1048576,">="&'تقرير المشتريات'!$B$1,مشتريات!$B$5:$B$1048576,"<="&'تقرير المشتريات'!$B$2,مشتريات!$F$5:$F$1048576,مشتريات!F100) -> 0 | E100: =SUMIFS(مشتريات!$J$5:$J$1048576,مشتريات!$B$5:$B$1048576,">="&'تقرير المشتريات'!$B$1,مشتريات!$B$5:$B$1048576,"<="&'تقرير المشتريات'!$B$2,مشتريات!$F$5:$F$1048576,مشتريات!F100) -> 0
C101: =SUMIFS(مشتريات!$H$5:$H$1048576,مشتريات!$B$5:$B$1048576,">="&'تقرير المشتريات'!$B$1,مشتريات!$B$5:$B$1048576,"<="&'تقرير المشتريات'!$B$2,مشتريات!$F$5:$F$1048576,مشتريات!F101) -> 0 | D101: =SUMIFS(مشتريات!$I$5:$I$1048576,مشتريات!$B$5:$B$1048576,">="&'تقرير المشتريات'!$B$1,مشتريات!$B$5:$B$1048576,"<="&'تقرير المشتريات'!$B$2,مشتريات!$F$5:$F$1048576,مشتريات!F101) -> 0 | E101: =SUMIFS(مشتريات!$J$5:$J$1048576,مشتريات!$B$5:$B$1048576,">="&'تقرير المشتريات'!$B$1,مشتريات!$B$5:$B$1048576,"<="&'تقرير المشتريات'!$B$2,مشتريات!$F$5:$F$1048576,مشتريات!F101) -> 0
C102: =SUMIFS(مشتريات!$H$5:$H$1048576,مشتريات!$B$5:$B$1048576,">="&'تقرير المشتريات'!$B$1,مشتريات!$B$5:$B$1048576,"<="&'تقرير المشتريات'!$B$2,مشتريات!$F$5:$F$1048576,مشتريات!F102) -> 0 | D102: =SUMIFS(مشتريات!$I$5:$I$1048576,مشتريات!$B$5:$B$1048576,">="&'تقرير المشتريات'!$B$1,مشتريات!$B$5:$B$1048576,"<="&'تقرير المشتريات'!$B$2,مشتريات!$F$5:$F$1048576,مشتريات!F102) -> 0 | E102: =SUMIFS(مشتريات!$J$5:$J$1048576,مشتريات!$B$5:$B$1048576,">="&'تقرير المشتريات'!$B$1,مشتريات!$B$5:$B$1048576,"<="&'تقرير المشتريات'!$B$2,مشتريات!$F$5:$F$1048576,مشتريات!F102) -> 0
C103: =SUMIFS(مشتريات!$H$5:$H$1048576,مشتريات!$B$5:$B$1048576,">="&'تقرير المشتريات'!$B$1,مشتريات!$B$5:$B$1048576,"<="&'تقرير المشتريات'!$B$2,مشتريات!$F$5:$F$1048576,مشتريات!F103) -> 0 | D103: =SUMIFS(مشتريات!$I$5:$I$1048576,مشتريات!$B$5:$B$1048576,">="&'تقرير المشتريات'!$B$1,مشتريات!$B$5:$B$1048576,"<="&'تقرير المشتريات'!$B$2,مشتريات!$F$5:$F$1048576,مشتريات!F103) -> 0 | E103: =SUMIFS(مشتريات!$J$5:$J$1048576,مشتريات!$B$5:$B$1048576,">="&'تقرير المشتريات'!$B$1,مشتريات!$B$5:$B$1048576,"<="&'تقرير المشتريات'!$B$2,مشتريات!$F$5:$F$1048576,مشتريات!F103) -> 0
C104: =SUMIFS(مشتريات!$H$5:$H$1048576,مشتريات!$B$5:$B$1048576,">="&'تقرير المشتريات'!$B$1,مشتريات!$B$5:$B$1048576,"<="&'تقرير المشتريات'!$B$2,مشتريات!$F$5:$F$1048576,مشتريات!F104) -> 0 | D104: =SUMIFS(مشتريات!$I$5:$I$1048576,مشتريات!$B$5:$B$1048576,">="&'تقرير المشتريات'!$B$1,مشتريات!$B$5:$B$1048576,"<="&'تقرير المشتريات'!$B$2,مشتريات!$F$5:$F$1048576,مشتريات!F104) -> 0 | E104: =SUMIFS(مشتريات!$J$5:$J$1048576,مشتريات!$B$5:$B$1048576,">="&'تقرير المشتريات'!$B$1,مشتريات!$B$5:$B$1048576,"<="&'تقرير المشتريات'!$B$2,مشتريات!$F$5:$F$1048576,مشتريات!F104) -> 0
C105: =SUMIFS(مشتريات!$H$5:$H$1048576,مشتريات!$B$5:$B$1048576,">="&'تقرير المشتريات'!$B$1,مشتريات!$B$5:$B$1048576,"<="&'تقرير المشتريات'!$B$2,مشتريات!$F$5:$F$1048576,مشتريات!F105) -> 0 | D105: =SUMIFS(مشتريات!$I$5:$I$1048576,مشتريات!$B$5:$B$1048576,">="&'تقرير المشتريات'!$B$1,مشتريات!$B$5:$B$1048576,"<="&'تقرير المشتريات'!$B$2,مشتريات!$F$5:$F$1048576,مشتريات!F105) -> 0 | E105: =SUMIFS(مشتريات!$J$5:$J$1048576,مشتريات!$B$5:$B$1048576,">="&'تقرير المشتريات'!$B$1,مشتريات!$B$5:$B$1048576,"<="&'تقرير المشتريات'!$B$2,مشتريات!$F$5:$F$1048576,مشتريات!F105) -> 0
C106: =SUMIFS(مشتريات!$H$5:$H$1048576,مشتريات!$B$5:$B$1048576,">="&'تقرير المشتريات'!$B$1,مشتريات!$B$5:$B$1048576,"<="&'تقرير المشتريات'!$B$2,مشتريات!$F$5:$F$1048576,مشتريات!F106) -> 0 | D106: =SUMIFS(مشتريات!$I$5:$I$1048576,مشتريات!$B$5:$B$1048576,">="&'تقرير المشتريات'!$B$1,مشتريات!$B$5:$B$1048576,"<="&'تقرير المشتريات'!$B$2,مشتريات!$F$5:$F$1048576,مشتريات!F106) -> 0 | E106: =SUMIFS(مشتريات!$J$5:$J$1048576,مشتريات!$B$5:$B$1048576,">="&'تقرير المشتريات'!$B$1,مشتريات!$B$5:$B$1048576,"<="&'تقرير المشتريات'!$B$2,مشتريات!$F$5:$F$1048576,مشتريات!F106) -> 0
C107: =SUMIFS(مشتريات!$H$5:$H$1048576,مشتريات!$B$5:$B$1048576,">="&'تقرير المشتريات'!$B$1,مشتريات!$B$5:$B$1048576,"<="&'تقرير المشتريات'!$B$2,مشتريات!$F$5:$F$1048576,مشتريات!F107) -> 0 | D107: =SUMIFS(مشتريات!$I$5:$I$1048576,مشتريات!$B$5:$B$1048576,">="&'تقرير المشتريات'!$B$1,مشتريات!$B$5:$B$1048576,"<="&'تقرير المشتريات'!$B$2,مشتريات!$F$5:$F$1048576,مشتريات!F107) -> 0 | E107: =SUMIFS(مشتريات!$J$5:$J$1048576,مشتريات!$B$5:$B$1048576,">="&'تقرير المشتريات'!$B$1,مشتريات!$B$5:$B$1048576,"<="&'تقرير المشتريات'!$B$2,مشتريات!$F$5:$F$1048576,مشتريات!F107) -> 0
C108: =SUMIFS(مشتريات!$H$5:$H$1048576,مشتريات!$B$5:$B$1048576,">="&'تقرير المشتريات'!$B$1,مشتريات!$B$5:$B$1048576,"<="&'تقرير المشتريات'!$B$2,مشتريات!$F$5:$F$1048576,مشتريات!F108) -> 0 | D108: =SUMIFS(مشتريات!$I$5:$I$1048576,مشتريات!$B$5:$B$1048576,">="&'تقرير المشتريات'!$B$1,مشتريات!$B$5:$B$1048576,"<="&'تقرير المشتريات'!$B$2,مشتريات!$F$5:$F$1048576,مشتريات!F108) -> 0 | E108: =SUMIFS(مشتريات!$J$5:$J$1048576,مشتريات!$B$5:$B$1048576,">="&'تقرير المشتريات'!$B$1,مشتريات!$B$5:$B$1048576,"<="&'تقرير المشتريات'!$B$2,مشتريات!$F$5:$F$1048576,مشتريات!F108) -> 0
C109: =SUMIFS(مشتريات!$H$5:$H$1048576,مشتريات!$B$5:$B$1048576,">="&'تقرير المشتريات'!$B$1,مشتريات!$B$5:$B$1048576,"<="&'تقرير المشتريات'!$B$2,مشتريات!$F$5:$F$1048576,مشتريات!F109) -> 0 | D109: =SUMIFS(مشتريات!$I$5:$I$1048576,مشتريات!$B$5:$B$1048576,">="&'تقرير المشتريات'!$B$1,مشتريات!$B$5:$B$1048576,"<="&'تقرير المشتريات'!$B$2,مشتريات!$F$5:$F$1048576,مشتريات!F109) -> 0 | E109: =SUMIFS(مشتريات!$J$5:$J$1048576,مشتريات!$B$5:$B$1048576,">="&'تقرير المشتريات'!$B$1,مشتريات!$B$5:$B$1048576,"<="&'تقرير المشتريات'!$B$2,مشتريات!$F$5:$F$1048576,مشتريات!F109) -> 0
C110: =SUMIFS(مشتريات!$H$5:$H$1048576,مشتريات!$B$5:$B$1048576,">="&'تقرير المشتريات'!$B$1,مشتريات!$B$5:$B$1048576,"<="&'تقرير المشتريات'!$B$2,مشتريات!$F$5:$F$1048576,مشتريات!F110) -> 0 | D110: =SUMIFS(مشتريات!$I$5:$I$1048576,مشتريات!$B$5:$B$1048576,">="&'تقرير المشتريات'!$B$1,مشتريات!$B$5:$B$1048576,"<="&'تقرير المشتريات'!$B$2,مشتريات!$F$5:$F$1048576,مشتريات!F110) -> 0 | E110: =SUMIFS(مشتريات!$J$5:$J$1048576,مشتريات!$B$5:$B$1048576,">="&'تقرير المشتريات'!$B$1,مشتريات!$B$5:$B$1048576,"<="&'تقرير المشتريات'!$B$2,مشتريات!$F$5:$F$1048576,مشتريات!F110) -> 0
C111: =SUMIFS(مشتريات!$H$5:$H$1048576,مشتريات!$B$5:$B$1048576,">="&'تقرير المشتريات'!$B$1,مشتريات!$B$5:$B$1048576,"<="&'تقرير المشتريات'!$B$2,مشتريات!$F$5:$F$1048576,مشتريات!F111) -> 0 | D111: =SUMIFS(مشتريات!$I$5:$I$1048576,مشتريات!$B$5:$B$1048576,">="&'تقرير المشتريات'!$B$1,مشتريات!$B$5:$B$1048576,"<="&'تقرير المشتريات'!$B$2,مشتريات!$F$5:$F$1048576,مشتريات!F111) -> 0 | E111: =SUMIFS(مشتريات!$J$5:$J$1048576,مشتريات!$B$5:$B$1048576,">="&'تقرير المشتريات'!$B$1,مشتريات!$B$5:$B$1048576,"<="&'تقرير المشتريات'!$B$2,مشتريات!$F$5:$F$1048576,مشتريات!F111) -> 0
C112: =SUMIFS(مشتريات!$H$5:$H$1048576,مشتريات!$B$5:$B$1048576,">="&'تقرير المشتريات'!$B$1,مشتريات!$B$5:$B$1048576,"<="&'تقرير المشتريات'!$B$2,مشتريات!$F$5:$F$1048576,مشتريات!F112) -> 0 | D112: =SUMIFS(مشتريات!$I$5:$I$1048576,مشتريات!$B$5:$B$1048576,">="&'تقرير المشتريات'!$B$1,مشتريات!$B$5:$B$1048576,"<="&'تقرير المشتريات'!$B$2,مشتريات!$F$5:$F$1048576,مشتريات!F112) -> 0 | E112: =SUMIFS(مشتريات!$J$5:$J$1048576,مشتريات!$B$5:$B$1048576,">="&'تقرير المشتريات'!$B$1,مشتريات!$B$5:$B$1048576,"<="&'تقرير المشتريات'!$B$2,مشتريات!$F$5:$F$1048576,مشتريات!F112) -> 0
C113: =SUMIFS(مشتريات!$H$5:$H$1048576,مشتريات!$B$5:$B$1048576,">="&'تقرير المشتريات'!$B$1,مشتريات!$B$5:$B$1048576,"<="&'تقرير المشتريات'!$B$2,مشتريات!$F$5:$F$1048576,مشتريات!F113) -> 0 | D113: =SUMIFS(مشتريات!$I$5:$I$1048576,مشتريات!$B$5:$B$1048576,">="&'تقرير المشتريات'!$B$1,مشتريات!$B$5:$B$1048576,"<="&'تقرير المشتريات'!$B$2,مشتريات!$F$5:$F$1048576,مشتريات!F113) -> 0 | E113: =SUMIFS(مشتريات!$J$5:$J$1048576,مشتريات!$B$5:$B$1048576,">="&'تقرير المشتريات'!$B$1,مشتريات!$B$5:$B$1048576,"<="&'تقرير المشتريات'!$B$2,مشتريات!$F$5:$F$1048576,مشتريات!F113) -> 0
C114: =SUMIFS(مشتريات!$H$5:$H$1048576,مشتريات!$B$5:$B$1048576,">="&'تقرير المشتريات'!$B$1,مشتريات!$B$5:$B$1048576,"<="&'تقرير المشتريات'!$B$2,مشتريات!$F$5:$F$1048576,مشتريات!F114) -> 0 | D114: =SUMIFS(مشتريات!$I$5:$I$1048576,مشتريات!$B$5:$B$1048576,">="&'تقرير المشتريات'!$B$1,مشتريات!$B$5:$B$1048576,"<="&'تقرير المشتريات'!$B$2,مشتريات!$F$5:$F$1048576,مشتريات!F114) -> 0 | E114: =SUMIFS(مشتريات!$J$5:$J$1048576,مشتريات!$B$5:$B$1048576,">="&'تقرير المشتريات'!$B$1,مشتريات!$B$5:$B$1048576,"<="&'تقرير المشتريات'!$B$2,مشتريات!$F$5:$F$1048576,مشتريات!F114) -> 0
C115: =SUMIFS(مشتريات!$H$5:$H$1048576,مشتريات!$B$5:$B$1048576,">="&'تقرير المشتريات'!$B$1,مشتريات!$B$5:$B$1048576,"<="&'تقرير المشتريات'!$B$2,مشتريات!$F$5:$F$1048576,مشتريات!F115) -> 0 | D115: =SUMIFS(مشتريات!$I$5:$I$1048576,مشتريات!$B$5:$B$1048576,">="&'تقرير المشتريات'!$B$1,مشتريات!$B$5:$B$1048576,"<="&'تقرير المشتريات'!$B$2,مشتريات!$F$5:$F$1048576,مشتريات!F115) -> 0 | E115: =SUMIFS(مشتريات!$J$5:$J$1048576,مشتريات!$B$5:$B$1048576,">="&'تقرير المشتريات'!$B$1,مشتريات!$B$5:$B$1048576,"<="&'تقرير المشتريات'!$B$2,مشتريات!$F$5:$F$1048576,مشتريات!F115) -> 0
C116: =SUMIFS(مشتريات!$H$5:$H$1048576,مشتريات!$B$5:$B$1048576,">="&'تقرير المشتريات'!$B$1,مشتريات!$B$5:$B$1048576,"<="&'تقرير المشتريات'!$B$2,مشتريات!$F$5:$F$1048576,مشتريات!F116) -> 0 | D116: =SUMIFS(مشتريات!$I$5:$I$1048576,مشتريات!$B$5:$B$1048576,">="&'تقرير المشتريات'!$B$1,مشتريات!$B$5:$B$1048576,"<="&'تقرير المشتريات'!$B$2,مشتريات!$F$5:$F$1048576,مشتريات!F116) -> 0 | E116: =SUMIFS(مشتريات!$J$5:$J$1048576,مشتريات!$B$5:$B$1048576,">="&'تقرير المشتريات'!$B$1,مشتريات!$B$5:$B$1048576,"<="&'تقرير المشتريات'!$B$2,مشتريات!$F$5:$F$1048576,مشتريات!F116) -> 0
C117: =SUMIFS(مشتريات!$H$5:$H$1048576,مشتريات!$B$5:$B$1048576,">="&'تقرير المشتريات'!$B$1,مشتريات!$B$5:$B$1048576,"<="&'تقرير المشتريات'!$B$2,مشتريات!$F$5:$F$1048576,مشتريات!F117) -> 0 | D117: =SUMIFS(مشتريات!$I$5:$I$1048576,مشتريات!$B$5:$B$1048576,">="&'تقرير المشتريات'!$B$1,مشتريات!$B$5:$B$1048576,"<="&'تقرير المشتريات'!$B$2,مشتريات!$F$5:$F$1048576,مشتريات!F117) -> 0 | E117: =SUMIFS(مشتريات!$J$5:$J$1048576,مشتريات!$B$5:$B$1048576,">="&'تقرير المشتريات'!$B$1,مشتريات!$B$5:$B$1048576,"<="&'تقرير المشتريات'!$B$2,مشتريات!$F$5:$F$1048576,مشتريات!F117) -> 0
C118: =SUMIFS(مشتريات!$H$5:$H$1048576,مشتريات!$B$5:$B$1048576,">="&'تقرير المشتريات'!$B$1,مشتريات!$B$5:$B$1048576,"<="&'تقرير المشتريات'!$B$2,مشتريات!$F$5:$F$1048576,مشتريات!F118) -> 0 | D118: =SUMIFS(مشتريات!$I$5:$I$1048576,مشتريات!$B$5:$B$1048576,">="&'تقرير المشتريات'!$B$1,مشتريات!$B$5:$B$1048576,"<="&'تقرير المشتريات'!$B$2,مشتريات!$F$5:$F$1048576,مشتريات!F118) -> 0 | E118: =SUMIFS(مشتريات!$J$5:$J$1048576,مشتريات!$B$5:$B$1048576,">="&'تقرير المشتريات'!$B$1,مشتريات!$B$5:$B$1048576,"<="&'تقرير المشتريات'!$B$2,مشتريات!$F$5:$F$1048576,مشتريات!F118) -> 0
C119: =SUMIFS(مشتريات!$H$5:$H$1048576,مشتريات!$B$5:$B$1048576,">="&'تقرير المشتريات'!$B$1,مشتريات!$B$5:$B$1048576,"<="&'تقرير المشتريات'!$B$2,مشتريات!$F$5:$F$1048576,مشتريات!F119) -> 0 | D119: =SUMIFS(مشتريات!$I$5:$I$1048576,مشتريات!$B$5:$B$1048576,">="&'تقرير المشتريات'!$B$1,مشتريات!$B$5:$B$1048576,"<="&'تقرير المشتريات'!$B$2,مشتريات!$F$5:$F$1048576,مشتريات!F119) -> 0 | E119: =SUMIFS(مشتريات!$J$5:$J$1048576,مشتريات!$B$5:$B$1048576,">="&'تقرير المشتريات'!$B$1,مشتريات!$B$5:$B$1048576,"<="&'تقرير المشتريات'!$B$2,مشتريات!$F$5:$F$1048576,مشتريات!F119) -> 0
C120: =SUMIFS(مشتريات!$H$5:$H$1048576,مشتريات!$B$5:$B$1048576,">="&'تقرير المشتريات'!$B$1,مشتريات!$B$5:$B$1048576,"<="&'تقرير المشتريات'!$B$2,مشتريات!$F$5:$F$1048576,مشتريات!F120) -> 0 | D120: =SUMIFS(مشتريات!$I$5:$I$1048576,مشتريات!$B$5:$B$1048576,">="&'تقرير المشتريات'!$B$1,مشتريات!$B$5:$B$1048576,"<="&'تقرير المشتريات'!$B$2,مشتريات!$F$5:$F$1048576,مشتريات!F120) -> 0 | E120: =SUMIFS(مشتريات!$J$5:$J$1048576,مشتريات!$B$5:$B$1048576,">="&'تقرير المشتريات'!$B$1,مشتريات!$B$5:$B$1048576,"<="&'تقرير المشتريات'!$B$2,مشتريات!$F$5:$F$1048576,مشتريات!F120) -> 0
C121: =SUMIFS(مشتريات!$H$5:$H$1048576,مشتريات!$B$5:$B$1048576,">="&'تقرير المشتريات'!$B$1,مشتريات!$B$5:$B$1048576,"<="&'تقرير المشتريات'!$B$2,مشتريات!$F$5:$F$1048576,مشتريات!F121) -> 0 | D121: =SUMIFS(مشتريات!$I$5:$I$1048576,مشتريات!$B$5:$B$1048576,">="&'تقرير المشتريات'!$B$1,مشتريات!$B$5:$B$1048576,"<="&'تقرير المشتريات'!$B$2,مشتريات!$F$5:$F$1048576,مشتريات!F121) -> 0 | E121: =SUMIFS(مشتريات!$J$5:$J$1048576,مشتريات!$B$5:$B$1048576,">="&'تقرير المشتريات'!$B$1,مشتريات!$B$5:$B$1048576,"<="&'تقرير المشتريات'!$B$2,مشتريات!$F$5:$F$1048576,مشتريات!F121) -> 0
C122: =SUMIFS(مشتريات!$H$5:$H$1048576,مشتريات!$B$5:$B$1048576,">="&'تقرير المشتريات'!$B$1,مشتريات!$B$5:$B$1048576,"<="&'تقرير المشتريات'!$B$2,مشتريات!$F$5:$F$1048576,مشتريات!F122) -> 0 | D122: =SUMIFS(مشتريات!$I$5:$I$1048576,مشتريات!$B$5:$B$1048576,">="&'تقرير المشتريات'!$B$1,مشتريات!$B$5:$B$1048576,"<="&'تقرير المشتريات'!$B$2,مشتريات!$F$5:$F$1048576,مشتريات!F122) -> 0 | E122: =SUMIFS(مشتريات!$J$5:$J$1048576,مشتريات!$B$5:$B$1048576,">="&'تقرير المشتريات'!$B$1,مشتريات!$B$5:$B$1048576,"<="&'تقرير المشتريات'!$B$2,مشتريات!$F$5:$F$1048576,مشتريات!F122) -> 0
C123: =SUMIFS(مشتريات!$H$5:$H$1048576,مشتريات!$B$5:$B$1048576,">="&'تقرير المشتريات'!$B$1,مشتريات!$B$5:$B$1048576,"<="&'تقرير المشتريات'!$B$2,مشتريات!$F$5:$F$1048576,مشتريات!F123) -> 0 | D123: =SUMIFS(مشتريات!$I$5:$I$1048576,مشتريات!$B$5:$B$1048576,">="&'تقرير المشتريات'!$B$1,مشتريات!$B$5:$B$1048576,"<="&'تقرير المشتريات'!$B$2,مشتريات!$F$5:$F$1048576,مشتريات!F123) -> 0 | E123: =SUMIFS(مشتريات!$J$5:$J$1048576,مشتريات!$B$5:$B$1048576,">="&'تقرير المشتريات'!$B$1,مشتريات!$B$5:$B$1048576,"<="&'تقرير المشتريات'!$B$2,مشتريات!$F$5:$F$1048576,مشتريات!F123) -> 0
C124: =SUMIFS(مشتريات!$H$5:$H$1048576,مشتريات!$B$5:$B$1048576,">="&'تقرير المشتريات'!$B$1,مشتريات!$B$5:$B$1048576,"<="&'تقرير المشتريات'!$B$2,مشتريات!$F$5:$F$1048576,مشتريات!F124) -> 0 | D124: =SUMIFS(مشتريات!$I$5:$I$1048576,مشتريات!$B$5:$B$1048576,">="&'تقرير المشتريات'!$B$1,مشتريات!$B$5:$B$1048576,"<="&'تقرير المشتريات'!$B$2,مشتريات!$F$5:$F$1048576,مشتريات!F124) -> 0 | E124: =SUMIFS(مشتريات!$J$5:$J$1048576,مشتريات!$B$5:$B$1048576,">="&'تقرير المشتريات'!$B$1,مشتريات!$B$5:$B$1048576,"<="&'تقرير المشتريات'!$B$2,مشتريات!$F$5:$F$1048576,مشتريات!F124) -> 0
C125: =SUMIFS(مشتريات!$H$5:$H$1048576,مشتريات!$B$5:$B$1048576,">="&'تقرير المشتريات'!$B$1,مشتريات!$B$5:$B$1048576,"<="&'تقرير المشتريات'!$B$2,مشتريات!$F$5:$F$1048576,مشتريات!F125) -> 0 | D125: =SUMIFS(مشتريات!$I$5:$I$1048576,مشتريات!$B$5:$B$1048576,">="&'تقرير المشتريات'!$B$1,مشتريات!$B$5:$B$1048576,"<="&'تقرير المشتريات'!$B$2,مشتريات!$F$5:$F$1048576,مشتريات!F125) -> 0 | E125: =SUMIFS(مشتريات!$J$5:$J$1048576,مشتريات!$B$5:$B$1048576,">="&'تقرير المشتريات'!$B$1,مشتريات!$B$5:$B$1048576,"<="&'تقرير المشتريات'!$B$2,مشتريات!$F$5:$F$1048576,مشتريات!F125) -> 0
C126: =SUMIFS(مشتريات!$H$5:$H$1048576,مشتريات!$B$5:$B$1048576,">="&'تقرير المشتريات'!$B$1,مشتريات!$B$5:$B$1048576,"<="&'تقرير المشتريات'!$B$2,مشتريات!$F$5:$F$1048576,مشتريات!F126) -> 0 | D126: =SUMIFS(مشتريات!$I$5:$I$1048576,مشتريات!$B$5:$B$1048576,">="&'تقرير المشتريات'!$B$1,مشتريات!$B$5:$B$1048576,"<="&'تقرير المشتريات'!$B$2,مشتريات!$F$5:$F$1048576,مشتريات!F126) -> 0 | E126: =SUMIFS(مشتريات!$J$5:$J$1048576,مشتريات!$B$5:$B$1048576,">="&'تقرير المشتريات'!$B$1,مشتريات!$B$5:$B$1048576,"<="&'تقرير المشتريات'!$B$2,مشتريات!$F$5:$F$1048576,مشتريات!F126) -> 0
C127: =SUMIFS(مشتريات!$H$5:$H$1048576,مشتريات!$B$5:$B$1048576,">="&'تقرير المشتريات'!$B$1,مشتريات!$B$5:$B$1048576,"<="&'تقرير المشتريات'!$B$2,مشتريات!$F$5:$F$1048576,مشتريات!F127) -> 0 | D127: =SUMIFS(مشتريات!$I$5:$I$1048576,مشتريات!$B$5:$B$1048576,">="&'تقرير المشتريات'!$B$1,مشتريات!$B$5:$B$1048576,"<="&'تقرير المشتريات'!$B$2,مشتريات!$F$5:$F$1048576,مشتريات!F127) -> 0 | E127: =SUMIFS(مشتريات!$J$5:$J$1048576,مشتريات!$B$5:$B$1048576,">="&'تقرير المشتريات'!$B$1,مشتريات!$B$5:$B$1048576,"<="&'تقرير المشتريات'!$B$2,مشتريات!$F$5:$F$1048576,مشتريات!F127) -> 0
C128: =SUMIFS(مشتريات!$H$5:$H$1048576,مشتريات!$B$5:$B$1048576,">="&'تقرير المشتريات'!$B$1,مشتريات!$B$5:$B$1048576,"<="&'تقرير المشتريات'!$B$2,مشتريات!$F$5:$F$1048576,مشتريات!F128) -> 0 | D128: =SUMIFS(مشتريات!$I$5:$I$1048576,مشتريات!$B$5:$B$1048576,">="&'تقرير المشتريات'!$B$1,مشتريات!$B$5:$B$1048576,"<="&'تقرير المشتريات'!$B$2,مشتريات!$F$5:$F$1048576,مشتريات!F128) -> 0 | E128: =SUMIFS(مشتريات!$J$5:$J$1048576,مشتريات!$B$5:$B$1048576,">="&'تقرير المشتريات'!$B$1,مشتريات!$B$5:$B$1048576,"<="&'تقرير المشتريات'!$B$2,مشتريات!$F$5:$F$1048576,مشتريات!F128) -> 0
C129: =SUMIFS(مشتريات!$H$5:$H$1048576,مشتريات!$B$5:$B$1048576,">="&'تقرير المشتريات'!$B$1,مشتريات!$B$5:$B$1048576,"<="&'تقرير المشتريات'!$B$2,مشتريات!$F$5:$F$1048576,مشتريات!F129) -> 0 | D129: =SUMIFS(مشتريات!$I$5:$I$1048576,مشتريات!$B$5:$B$1048576,">="&'تقرير المشتريات'!$B$1,مشتريات!$B$5:$B$1048576,"<="&'تقرير المشتريات'!$B$2,مشتريات!$F$5:$F$1048576,مشتريات!F129) -> 0 | E129: =SUMIFS(مشتريات!$J$5:$J$1048576,مشتريات!$B$5:$B$1048576,">="&'تقرير المشتريات'!$B$1,مشتريات!$B$5:$B$1048576,"<="&'تقرير المشتريات'!$B$2,مشتريات!$F$5:$F$1048576,مشتريات!F129) -> 0
C130: =SUMIFS(مشتريات!$H$5:$H$1048576,مشتريات!$B$5:$B$1048576,">="&'تقرير المشتريات'!$B$1,مشتريات!$B$5:$B$1048576,"<="&'تقرير المشتريات'!$B$2,مشتريات!$F$5:$F$1048576,مشتريات!F130) -> 0 | D130: =SUMIFS(مشتريات!$I$5:$I$1048576,مشتريات!$B$5:$B$1048576,">="&'تقرير المشتريات'!$B$1,مشتريات!$B$5:$B$1048576,"<="&'تقرير المشتريات'!$B$2,مشتريات!$F$5:$F$1048576,مشتريات!F130) -> 0 | E130: =SUMIFS(مشتريات!$J$5:$J$1048576,مشتريات!$B$5:$B$1048576,">="&'تقرير المشتريات'!$B$1,مشتريات!$B$5:$B$1048576,"<="&'تقرير المشتريات'!$B$2,مشتريات!$F$5:$F$1048576,مشتريات!F130) -> 0
C131: =SUMIFS(مشتريات!$H$5:$H$1048576,مشتريات!$B$5:$B$1048576,">="&'تقرير المشتريات'!$B$1,مشتريات!$B$5:$B$1048576,"<="&'تقرير المشتريات'!$B$2,مشتريات!$F$5:$F$1048576,مشتريات!F131) -> 0 | D131: =SUMIFS(مشتريات!$I$5:$I$1048576,مشتريات!$B$5:$B$1048576,">="&'تقرير المشتريات'!$B$1,مشتريات!$B$5:$B$1048576,"<="&'تقرير المشتريات'!$B$2,مشتريات!$F$5:$F$1048576,مشتريات!F131) -> 0 | E131: =SUMIFS(مشتريات!$J$5:$J$1048576,مشتريات!$B$5:$B$1048576,">="&'تقرير المشتريات'!$B$1,مشتريات!$B$5:$B$1048576,"<="&'تقرير المشتريات'!$B$2,مشتريات!$F$5:$F$1048576,مشتريات!F131) -> 0
C132: =SUMIFS(مشتريات!$H$5:$H$1048576,مشتريات!$B$5:$B$1048576,">="&'تقرير المشتريات'!$B$1,مشتريات!$B$5:$B$1048576,"<="&'تقرير المشتريات'!$B$2,مشتريات!$F$5:$F$1048576,مشتريات!F132) -> 0 | D132: =SUMIFS(مشتريات!$I$5:$I$1048576,مشتريات!$B$5:$B$1048576,">="&'تقرير المشتريات'!$B$1,مشتريات!$B$5:$B$1048576,"<="&'تقرير المشتريات'!$B$2,مشتريات!$F$5:$F$1048576,مشتريات!F132) -> 0 | E132: =SUMIFS(مشتريات!$J$5:$J$1048576,مشتريات!$B$5:$B$1048576,">="&'تقرير المشتريات'!$B$1,مشتريات!$B$5:$B$1048576,"<="&'تقرير المشتريات'!$B$2,مشتريات!$F$5:$F$1048576,مشتريات!F132) -> 0
C133: =SUMIFS(مشتريات!$H$5:$H$1048576,مشتريات!$B$5:$B$1048576,">="&'تقرير المشتريات'!$B$1,مشتريات!$B$5:$B$1048576,"<="&'تقرير المشتريات'!$B$2,مشتريات!$F$5:$F$1048576,مشتريات!F133) -> 0 | D133: =SUMIFS(مشتريات!$I$5:$I$1048576,مشتريات!$B$5:$B$1048576,">="&'تقرير المشتريات'!$B$1,مشتريات!$B$5:$B$1048576,"<="&'تقرير المشتريات'!$B$2,مشتريات!$F$5:$F$1048576,مشتريات!F133) -> 0 | E133: =SUMIFS(مشتريات!$J$5:$J$1048576,مشتريات!$B$5:$B$1048576,">="&'تقرير المشتريات'!$B$1,مشتريات!$B$5:$B$1048576,"<="&'تقرير المشتريات'!$B$2,مشتريات!$F$5:$F$1048576,مشتريات!F133) -> 0
C134: =SUMIFS(مشتريات!$H$5:$H$1048576,مشتريات!$B$5:$B$1048576,">="&'تقرير المشتريات'!$B$1,مشتريات!$B$5:$B$1048576,"<="&'تقرير المشتريات'!$B$2,مشتريات!$F$5:$F$1048576,مشتريات!F134) -> 0 | D134: =SUMIFS(مشتريات!$I$5:$I$1048576,مشتريات!$B$5:$B$1048576,">="&'تقرير المشتريات'!$B$1,مشتريات!$B$5:$B$1048576,"<="&'تقرير المشتريات'!$B$2,مشتريات!$F$5:$F$1048576,مشتريات!F134) -> 0 | E134: =SUMIFS(مشتريات!$J$5:$J$1048576,مشتريات!$B$5:$B$1048576,">="&'تقرير المشتريات'!$B$1,مشتريات!$B$5:$B$1048576,"<="&'تقرير المشتريات'!$B$2,مشتريات!$F$5:$F$1048576,مشتريات!F134) -> 0
C135: =SUMIFS(مشتريات!$H$5:$H$1048576,مشتريات!$B$5:$B$1048576,">="&'تقرير المشتريات'!$B$1,مشتريات!$B$5:$B$1048576,"<="&'تقرير المشتريات'!$B$2,مشتريات!$F$5:$F$1048576,مشتريات!F135) -> 0 | D135: =SUMIFS(مشتريات!$I$5:$I$1048576,مشتريات!$B$5:$B$1048576,">="&'تقرير المشتريات'!$B$1,مشتريات!$B$5:$B$1048576,"<="&'تقرير المشتريات'!$B$2,مشتريات!$F$5:$F$1048576,مشتريات!F135) -> 0 | E135: =SUMIFS(مشتريات!$J$5:$J$1048576,مشتريات!$B$5:$B$1048576,">="&'تقرير المشتريات'!$B$1,مشتريات!$B$5:$B$1048576,"<="&'تقرير المشتريات'!$B$2,مشتريات!$F$5:$F$1048576,مشتريات!F135) -> 0
C136: =SUMIFS(مشتريات!$H$5:$H$1048576,مشتريات!$B$5:$B$1048576,">="&'تقرير المشتريات'!$B$1,مشتريات!$B$5:$B$1048576,"<="&'تقرير المشتريات'!$B$2,مشتريات!$F$5:$F$1048576,مشتريات!F136) -> 0 | D136: =SUMIFS(مشتريات!$I$5:$I$1048576,مشتريات!$B$5:$B$1048576,">="&'تقرير المشتريات'!$B$1,مشتريات!$B$5:$B$1048576,"<="&'تقرير المشتريات'!$B$2,مشتريات!$F$5:$F$1048576,مشتريات!F136) -> 0 | E136: =SUMIFS(مشتريات!$J$5:$J$1048576,مشتريات!$B$5:$B$1048576,">="&'تقرير المشتريات'!$B$1,مشتريات!$B$5:$B$1048576,"<="&'تقرير المشتريات'!$B$2,مشتريات!$F$5:$F$1048576,مشتريات!F136) -> 0
C137: =SUMIFS(مشتريات!$H$5:$H$1048576,مشتريات!$B$5:$B$1048576,">="&'تقرير المشتريات'!$B$1,مشتريات!$B$5:$B$1048576,"<="&'تقرير المشتريات'!$B$2,مشتريات!$F$5:$F$1048576,مشتريات!F137) -> 0 | D137: =SUMIFS(مشتريات!$I$5:$I$1048576,مشتريات!$B$5:$B$1048576,">="&'تقرير المشتريات'!$B$1,مشتريات!$B$5:$B$1048576,"<="&'تقرير المشتريات'!$B$2,مشتريات!$F$5:$F$1048576,مشتريات!F137) -> 0 | E137: =SUMIFS(مشتريات!$J$5:$J$1048576,مشتريات!$B$5:$B$1048576,">="&'تقرير المشتريات'!$B$1,مشتريات!$B$5:$B$1048576,"<="&'تقرير المشتريات'!$B$2,مشتريات!$F$5:$F$1048576,مشتريات!F137) -> 0
C138: =SUMIFS(مشتريات!$H$5:$H$1048576,مشتريات!$B$5:$B$1048576,">="&'تقرير المشتريات'!$B$1,مشتريات!$B$5:$B$1048576,"<="&'تقرير المشتريات'!$B$2,مشتريات!$F$5:$F$1048576,مشتريات!F138) -> 0 | D138: =SUMIFS(مشتريات!$I$5:$I$1048576,مشتريات!$B$5:$B$1048576,">="&'تقرير المشتريات'!$B$1,مشتريات!$B$5:$B$1048576,"<="&'تقرير المشتريات'!$B$2,مشتريات!$F$5:$F$1048576,مشتريات!F138) -> 0 | E138: =SUMIFS(مشتريات!$J$5:$J$1048576,مشتريات!$B$5:$B$1048576,">="&'تقرير المشتريات'!$B$1,مشتريات!$B$5:$B$1048576,"<="&'تقرير المشتريات'!$B$2,مشتريات!$F$5:$F$1048576,مشتريات!F138) -> 0
C139: =SUMIFS(مشتريات!$H$5:$H$1048576,مشتريات!$B$5:$B$1048576,">="&'تقرير المشتريات'!$B$1,مشتريات!$B$5:$B$1048576,"<="&'تقرير المشتريات'!$B$2,مشتريات!$F$5:$F$1048576,مشتريات!F139) -> 0 | D139: =SUMIFS(مشتريات!$I$5:$I$1048576,مشتريات!$B$5:$B$1048576,">="&'تقرير المشتريات'!$B$1,مشتريات!$B$5:$B$1048576,"<="&'تقرير المشتريات'!$B$2,مشتريات!$F$5:$F$1048576,مشتريات!F139) -> 0 | E139: =SUMIFS(مشتريات!$J$5:$J$1048576,مشتريات!$B$5:$B$1048576,">="&'تقرير المشتريات'!$B$1,مشتريات!$B$5:$B$1048576,"<="&'تقرير المشتريات'!$B$2,مشتريات!$F$5:$F$1048576,مشتريات!F139) -> 0
C140: =SUMIFS(مشتريات!$H$5:$H$1048576,مشتريات!$B$5:$B$1048576,">="&'تقرير المشتريات'!$B$1,مشتريات!$B$5:$B$1048576,"<="&'تقرير المشتريات'!$B$2,مشتريات!$F$5:$F$1048576,مشتريات!F140) -> 0 | D140: =SUMIFS(مشتريات!$I$5:$I$1048576,مشتريات!$B$5:$B$1048576,">="&'تقرير المشتريات'!$B$1,مشتريات!$B$5:$B$1048576,"<="&'تقرير المشتريات'!$B$2,مشتريات!$F$5:$F$1048576,مشتريات!F140) -> 0 | E140: =SUMIFS(مشتريات!$J$5:$J$1048576,مشتريات!$B$5:$B$1048576,">="&'تقرير المشتريات'!$B$1,مشتريات!$B$5:$B$1048576,"<="&'تقرير المشتريات'!$B$2,مشتريات!$F$5:$F$1048576,مشتريات!F140) -> 0
C141: =SUMIFS(مشتريات!$H$5:$H$1048576,مشتريات!$B$5:$B$1048576,">="&'تقرير المشتريات'!$B$1,مشتريات!$B$5:$B$1048576,"<="&'تقرير المشتريات'!$B$2,مشتريات!$F$5:$F$1048576,مشتريات!F141) -> 0 | D141: =SUMIFS(مشتريات!$I$5:$I$1048576,مشتريات!$B$5:$B$1048576,">="&'تقرير المشتريات'!$B$1,مشتريات!$B$5:$B$1048576,"<="&'تقرير المشتريات'!$B$2,مشتريات!$F$5:$F$1048576,مشتريات!F141) -> 0 | E141: =SUMIFS(مشتريات!$J$5:$J$1048576,مشتريات!$B$5:$B$1048576,">="&'تقرير المشتريات'!$B$1,مشتريات!$B$5:$B$1048576,"<="&'تقرير المشتريات'!$B$2,مشتريات!$F$5:$F$1048576,مشتريات!F141) -> 0
C142: =SUMIFS(مشتريات!$H$5:$H$1048576,مشتريات!$B$5:$B$1048576,">="&'تقرير المشتريات'!$B$1,مشتريات!$B$5:$B$1048576,"<="&'تقرير المشتريات'!$B$2,مشتريات!$F$5:$F$1048576,مشتريات!F142) -> 0 | D142: =SUMIFS(مشتريات!$I$5:$I$1048576,مشتريات!$B$5:$B$1048576,">="&'تقرير المشتريات'!$B$1,مشتريات!$B$5:$B$1048576,"<="&'تقرير المشتريات'!$B$2,مشتريات!$F$5:$F$1048576,مشتريات!F142) -> 0 | E142: =SUMIFS(مشتريات!$J$5:$J$1048576,مشتريات!$B$5:$B$1048576,">="&'تقرير المشتريات'!$B$1,مشتريات!$B$5:$B$1048576,"<="&'تقرير المشتريات'!$B$2,مشتريات!$F$5:$F$1048576,مشتريات!F142) -> 0
C143: =SUMIFS(مشتريات!$H$5:$H$1048576,مشتريات!$B$5:$B$1048576,">="&'تقرير المشتريات'!$B$1,مشتريات!$B$5:$B$1048576,"<="&'تقرير المشتريات'!$B$2,مشتريات!$F$5:$F$1048576,مشتريات!F143) -> 0 | D143: =SUMIFS(مشتريات!$I$5:$I$1048576,مشتريات!$B$5:$B$1048576,">="&'تقرير المشتريات'!$B$1,مشتريات!$B$5:$B$1048576,"<="&'تقرير المشتريات'!$B$2,مشتريات!$F$5:$F$1048576,مشتريات!F143) -> 0 | E143: =SUMIFS(مشتريات!$J$5:$J$1048576,مشتريات!$B$5:$B$1048576,">="&'تقرير المشتريات'!$B$1,مشتريات!$B$5:$B$1048576,"<="&'تقرير المشتريات'!$B$2,مشتريات!$F$5:$F$1048576,مشتريات!F143) -> 0
C144: =SUMIFS(مشتريات!$H$5:$H$1048576,مشتريات!$B$5:$B$1048576,">="&'تقرير المشتريات'!$B$1,مشتريات!$B$5:$B$1048576,"<="&'تقرير المشتريات'!$B$2,مشتريات!$F$5:$F$1048576,مشتريات!F144) -> 0 | D144: =SUMIFS(مشتريات!$I$5:$I$1048576,مشتريات!$B$5:$B$1048576,">="&'تقرير المشتريات'!$B$1,مشتريات!$B$5:$B$1048576,"<="&'تقرير المشتريات'!$B$2,مشتريات!$F$5:$F$1048576,مشتريات!F144) -> 0 | E144: =SUMIFS(مشتريات!$J$5:$J$1048576,مشتريات!$B$5:$B$1048576,">="&'تقرير المشتريات'!$B$1,مشتريات!$B$5:$B$1048576,"<="&'تقرير المشتريات'!$B$2,مشتريات!$F$5:$F$1048576,مشتريات!F144) -> 0
C145: =SUMIFS(مشتريات!$H$5:$H$1048576,مشتريات!$B$5:$B$1048576,">="&'تقرير المشتريات'!$B$1,مشتريات!$B$5:$B$1048576,"<="&'تقرير المشتريات'!$B$2,مشتريات!$F$5:$F$1048576,مشتريات!F145) -> 0 | D145: =SUMIFS(مشتريات!$I$5:$I$1048576,مشتريات!$B$5:$B$1048576,">="&'تقرير المشتريات'!$B$1,مشتريات!$B$5:$B$1048576,"<="&'تقرير المشتريات'!$B$2,مشتريات!$F$5:$F$1048576,مشتريات!F145) -> 0 | E145: =SUMIFS(مشتريات!$J$5:$J$1048576,مشتريات!$B$5:$B$1048576,">="&'تقرير المشتريات'!$B$1,مشتريات!$B$5:$B$1048576,"<="&'تقرير المشتريات'!$B$2,مشتريات!$F$5:$F$1048576,مشتريات!F145) -> 0
C146: =SUMIFS(مشتريات!$H$5:$H$1048576,مشتريات!$B$5:$B$1048576,">="&'تقرير المشتريات'!$B$1,مشتريات!$B$5:$B$1048576,"<="&'تقرير المشتريات'!$B$2,مشتريات!$F$5:$F$1048576,مشتريات!F146) -> 0 | D146: =SUMIFS(مشتريات!$I$5:$I$1048576,مشتريات!$B$5:$B$1048576,">="&'تقرير المشتريات'!$B$1,مشتريات!$B$5:$B$1048576,"<="&'تقرير المشتريات'!$B$2,مشتريات!$F$5:$F$1048576,مشتريات!F146) -> 0 | E146: =SUMIFS(مشتريات!$J$5:$J$1048576,مشتريات!$B$5:$B$1048576,">="&'تقرير المشتريات'!$B$1,مشتريات!$B$5:$B$1048576,"<="&'تقرير المشتريات'!$B$2,مشتريات!$F$5:$F$1048576,مشتريات!F146) -> 0
C147: =SUMIFS(مشتريات!$H$5:$H$1048576,مشتريات!$B$5:$B$1048576,">="&'تقرير المشتريات'!$B$1,مشتريات!$B$5:$B$1048576,"<="&'تقرير المشتريات'!$B$2,مشتريات!$F$5:$F$1048576,مشتريات!F147) -> 0 | D147: =SUMIFS(مشتريات!$I$5:$I$1048576,مشتريات!$B$5:$B$1048576,">="&'تقرير المشتريات'!$B$1,مشتريات!$B$5:$B$1048576,"<="&'تقرير المشتريات'!$B$2,مشتريات!$F$5:$F$1048576,مشتريات!F147) -> 0 | E147: =SUMIFS(مشتريات!$J$5:$J$1048576,مشتريات!$B$5:$B$1048576,">="&'تقرير المشتريات'!$B$1,مشتريات!$B$5:$B$1048576,"<="&'تقرير المشتريات'!$B$2,مشتريات!$F$5:$F$1048576,مشتريات!F147) -> 0
C148: =SUMIFS(مشتريات!$H$5:$H$1048576,مشتريات!$B$5:$B$1048576,">="&'تقرير المشتريات'!$B$1,مشتريات!$B$5:$B$1048576,"<="&'تقرير المشتريات'!$B$2,مشتريات!$F$5:$F$1048576,مشتريات!F148) -> 0 | D148: =SUMIFS(مشتريات!$I$5:$I$1048576,مشتريات!$B$5:$B$1048576,">="&'تقرير المشتريات'!$B$1,مشتريات!$B$5:$B$1048576,"<="&'تقرير المشتريات'!$B$2,مشتريات!$F$5:$F$1048576,مشتريات!F148) -> 0 | E148: =SUMIFS(مشتريات!$J$5:$J$1048576,مشتريات!$B$5:$B$1048576,">="&'تقرير المشتريات'!$B$1,مشتريات!$B$5:$B$1048576,"<="&'تقرير المشتريات'!$B$2,مشتريات!$F$5:$F$1048576,مشتريات!F148) -> 0
C149: =SUMIFS(مشتريات!$H$5:$H$1048576,مشتريات!$B$5:$B$1048576,">="&'تقرير المشتريات'!$B$1,مشتريات!$B$5:$B$1048576,"<="&'تقرير المشتريات'!$B$2,مشتريات!$F$5:$F$1048576,مشتريات!F149) -> 0 | D149: =SUMIFS(مشتريات!$I$5:$I$1048576,مشتريات!$B$5:$B$1048576,">="&'تقرير المشتريات'!$B$1,مشتريات!$B$5:$B$1048576,"<="&'تقرير المشتريات'!$B$2,مشتريات!$F$5:$F$1048576,مشتريات!F149) -> 0 | E149: =SUMIFS(مشتريات!$J$5:$J$1048576,مشتريات!$B$5:$B$1048576,">="&'تقرير المشتريات'!$B$1,مشتريات!$B$5:$B$1048576,"<="&'تقرير المشتريات'!$B$2,مشتريات!$F$5:$F$1048576,مشتريات!F149) -> 0
C150: =SUMIFS(مشتريات!$H$5:$H$1048576,مشتريات!$B$5:$B$1048576,">="&'تقرير المشتريات'!$B$1,مشتريات!$B$5:$B$1048576,"<="&'تقرير المشتريات'!$B$2,مشتريات!$F$5:$F$1048576,مشتريات!F150) -> 0 | D150: =SUMIFS(مشتريات!$I$5:$I$1048576,مشتريات!$B$5:$B$1048576,">="&'تقرير المشتريات'!$B$1,مشتريات!$B$5:$B$1048576,"<="&'تقرير المشتريات'!$B$2,مشتريات!$F$5:$F$1048576,مشتريات!F150) -> 0 | E150: =SUMIFS(مشتريات!$J$5:$J$1048576,مشتريات!$B$5:$B$1048576,">="&'تقرير المشتريات'!$B$1,مشتريات!$B$5:$B$1048576,"<="&'تقرير المشتريات'!$B$2,مشتريات!$F$5:$F$1048576,مشتريات!F150) -> 0
C151: =SUMIFS(مشتريات!$H$5:$H$1048576,مشتريات!$B$5:$B$1048576,">="&'تقرير المشتريات'!$B$1,مشتريات!$B$5:$B$1048576,"<="&'تقرير المشتريات'!$B$2,مشتريات!$F$5:$F$1048576,مشتريات!F151) -> 0 | D151: =SUMIFS(مشتريات!$I$5:$I$1048576,مشتريات!$B$5:$B$1048576,">="&'تقرير المشتريات'!$B$1,مشتريات!$B$5:$B$1048576,"<="&'تقرير المشتريات'!$B$2,مشتريات!$F$5:$F$1048576,مشتريات!F151) -> 0 | E151: =SUMIFS(مشتريات!$J$5:$J$1048576,مشتريات!$B$5:$B$1048576,">="&'تقرير المشتريات'!$B$1,مشتريات!$B$5:$B$1048576,"<="&'تقرير المشتريات'!$B$2,مشتريات!$F$5:$F$1048576,مشتريات!F151) -> 0
C152: =SUMIFS(مشتريات!$H$5:$H$1048576,مشتريات!$B$5:$B$1048576,">="&'تقرير المشتريات'!$B$1,مشتريات!$B$5:$B$1048576,"<="&'تقرير المشتريات'!$B$2,مشتريات!$F$5:$F$1048576,مشتريات!F152) -> 0 | D152: =SUMIFS(مشتريات!$I$5:$I$1048576,مشتريات!$B$5:$B$1048576,">="&'تقرير المشتريات'!$B$1,مشتريات!$B$5:$B$1048576,"<="&'تقرير المشتريات'!$B$2,مشتريات!$F$5:$F$1048576,مشتريات!F152) -> 0 | E152: =SUMIFS(مشتريات!$J$5:$J$1048576,مشتريات!$B$5:$B$1048576,">="&'تقرير المشتريات'!$B$1,مشتريات!$B$5:$B$1048576,"<="&'تقرير المشتريات'!$B$2,مشتريات!$F$5:$F$1048576,مشتريات!F152) -> 0
C153: =SUMIFS(مشتريات!$H$5:$H$1048576,مشتريات!$B$5:$B$1048576,">="&'تقرير المشتريات'!$B$1,مشتريات!$B$5:$B$1048576,"<="&'تقرير المشتريات'!$B$2,مشتريات!$F$5:$F$1048576,مشتريات!F153) -> 0 | D153: =SUMIFS(مشتريات!$I$5:$I$1048576,مشتريات!$B$5:$B$1048576,">="&'تقرير المشتريات'!$B$1,مشتريات!$B$5:$B$1048576,"<="&'تقرير المشتريات'!$B$2,مشتريات!$F$5:$F$1048576,مشتريات!F153) -> 0 | E153: =SUMIFS(مشتريات!$J$5:$J$1048576,مشتريات!$B$5:$B$1048576,">="&'تقرير المشتريات'!$B$1,مشتريات!$B$5:$B$1048576,"<="&'تقرير المشتريات'!$B$2,مشتريات!$F$5:$F$1048576,مشتريات!F153) -> 0
C154: =SUMIFS(مشتريات!$H$5:$H$1048576,مشتريات!$B$5:$B$1048576,">="&'تقرير المشتريات'!$B$1,مشتريات!$B$5:$B$1048576,"<="&'تقرير المشتريات'!$B$2,مشتريات!$F$5:$F$1048576,مشتريات!F154) -> 0 | D154: =SUMIFS(مشتريات!$I$5:$I$1048576,مشتريات!$B$5:$B$1048576,">="&'تقرير المشتريات'!$B$1,مشتريات!$B$5:$B$1048576,"<="&'تقرير المشتريات'!$B$2,مشتريات!$F$5:$F$1048576,مشتريات!F154) -> 0 | E154: =SUMIFS(مشتريات!$J$5:$J$1048576,مشتريات!$B$5:$B$1048576,">="&'تقرير المشتريات'!$B$1,مشتريات!$B$5:$B$1048576,"<="&'تقرير المشتريات'!$B$2,مشتريات!$F$5:$F$1048576,مشتريات!F154) -> 0
C155: =SUMIFS(مشتريات!$H$5:$H$1048576,مشتريات!$B$5:$B$1048576,">="&'تقرير المشتريات'!$B$1,مشتريات!$B$5:$B$1048576,"<="&'تقرير المشتريات'!$B$2,مشتريات!$F$5:$F$1048576,مشتريات!F155) -> 0 | D155: =SUMIFS(مشتريات!$I$5:$I$1048576,مشتريات!$B$5:$B$1048576,">="&'تقرير المشتريات'!$B$1,مشتريات!$B$5:$B$1048576,"<="&'تقرير المشتريات'!$B$2,مشتريات!$F$5:$F$1048576,مشتريات!F155) -> 0 | E155: =SUMIFS(مشتريات!$J$5:$J$1048576,مشتريات!$B$5:$B$1048576,">="&'تقرير المشتريات'!$B$1,مشتريات!$B$5:$B$1048576,"<="&'تقرير المشتريات'!$B$2,مشتريات!$F$5:$F$1048576,مشتريات!F155) -> 0
C156: =SUMIFS(مشتريات!$H$5:$H$1048576,مشتريات!$B$5:$B$1048576,">="&'تقرير المشتريات'!$B$1,مشتريات!$B$5:$B$1048576,"<="&'تقرير المشتريات'!$B$2,مشتريات!$F$5:$F$1048576,مشتريات!F156) -> 0 | D156: =SUMIFS(مشتريات!$I$5:$I$1048576,مشتريات!$B$5:$B$1048576,">="&'تقرير المشتريات'!$B$1,مشتريات!$B$5:$B$1048576,"<="&'تقرير المشتريات'!$B$2,مشتريات!$F$5:$F$1048576,مشتريات!F156) -> 0 | E156: =SUMIFS(مشتريات!$J$5:$J$1048576,مشتريات!$B$5:$B$1048576,">="&'تقرير المشتريات'!$B$1,مشتريات!$B$5:$B$1048576,"<="&'تقرير المشتريات'!$B$2,مشتريات!$F$5:$F$1048576,مشتريات!F156) -> 0
C157: =SUMIFS(مشتريات!$H$5:$H$1048576,مشتريات!$B$5:$B$1048576,">="&'تقرير المشتريات'!$B$1,مشتريات!$B$5:$B$1048576,"<="&'تقرير المشتريات'!$B$2,مشتريات!$F$5:$F$1048576,مشتريات!F157) -> 0 | D157: =SUMIFS(مشتريات!$I$5:$I$1048576,مشتريات!$B$5:$B$1048576,">="&'تقرير المشتريات'!$B$1,مشتريات!$B$5:$B$1048576,"<="&'تقرير المشتريات'!$B$2,مشتريات!$F$5:$F$1048576,مشتريات!F157) -> 0 | E157: =SUMIFS(مشتريات!$J$5:$J$1048576,مشتريات!$B$5:$B$1048576,">="&'تقرير المشتريات'!$B$1,مشتريات!$B$5:$B$1048576,"<="&'تقرير المشتريات'!$B$2,مشتريات!$F$5:$F$1048576,مشتريات!F157) -> 0
C158: =SUMIFS(مشتريات!$H$5:$H$1048576,مشتريات!$B$5:$B$1048576,">="&'تقرير المشتريات'!$B$1,مشتريات!$B$5:$B$1048576,"<="&'تقرير المشتريات'!$B$2,مشتريات!$F$5:$F$1048576,مشتريات!F158) -> 0 | D158: =SUMIFS(مشتريات!$I$5:$I$1048576,مشتريات!$B$5:$B$1048576,">="&'تقرير المشتريات'!$B$1,مشتريات!$B$5:$B$1048576,"<="&'تقرير المشتريات'!$B$2,مشتريات!$F$5:$F$1048576,مشتريات!F158) -> 0 | E158: =SUMIFS(مشتريات!$J$5:$J$1048576,مشتريات!$B$5:$B$1048576,">="&'تقرير المشتريات'!$B$1,مشتريات!$B$5:$B$1048576,"<="&'تقرير المشتريات'!$B$2,مشتريات!$F$5:$F$1048576,مشتريات!F158) -> 0
C159: =SUMIFS(مشتريات!$H$5:$H$1048576,مشتريات!$B$5:$B$1048576,">="&'تقرير المشتريات'!$B$1,مشتريات!$B$5:$B$1048576,"<="&'تقرير المشتريات'!$B$2,مشتريات!$F$5:$F$1048576,مشتريات!F159) -> 0 | D159: =SUMIFS(مشتريات!$I$5:$I$1048576,مشتريات!$B$5:$B$1048576,">="&'تقرير المشتريات'!$B$1,مشتريات!$B$5:$B$1048576,"<="&'تقرير المشتريات'!$B$2,مشتريات!$F$5:$F$1048576,مشتريات!F159) -> 0 | E159: =SUMIFS(مشتريات!$J$5:$J$1048576,مشتريات!$B$5:$B$1048576,">="&'تقرير المشتريات'!$B$1,مشتريات!$B$5:$B$1048576,"<="&'تقرير المشتريات'!$B$2,مشتريات!$F$5:$F$1048576,مشتريات!F159) -> 0
C160: =SUMIFS(مشتريات!$H$5:$H$1048576,مشتريات!$B$5:$B$1048576,">="&'تقرير المشتريات'!$B$1,مشتريات!$B$5:$B$1048576,"<="&'تقرير المشتريات'!$B$2,مشتريات!$F$5:$F$1048576,مشتريات!F160) -> 0 | D160: =SUMIFS(مشتريات!$I$5:$I$1048576,مشتريات!$B$5:$B$1048576,">="&'تقرير المشتريات'!$B$1,مشتريات!$B$5:$B$1048576,"<="&'تقرير المشتريات'!$B$2,مشتريات!$F$5:$F$1048576,مشتريات!F160) -> 0 | E160: =SUMIFS(مشتريات!$J$5:$J$1048576,مشتريات!$B$5:$B$1048576,">="&'تقرير المشتريات'!$B$1,مشتريات!$B$5:$B$1048576,"<="&'تقرير المشتريات'!$B$2,مشتريات!$F$5:$F$1048576,مشتريات!F160) -> 0
C161: =SUMIFS(مشتريات!$H$5:$H$1048576,مشتريات!$B$5:$B$1048576,">="&'تقرير المشتريات'!$B$1,مشتريات!$B$5:$B$1048576,"<="&'تقرير المشتريات'!$B$2,مشتريات!$F$5:$F$1048576,مشتريات!F161) -> 0 | D161: =SUMIFS(مشتريات!$I$5:$I$1048576,مشتريات!$B$5:$B$1048576,">="&'تقرير المشتريات'!$B$1,مشتريات!$B$5:$B$1048576,"<="&'تقرير المشتريات'!$B$2,مشتريات!$F$5:$F$1048576,مشتريات!F161) -> 0 | E161: =SUMIFS(مشتريات!$J$5:$J$1048576,مشتريات!$B$5:$B$1048576,">="&'تقرير المشتريات'!$B$1,مشتريات!$B$5:$B$1048576,"<="&'تقرير المشتريات'!$B$2,مشتريات!$F$5:$F$1048576,مشتريات!F161) -> 0
C162: =SUMIFS(مشتريات!$H$5:$H$1048576,مشتريات!$B$5:$B$1048576,">="&'تقرير المشتريات'!$B$1,مشتريات!$B$5:$B$1048576,"<="&'تقرير المشتريات'!$B$2,مشتريات!$F$5:$F$1048576,مشتريات!F162) -> 0 | D162: =SUMIFS(مشتريات!$I$5:$I$1048576,مشتريات!$B$5:$B$1048576,">="&'تقرير المشتريات'!$B$1,مشتريات!$B$5:$B$1048576,"<="&'تقرير المشتريات'!$B$2,مشتريات!$F$5:$F$1048576,مشتريات!F162) -> 0 | E162: =SUMIFS(مشتريات!$J$5:$J$1048576,مشتريات!$B$5:$B$1048576,">="&'تقرير المشتريات'!$B$1,مشتريات!$B$5:$B$1048576,"<="&'تقرير المشتريات'!$B$2,مشتريات!$F$5:$F$1048576,مشتريات!F162) -> 0
C163: =SUMIFS(مشتريات!$H$5:$H$1048576,مشتريات!$B$5:$B$1048576,">="&'تقرير المشتريات'!$B$1,مشتريات!$B$5:$B$1048576,"<="&'تقرير المشتريات'!$B$2,مشتريات!$F$5:$F$1048576,مشتريات!F163) -> 0 | D163: =SUMIFS(مشتريات!$I$5:$I$1048576,مشتريات!$B$5:$B$1048576,">="&'تقرير المشتريات'!$B$1,مشتريات!$B$5:$B$1048576,"<="&'تقرير المشتريات'!$B$2,مشتريات!$F$5:$F$1048576,مشتريات!F163) -> 0 | E163: =SUMIFS(مشتريات!$J$5:$J$1048576,مشتريات!$B$5:$B$1048576,">="&'تقرير المشتريات'!$B$1,مشتريات!$B$5:$B$1048576,"<="&'تقرير المشتريات'!$B$2,مشتريات!$F$5:$F$1048576,مشتريات!F163) -> 0
C164: =SUMIFS(مشتريات!$H$5:$H$1048576,مشتريات!$B$5:$B$1048576,">="&'تقرير المشتريات'!$B$1,مشتريات!$B$5:$B$1048576,"<="&'تقرير المشتريات'!$B$2,مشتريات!$F$5:$F$1048576,مشتريات!F164) -> 0 | D164: =SUMIFS(مشتريات!$I$5:$I$1048576,مشتريات!$B$5:$B$1048576,">="&'تقرير المشتريات'!$B$1,مشتريات!$B$5:$B$1048576,"<="&'تقرير المشتريات'!$B$2,مشتريات!$F$5:$F$1048576,مشتريات!F164) -> 0 | E164: =SUMIFS(مشتريات!$J$5:$J$1048576,مشتريات!$B$5:$B$1048576,">="&'تقرير المشتريات'!$B$1,مشتريات!$B$5:$B$1048576,"<="&'تقرير المشتريات'!$B$2,مشتريات!$F$5:$F$1048576,مشتريات!F164) -> 0
C165: =SUMIFS(مشتريات!$H$5:$H$1048576,مشتريات!$B$5:$B$1048576,">="&'تقرير المشتريات'!$B$1,مشتريات!$B$5:$B$1048576,"<="&'تقرير المشتريات'!$B$2,مشتريات!$F$5:$F$1048576,مشتريات!F165) -> 0 | D165: =SUMIFS(مشتريات!$I$5:$I$1048576,مشتريات!$B$5:$B$1048576,">="&'تقرير المشتريات'!$B$1,مشتريات!$B$5:$B$1048576,"<="&'تقرير المشتريات'!$B$2,مشتريات!$F$5:$F$1048576,مشتريات!F165) -> 0 | E165: =SUMIFS(مشتريات!$J$5:$J$1048576,مشتريات!$B$5:$B$1048576,">="&'تقرير المشتريات'!$B$1,مشتريات!$B$5:$B$1048576,"<="&'تقرير المشتريات'!$B$2,مشتريات!$F$5:$F$1048576,مشتريات!F165) -> 0
C166: =SUMIFS(مشتريات!$H$5:$H$1048576,مشتريات!$B$5:$B$1048576,">="&'تقرير المشتريات'!$B$1,مشتريات!$B$5:$B$1048576,"<="&'تقرير المشتريات'!$B$2,مشتريات!$F$5:$F$1048576,مشتريات!F166) -> 0 | D166: =SUMIFS(مشتريات!$I$5:$I$1048576,مشتريات!$B$5:$B$1048576,">="&'تقرير المشتريات'!$B$1,مشتريات!$B$5:$B$1048576,"<="&'تقرير المشتريات'!$B$2,مشتريات!$F$5:$F$1048576,مشتريات!F166) -> 0 | E166: =SUMIFS(مشتريات!$J$5:$J$1048576,مشتريات!$B$5:$B$1048576,">="&'تقرير المشتريات'!$B$1,مشتريات!$B$5:$B$1048576,"<="&'تقرير المشتريات'!$B$2,مشتريات!$F$5:$F$1048576,مشتريات!F166) -> 0
C167: =SUMIFS(مشتريات!$H$5:$H$1048576,مشتريات!$B$5:$B$1048576,">="&'تقرير المشتريات'!$B$1,مشتريات!$B$5:$B$1048576,"<="&'تقرير المشتريات'!$B$2,مشتريات!$F$5:$F$1048576,مشتريات!F167) -> 0 | D167: =SUMIFS(مشتريات!$I$5:$I$1048576,مشتريات!$B$5:$B$1048576,">="&'تقرير المشتريات'!$B$1,مشتريات!$B$5:$B$1048576,"<="&'تقرير المشتريات'!$B$2,مشتريات!$F$5:$F$1048576,مشتريات!F167) -> 0 | E167: =SUMIFS(مشتريات!$J$5:$J$1048576,مشتريات!$B$5:$B$1048576,">="&'تقرير المشتريات'!$B$1,مشتريات!$B$5:$B$1048576,"<="&'تقرير المشتريات'!$B$2,مشتريات!$F$5:$F$1048576,مشتريات!F167) -> 0
C168: =SUMIFS(مشتريات!$H$5:$H$1048576,مشتريات!$B$5:$B$1048576,">="&'تقرير المشتريات'!$B$1,مشتريات!$B$5:$B$1048576,"<="&'تقرير المشتريات'!$B$2,مشتريات!$F$5:$F$1048576,مشتريات!F168) -> 0 | D168: =SUMIFS(مشتريات!$I$5:$I$1048576,مشتريات!$B$5:$B$1048576,">="&'تقرير المشتريات'!$B$1,مشتريات!$B$5:$B$1048576,"<="&'تقرير المشتريات'!$B$2,مشتريات!$F$5:$F$1048576,مشتريات!F168) -> 0 | E168: =SUMIFS(مشتريات!$J$5:$J$1048576,مشتريات!$B$5:$B$1048576,">="&'تقرير المشتريات'!$B$1,مشتريات!$B$5:$B$1048576,"<="&'تقرير المشتريات'!$B$2,مشتريات!$F$5:$F$1048576,مشتريات!F168) -> 0
C169: =SUMIFS(مشتريات!$H$5:$H$1048576,مشتريات!$B$5:$B$1048576,">="&'تقرير المشتريات'!$B$1,مشتريات!$B$5:$B$1048576,"<="&'تقرير المشتريات'!$B$2,مشتريات!$F$5:$F$1048576,مشتريات!F169) -> 0 | D169: =SUMIFS(مشتريات!$I$5:$I$1048576,مشتريات!$B$5:$B$1048576,">="&'تقرير المشتريات'!$B$1,مشتريات!$B$5:$B$1048576,"<="&'تقرير المشتريات'!$B$2,مشتريات!$F$5:$F$1048576,مشتريات!F169) -> 0 | E169: =SUMIFS(مشتريات!$J$5:$J$1048576,مشتريات!$B$5:$B$1048576,">="&'تقرير المشتريات'!$B$1,مشتريات!$B$5:$B$1048576,"<="&'تقرير المشتريات'!$B$2,مشتريات!$F$5:$F$1048576,مشتريات!F169) -> 0
C170: =SUMIFS(مشتريات!$H$5:$H$1048576,مشتريات!$B$5:$B$1048576,">="&'تقرير المشتريات'!$B$1,مشتريات!$B$5:$B$1048576,"<="&'تقرير المشتريات'!$B$2,مشتريات!$F$5:$F$1048576,مشتريات!F170) -> 0 | D170: =SUMIFS(مشتريات!$I$5:$I$1048576,مشتريات!$B$5:$B$1048576,">="&'تقرير المشتريات'!$B$1,مشتريات!$B$5:$B$1048576,"<="&'تقرير المشتريات'!$B$2,مشتريات!$F$5:$F$1048576,مشتريات!F170) -> 0 | E170: =SUMIFS(مشتريات!$J$5:$J$1048576,مشتريات!$B$5:$B$1048576,">="&'تقرير المشتريات'!$B$1,مشتريات!$B$5:$B$1048576,"<="&'تقرير المشتريات'!$B$2,مشتريات!$F$5:$F$1048576,مشتريات!F170) -> 0
C171: =SUMIFS(مشتريات!$H$5:$H$1048576,مشتريات!$B$5:$B$1048576,">="&'تقرير المشتريات'!$B$1,مشتريات!$B$5:$B$1048576,"<="&'تقرير المشتريات'!$B$2,مشتريات!$F$5:$F$1048576,مشتريات!F171) -> 0 | D171: =SUMIFS(مشتريات!$I$5:$I$1048576,مشتريات!$B$5:$B$1048576,">="&'تقرير المشتريات'!$B$1,مشتريات!$B$5:$B$1048576,"<="&'تقرير المشتريات'!$B$2,مشتريات!$F$5:$F$1048576,مشتريات!F171) -> 0 | E171: =SUMIFS(مشتريات!$J$5:$J$1048576,مشتريات!$B$5:$B$1048576,">="&'تقرير المشتريات'!$B$1,مشتريات!$B$5:$B$1048576,"<="&'تقرير المشتريات'!$B$2,مشتريات!$F$5:$F$1048576,مشتريات!F171) -> 0
C172: =SUMIFS(مشتريات!$H$5:$H$1048576,مشتريات!$B$5:$B$1048576,">="&'تقرير المشتريات'!$B$1,مشتريات!$B$5:$B$1048576,"<="&'تقرير المشتريات'!$B$2,مشتريات!$F$5:$F$1048576,مشتريات!F172) -> 0 | D172: =SUMIFS(مشتريات!$I$5:$I$1048576,مشتريات!$B$5:$B$1048576,">="&'تقرير المشتريات'!$B$1,مشتريات!$B$5:$B$1048576,"<="&'تقرير المشتريات'!$B$2,مشتريات!$F$5:$F$1048576,مشتريات!F172) -> 0 | E172: =SUMIFS(مشتريات!$J$5:$J$1048576,مشتريات!$B$5:$B$1048576,">="&'تقرير المشتريات'!$B$1,مشتريات!$B$5:$B$1048576,"<="&'تقرير المشتريات'!$B$2,مشتريات!$F$5:$F$1048576,مشتريات!F172) -> 0
C173: =SUMIFS(مشتريات!$H$5:$H$1048576,مشتريات!$B$5:$B$1048576,">="&'تقرير المشتريات'!$B$1,مشتريات!$B$5:$B$1048576,"<="&'تقرير المشتريات'!$B$2,مشتريات!$F$5:$F$1048576,مشتريات!F173) -> 0 | D173: =SUMIFS(مشتريات!$I$5:$I$1048576,مشتريات!$B$5:$B$1048576,">="&'تقرير المشتريات'!$B$1,مشتريات!$B$5:$B$1048576,"<="&'تقرير المشتريات'!$B$2,مشتريات!$F$5:$F$1048576,مشتريات!F173) -> 0 | E173: =SUMIFS(مشتريات!$J$5:$J$1048576,مشتريات!$B$5:$B$1048576,">="&'تقرير المشتريات'!$B$1,مشتريات!$B$5:$B$1048576,"<="&'تقرير المشتريات'!$B$2,مشتريات!$F$5:$F$1048576,مشتريات!F173) -> 0
C174: =SUMIFS(مشتريات!$H$5:$H$1048576,مشتريات!$B$5:$B$1048576,">="&'تقرير المشتريات'!$B$1,مشتريات!$B$5:$B$1048576,"<="&'تقرير المشتريات'!$B$2,مشتريات!$F$5:$F$1048576,مشتريات!F174) -> 0 | D174: =SUMIFS(مشتريات!$I$5:$I$1048576,مشتريات!$B$5:$B$1048576,">="&'تقرير المشتريات'!$B$1,مشتريات!$B$5:$B$1048576,"<="&'تقرير المشتريات'!$B$2,مشتريات!$F$5:$F$1048576,مشتريات!F174) -> 0 | E174: =SUMIFS(مشتريات!$J$5:$J$1048576,مشتريات!$B$5:$B$1048576,">="&'تقرير المشتريات'!$B$1,مشتريات!$B$5:$B$1048576,"<="&'تقرير المشتريات'!$B$2,مشتريات!$F$5:$F$1048576,مشتريات!F174) -> 0
C175: =SUMIFS(مشتريات!$H$5:$H$1048576,مشتريات!$B$5:$B$1048576,">="&'تقرير المشتريات'!$B$1,مشتريات!$B$5:$B$1048576,"<="&'تقرير المشتريات'!$B$2,مشتريات!$F$5:$F$1048576,مشتريات!F175) -> 0 | D175: =SUMIFS(مشتريات!$I$5:$I$1048576,مشتريات!$B$5:$B$1048576,">="&'تقرير المشتريات'!$B$1,مشتريات!$B$5:$B$1048576,"<="&'تقرير المشتريات'!$B$2,مشتريات!$F$5:$F$1048576,مشتريات!F175) -> 0 | E175: =SUMIFS(مشتريات!$J$5:$J$1048576,مشتريات!$B$5:$B$1048576,">="&'تقرير المشتريات'!$B$1,مشتريات!$B$5:$B$1048576,"<="&'تقرير المشتريات'!$B$2,مشتريات!$F$5:$F$1048576,مشتريات!F175) -> 0
C176: =SUMIFS(مشتريات!$H$5:$H$1048576,مشتريات!$B$5:$B$1048576,">="&'تقرير المشتريات'!$B$1,مشتريات!$B$5:$B$1048576,"<="&'تقرير المشتريات'!$B$2,مشتريات!$F$5:$F$1048576,مشتريات!F176) -> 0 | D176: =SUMIFS(مشتريات!$I$5:$I$1048576,مشتريات!$B$5:$B$1048576,">="&'تقرير المشتريات'!$B$1,مشتريات!$B$5:$B$1048576,"<="&'تقرير المشتريات'!$B$2,مشتريات!$F$5:$F$1048576,مشتريات!F176) -> 0 | E176: =SUMIFS(مشتريات!$J$5:$J$1048576,مشتريات!$B$5:$B$1048576,">="&'تقرير المشتريات'!$B$1,مشتريات!$B$5:$B$1048576,"<="&'تقرير المشتريات'!$B$2,مشتريات!$F$5:$F$1048576,مشتريات!F176) -> 0
C177: =SUMIFS(مشتريات!$H$5:$H$1048576,مشتريات!$B$5:$B$1048576,">="&'تقرير المشتريات'!$B$1,مشتريات!$B$5:$B$1048576,"<="&'تقرير المشتريات'!$B$2,مشتريات!$F$5:$F$1048576,مشتريات!F177) -> 0 | D177: =SUMIFS(مشتريات!$I$5:$I$1048576,مشتريات!$B$5:$B$1048576,">="&'تقرير المشتريات'!$B$1,مشتريات!$B$5:$B$1048576,"<="&'تقرير المشتريات'!$B$2,مشتريات!$F$5:$F$1048576,مشتريات!F177) -> 0 | E177: =SUMIFS(مشتريات!$J$5:$J$1048576,مشتريات!$B$5:$B$1048576,">="&'تقرير المشتريات'!$B$1,مشتريات!$B$5:$B$1048576,"<="&'تقرير المشتريات'!$B$2,مشتريات!$F$5:$F$1048576,مشتريات!F177) -> 0
C178: =SUMIFS(مشتريات!$H$5:$H$1048576,مشتريات!$B$5:$B$1048576,">="&'تقرير المشتريات'!$B$1,مشتريات!$B$5:$B$1048576,"<="&'تقرير المشتريات'!$B$2,مشتريات!$F$5:$F$1048576,مشتريات!F178) -> 0 | D178: =SUMIFS(مشتريات!$I$5:$I$1048576,مشتريات!$B$5:$B$1048576,">="&'تقرير المشتريات'!$B$1,مشتريات!$B$5:$B$1048576,"<="&'تقرير المشتريات'!$B$2,مشتريات!$F$5:$F$1048576,مشتريات!F178) -> 0 | E178: =SUMIFS(مشتريات!$J$5:$J$1048576,مشتريات!$B$5:$B$1048576,">="&'تقرير المشتريات'!$B$1,مشتريات!$B$5:$B$1048576,"<="&'تقرير المشتريات'!$B$2,مشتريات!$F$5:$F$1048576,مشتريات!F178) -> 0
C179: =SUMIFS(مشتريات!$H$5:$H$1048576,مشتريات!$B$5:$B$1048576,">="&'تقرير المشتريات'!$B$1,مشتريات!$B$5:$B$1048576,"<="&'تقرير المشتريات'!$B$2,مشتريات!$F$5:$F$1048576,مشتريات!F179) -> 0 | D179: =SUMIFS(مشتريات!$I$5:$I$1048576,مشتريات!$B$5:$B$1048576,">="&'تقرير المشتريات'!$B$1,مشتريات!$B$5:$B$1048576,"<="&'تقرير المشتريات'!$B$2,مشتريات!$F$5:$F$1048576,مشتريات!F179) -> 0 | E179: =SUMIFS(مشتريات!$J$5:$J$1048576,مشتريات!$B$5:$B$1048576,">="&'تقرير المشتريات'!$B$1,مشتريات!$B$5:$B$1048576,"<="&'تقرير المشتريات'!$B$2,مشتريات!$F$5:$F$1048576,مشتريات!F179) -> 0
C180: =SUMIFS(مشتريات!$H$5:$H$1048576,مشتريات!$B$5:$B$1048576,">="&'تقرير المشتريات'!$B$1,مشتريات!$B$5:$B$1048576,"<="&'تقرير المشتريات'!$B$2,مشتريات!$F$5:$F$1048576,مشتريات!F180) -> 0 | D180: =SUMIFS(مشتريات!$I$5:$I$1048576,مشتريات!$B$5:$B$1048576,">="&'تقرير المشتريات'!$B$1,مشتريات!$B$5:$B$1048576,"<="&'تقرير المشتريات'!$B$2,مشتريات!$F$5:$F$1048576,مشتريات!F180) -> 0 | E180: =SUMIFS(مشتريات!$J$5:$J$1048576,مشتريات!$B$5:$B$1048576,">="&'تقرير المشتريات'!$B$1,مشتريات!$B$5:$B$1048576,"<="&'تقرير المشتريات'!$B$2,مشتريات!$F$5:$F$1048576,مشتريات!F180) -> 0
C181: =SUMIFS(مشتريات!$H$5:$H$1048576,مشتريات!$B$5:$B$1048576,">="&'تقرير المشتريات'!$B$1,مشتريات!$B$5:$B$1048576,"<="&'تقرير المشتريات'!$B$2,مشتريات!$F$5:$F$1048576,مشتريات!F181) -> 0 | D181: =SUMIFS(مشتريات!$I$5:$I$1048576,مشتريات!$B$5:$B$1048576,">="&'تقرير المشتريات'!$B$1,مشتريات!$B$5:$B$1048576,"<="&'تقرير المشتريات'!$B$2,مشتريات!$F$5:$F$1048576,مشتريات!F181) -> 0 | E181: =SUMIFS(مشتريات!$J$5:$J$1048576,مشتريات!$B$5:$B$1048576,">="&'تقرير المشتريات'!$B$1,مشتريات!$B$5:$B$1048576,"<="&'تقرير المشتريات'!$B$2,مشتريات!$F$5:$F$1048576,مشتريات!F181) -> 0
C182: =SUMIFS(مشتريات!$H$5:$H$1048576,مشتريات!$B$5:$B$1048576,">="&'تقرير المشتريات'!$B$1,مشتريات!$B$5:$B$1048576,"<="&'تقرير المشتريات'!$B$2,مشتريات!$F$5:$F$1048576,مشتريات!F182) -> 0 | D182: =SUMIFS(مشتريات!$I$5:$I$1048576,مشتريات!$B$5:$B$1048576,">="&'تقرير المشتريات'!$B$1,مشتريات!$B$5:$B$1048576,"<="&'تقرير المشتريات'!$B$2,مشتريات!$F$5:$F$1048576,مشتريات!F182) -> 0 | E182: =SUMIFS(مشتريات!$J$5:$J$1048576,مشتريات!$B$5:$B$1048576,">="&'تقرير المشتريات'!$B$1,مشتريات!$B$5:$B$1048576,"<="&'تقرير المشتريات'!$B$2,مشتريات!$F$5:$F$1048576,مشتريات!F182) -> 0
C183: =SUMIFS(مشتريات!$H$5:$H$1048576,مشتريات!$B$5:$B$1048576,">="&'تقرير المشتريات'!$B$1,مشتريات!$B$5:$B$1048576,"<="&'تقرير المشتريات'!$B$2,مشتريات!$F$5:$F$1048576,مشتريات!F183) -> 0 | D183: =SUMIFS(مشتريات!$I$5:$I$1048576,مشتريات!$B$5:$B$1048576,">="&'تقرير المشتريات'!$B$1,مشتريات!$B$5:$B$1048576,"<="&'تقرير المشتريات'!$B$2,مشتريات!$F$5:$F$1048576,مشتريات!F183) -> 0 | E183: =SUMIFS(مشتريات!$J$5:$J$1048576,مشتريات!$B$5:$B$1048576,">="&'تقرير المشتريات'!$B$1,مشتريات!$B$5:$B$1048576,"<="&'تقرير المشتريات'!$B$2,مشتريات!$F$5:$F$1048576,مشتريات!F183) -> 0
C184: =SUMIFS(مشتريات!$H$5:$H$1048576,مشتريات!$B$5:$B$1048576,">="&'تقرير المشتريات'!$B$1,مشتريات!$B$5:$B$1048576,"<="&'تقرير المشتريات'!$B$2,مشتريات!$F$5:$F$1048576,مشتريات!F184) -> 0 | D184: =SUMIFS(مشتريات!$I$5:$I$1048576,مشتريات!$B$5:$B$1048576,">="&'تقرير المشتريات'!$B$1,مشتريات!$B$5:$B$1048576,"<="&'تقرير المشتريات'!$B$2,مشتريات!$F$5:$F$1048576,مشتريات!F184) -> 0 | E184: =SUMIFS(مشتريات!$J$5:$J$1048576,مشتريات!$B$5:$B$1048576,">="&'تقرير المشتريات'!$B$1,مشتريات!$B$5:$B$1048576,"<="&'تقرير المشتريات'!$B$2,مشتريات!$F$5:$F$1048576,مشتريات!F184) -> 0
C185: =SUMIFS(مشتريات!$H$5:$H$1048576,مشتريات!$B$5:$B$1048576,">="&'تقرير المشتريات'!$B$1,مشتريات!$B$5:$B$1048576,"<="&'تقرير المشتريات'!$B$2,مشتريات!$F$5:$F$1048576,مشتريات!F185) -> 0 | D185: =SUMIFS(مشتريات!$I$5:$I$1048576,مشتريات!$B$5:$B$1048576,">="&'تقرير المشتريات'!$B$1,مشتريات!$B$5:$B$1048576,"<="&'تقرير المشتريات'!$B$2,مشتريات!$F$5:$F$1048576,مشتريات!F185) -> 0 | E185: =SUMIFS(مشتريات!$J$5:$J$1048576,مشتريات!$B$5:$B$1048576,">="&'تقرير المشتريات'!$B$1,مشتريات!$B$5:$B$1048576,"<="&'تقرير المشتريات'!$B$2,مشتريات!$F$5:$F$1048576,مشتريات!F185) -> 0
C186: =SUMIFS(مشتريات!$H$5:$H$1048576,مشتريات!$B$5:$B$1048576,">="&'تقرير المشتريات'!$B$1,مشتريات!$B$5:$B$1048576,"<="&'تقرير المشتريات'!$B$2,مشتريات!$F$5:$F$1048576,مشتريات!F186) -> 0 | D186: =SUMIFS(مشتريات!$I$5:$I$1048576,مشتريات!$B$5:$B$1048576,">="&'تقرير المشتريات'!$B$1,مشتريات!$B$5:$B$1048576,"<="&'تقرير المشتريات'!$B$2,مشتريات!$F$5:$F$1048576,مشتريات!F186) -> 0 | E186: =SUMIFS(مشتريات!$J$5:$J$1048576,مشتريات!$B$5:$B$1048576,">="&'تقرير المشتريات'!$B$1,مشتريات!$B$5:$B$1048576,"<="&'تقرير المشتريات'!$B$2,مشتريات!$F$5:$F$1048576,مشتريات!F186) -> 0
C187: =SUMIFS(مشتريات!$H$5:$H$1048576,مشتريات!$B$5:$B$1048576,">="&'تقرير المشتريات'!$B$1,مشتريات!$B$5:$B$1048576,"<="&'تقرير المشتريات'!$B$2,مشتريات!$F$5:$F$1048576,مشتريات!F187) -> 0 | D187: =SUMIFS(مشتريات!$I$5:$I$1048576,مشتريات!$B$5:$B$1048576,">="&'تقرير المشتريات'!$B$1,مشتريات!$B$5:$B$1048576,"<="&'تقرير المشتريات'!$B$2,مشتريات!$F$5:$F$1048576,مشتريات!F187) -> 0 | E187: =SUMIFS(مشتريات!$J$5:$J$1048576,مشتريات!$B$5:$B$1048576,">="&'تقرير المشتريات'!$B$1,مشتريات!$B$5:$B$1048576,"<="&'تقرير المشتريات'!$B$2,مشتريات!$F$5:$F$1048576,مشتريات!F187) -> 0
C188: =SUMIFS(مشتريات!$H$5:$H$1048576,مشتريات!$B$5:$B$1048576,">="&'تقرير المشتريات'!$B$1,مشتريات!$B$5:$B$1048576,"<="&'تقرير المشتريات'!$B$2,مشتريات!$F$5:$F$1048576,مشتريات!F188) -> 0 | D188: =SUMIFS(مشتريات!$I$5:$I$1048576,مشتريات!$B$5:$B$1048576,">="&'تقرير المشتريات'!$B$1,مشتريات!$B$5:$B$1048576,"<="&'تقرير المشتريات'!$B$2,مشتريات!$F$5:$F$1048576,مشتريات!F188) -> 0 | E188: =SUMIFS(مشتريات!$J$5:$J$1048576,مشتريات!$B$5:$B$1048576,">="&'تقرير المشتريات'!$B$1,مشتريات!$B$5:$B$1048576,"<="&'تقرير المشتريات'!$B$2,مشتريات!$F$5:$F$1048576,مشتريات!F188) -> 0
C189: =SUMIFS(مشتريات!$H$5:$H$1048576,مشتريات!$B$5:$B$1048576,">="&'تقرير المشتريات'!$B$1,مشتريات!$B$5:$B$1048576,"<="&'تقرير المشتريات'!$B$2,مشتريات!$F$5:$F$1048576,مشتريات!F189) -> 0 | D189: =SUMIFS(مشتريات!$I$5:$I$1048576,مشتريات!$B$5:$B$1048576,">="&'تقرير المشتريات'!$B$1,مشتريات!$B$5:$B$1048576,"<="&'تقرير المشتريات'!$B$2,مشتريات!$F$5:$F$1048576,مشتريات!F189) -> 0 | E189: =SUMIFS(مشتريات!$J$5:$J$1048576,مشتريات!$B$5:$B$1048576,">="&'تقرير المشتريات'!$B$1,مشتريات!$B$5:$B$1048576,"<="&'تقرير المشتريات'!$B$2,مشتريات!$F$5:$F$1048576,مشتريات!F189) -> 0
C190: =SUMIFS(مشتريات!$H$5:$H$1048576,مشتريات!$B$5:$B$1048576,">="&'تقرير المشتريات'!$B$1,مشتريات!$B$5:$B$1048576,"<="&'تقرير المشتريات'!$B$2,مشتريات!$F$5:$F$1048576,مشتريات!F190) -> 0 | D190: =SUMIFS(مشتريات!$I$5:$I$1048576,مشتريات!$B$5:$B$1048576,">="&'تقرير المشتريات'!$B$1,مشتريات!$B$5:$B$1048576,"<="&'تقرير المشتريات'!$B$2,مشتريات!$F$5:$F$1048576,مشتريات!F190) -> 0 | E190: =SUMIFS(مشتريات!$J$5:$J$1048576,مشتريات!$B$5:$B$1048576,">="&'تقرير المشتريات'!$B$1,مشتريات!$B$5:$B$1048576,"<="&'تقرير المشتريات'!$B$2,مشتريات!$F$5:$F$1048576,مشتريات!F190) -> 0
C191: =SUMIFS(مشتريات!$H$5:$H$1048576,مشتريات!$B$5:$B$1048576,">="&'تقرير المشتريات'!$B$1,مشتريات!$B$5:$B$1048576,"<="&'تقرير المشتريات'!$B$2,مشتريات!$F$5:$F$1048576,مشتريات!F191) -> 0 | D191: =SUMIFS(مشتريات!$I$5:$I$1048576,مشتريات!$B$5:$B$1048576,">="&'تقرير المشتريات'!$B$1,مشتريات!$B$5:$B$1048576,"<="&'تقرير المشتريات'!$B$2,مشتريات!$F$5:$F$1048576,مشتريات!F191) -> 0 | E191: =SUMIFS(مشتريات!$J$5:$J$1048576,مشتريات!$B$5:$B$1048576,">="&'تقرير المشتريات'!$B$1,مشتريات!$B$5:$B$1048576,"<="&'تقرير المشتريات'!$B$2,مشتريات!$F$5:$F$1048576,مشتريات!F191) -> 0
C192: =SUMIFS(مشتريات!$H$5:$H$1048576,مشتريات!$B$5:$B$1048576,">="&'تقرير المشتريات'!$B$1,مشتريات!$B$5:$B$1048576,"<="&'تقرير المشتريات'!$B$2,مشتريات!$F$5:$F$1048576,مشتريات!F192) -> 0 | D192: =SUMIFS(مشتريات!$I$5:$I$1048576,مشتريات!$B$5:$B$1048576,">="&'تقرير المشتريات'!$B$1,مشتريات!$B$5:$B$1048576,"<="&'تقرير المشتريات'!$B$2,مشتريات!$F$5:$F$1048576,مشتريات!F192) -> 0 | E192: =SUMIFS(مشتريات!$J$5:$J$1048576,مشتريات!$B$5:$B$1048576,">="&'تقرير المشتريات'!$B$1,مشتريات!$B$5:$B$1048576,"<="&'تقرير المشتريات'!$B$2,مشتريات!$F$5:$F$1048576,مشتريات!F192) -> 0
C193: =SUMIFS(مشتريات!$H$5:$H$1048576,مشتريات!$B$5:$B$1048576,">="&'تقرير المشتريات'!$B$1,مشتريات!$B$5:$B$1048576,"<="&'تقرير المشتريات'!$B$2,مشتريات!$F$5:$F$1048576,مشتريات!F193) -> 0 | D193: =SUMIFS(مشتريات!$I$5:$I$1048576,مشتريات!$B$5:$B$1048576,">="&'تقرير المشتريات'!$B$1,مشتريات!$B$5:$B$1048576,"<="&'تقرير المشتريات'!$B$2,مشتريات!$F$5:$F$1048576,مشتريات!F193) -> 0 | E193: =SUMIFS(مشتريات!$J$5:$J$1048576,مشتريات!$B$5:$B$1048576,">="&'تقرير المشتريات'!$B$1,مشتريات!$B$5:$B$1048576,"<="&'تقرير المشتريات'!$B$2,مشتريات!$F$5:$F$1048576,مشتريات!F193) -> 0
C194: =SUMIFS(مشتريات!$H$5:$H$1048576,مشتريات!$B$5:$B$1048576,">="&'تقرير المشتريات'!$B$1,مشتريات!$B$5:$B$1048576,"<="&'تقرير المشتريات'!$B$2,مشتريات!$F$5:$F$1048576,مشتريات!F194) -> 0 | D194: =SUMIFS(مشتريات!$I$5:$I$1048576,مشتريات!$B$5:$B$1048576,">="&'تقرير المشتريات'!$B$1,مشتريات!$B$5:$B$1048576,"<="&'تقرير المشتريات'!$B$2,مشتريات!$F$5:$F$1048576,مشتريات!F194) -> 0 | E194: =SUMIFS(مشتريات!$J$5:$J$1048576,مشتريات!$B$5:$B$1048576,">="&'تقرير المشتريات'!$B$1,مشتريات!$B$5:$B$1048576,"<="&'تقرير المشتريات'!$B$2,مشتريات!$F$5:$F$1048576,مشتريات!F194) -> 0
C195: =SUMIFS(مشتريات!$H$5:$H$1048576,مشتريات!$B$5:$B$1048576,">="&'تقرير المشتريات'!$B$1,مشتريات!$B$5:$B$1048576,"<="&'تقرير المشتريات'!$B$2,مشتريات!$F$5:$F$1048576,مشتريات!F195) -> 0 | D195: =SUMIFS(مشتريات!$I$5:$I$1048576,مشتريات!$B$5:$B$1048576,">="&'تقرير المشتريات'!$B$1,مشتريات!$B$5:$B$1048576,"<="&'تقرير المشتريات'!$B$2,مشتريات!$F$5:$F$1048576,مشتريات!F195) -> 0 | E195: =SUMIFS(مشتريات!$J$5:$J$1048576,مشتريات!$B$5:$B$1048576,">="&'تقرير المشتريات'!$B$1,مشتريات!$B$5:$B$1048576,"<="&'تقرير المشتريات'!$B$2,مشتريات!$F$5:$F$1048576,مشتريات!F195) -> 0
C196: =SUMIFS(مشتريات!$H$5:$H$1048576,مشتريات!$B$5:$B$1048576,">="&'تقرير المشتريات'!$B$1,مشتريات!$B$5:$B$1048576,"<="&'تقرير المشتريات'!$B$2,مشتريات!$F$5:$F$1048576,مشتريات!F196) -> 0 | D196: =SUMIFS(مشتريات!$I$5:$I$1048576,مشتريات!$B$5:$B$1048576,">="&'تقرير المشتريات'!$B$1,مشتريات!$B$5:$B$1048576,"<="&'تقرير المشتريات'!$B$2,مشتريات!$F$5:$F$1048576,مشتريات!F196) -> 0 | E196: =SUMIFS(مشتريات!$J$5:$J$1048576,مشتريات!$B$5:$B$1048576,">="&'تقرير المشتريات'!$B$1,مشتريات!$B$5:$B$1048576,"<="&'تقرير المشتريات'!$B$2,مشتريات!$F$5:$F$1048576,مشتريات!F196) -> 0
C197: =SUMIFS(مشتريات!$H$5:$H$1048576,مشتريات!$B$5:$B$1048576,">="&'تقرير المشتريات'!$B$1,مشتريات!$B$5:$B$1048576,"<="&'تقرير المشتريات'!$B$2,مشتريات!$F$5:$F$1048576,مشتريات!F197) -> 0 | D197: =SUMIFS(مشتريات!$I$5:$I$1048576,مشتريات!$B$5:$B$1048576,">="&'تقرير المشتريات'!$B$1,مشتريات!$B$5:$B$1048576,"<="&'تقرير المشتريات'!$B$2,مشتريات!$F$5:$F$1048576,مشتريات!F197) -> 0 | E197: =SUMIFS(مشتريات!$J$5:$J$1048576,مشتريات!$B$5:$B$1048576,">="&'تقرير المشتريات'!$B$1,مشتريات!$B$5:$B$1048576,"<="&'تقرير المشتريات'!$B$2,مشتريات!$F$5:$F$1048576,مشتريات!F197) -> 0
C198: =SUMIFS(مشتريات!$H$5:$H$1048576,مشتريات!$B$5:$B$1048576,">="&'تقرير المشتريات'!$B$1,مشتريات!$B$5:$B$1048576,"<="&'تقرير المشتريات'!$B$2,مشتريات!$F$5:$F$1048576,مشتريات!F198) -> 0 | D198: =SUMIFS(مشتريات!$I$5:$I$1048576,مشتريات!$B$5:$B$1048576,">="&'تقرير المشتريات'!$B$1,مشتريات!$B$5:$B$1048576,"<="&'تقرير المشتريات'!$B$2,مشتريات!$F$5:$F$1048576,مشتريات!F198) -> 0 | E198: =SUMIFS(مشتريات!$J$5:$J$1048576,مشتريات!$B$5:$B$1048576,">="&'تقرير المشتريات'!$B$1,مشتريات!$B$5:$B$1048576,"<="&'تقرير المشتريات'!$B$2,مشتريات!$F$5:$F$1048576,مشتريات!F198) -> 0
C199: =SUMIFS(مشتريات!$H$5:$H$1048576,مشتريات!$B$5:$B$1048576,">="&'تقرير المشتريات'!$B$1,مشتريات!$B$5:$B$1048576,"<="&'تقرير المشتريات'!$B$2,مشتريات!$F$5:$F$1048576,مشتريات!F199) -> 0 | D199: =SUMIFS(مشتريات!$I$5:$I$1048576,مشتريات!$B$5:$B$1048576,">="&'تقرير المشتريات'!$B$1,مشتريات!$B$5:$B$1048576,"<="&'تقرير المشتريات'!$B$2,مشتريات!$F$5:$F$1048576,مشتريات!F199) -> 0 | E199: =SUMIFS(مشتريات!$J$5:$J$1048576,مشتريات!$B$5:$B$1048576,">="&'تقرير المشتريات'!$B$1,مشتريات!$B$5:$B$1048576,"<="&'تقرير المشتريات'!$B$2,مشتريات!$F$5:$F$1048576,مشتريات!F199) -> 0
C200: =SUMIFS(مشتريات!$H$5:$H$1048576,مشتريات!$B$5:$B$1048576,">="&'تقرير المشتريات'!$B$1,مشتريات!$B$5:$B$1048576,"<="&'تقرير المشتريات'!$B$2,مشتريات!$F$5:$F$1048576,مشتريات!F200) -> 0 | D200: =SUMIFS(مشتريات!$I$5:$I$1048576,مشتريات!$B$5:$B$1048576,">="&'تقرير المشتريات'!$B$1,مشتريات!$B$5:$B$1048576,"<="&'تقرير المشتريات'!$B$2,مشتريات!$F$5:$F$1048576,مشتريات!F200) -> 0 | E200: =SUMIFS(مشتريات!$J$5:$J$1048576,مشتريات!$B$5:$B$1048576,">="&'تقرير المشتريات'!$B$1,مشتريات!$B$5:$B$1048576,"<="&'تقرير المشتريات'!$B$2,مشتريات!$F$5:$F$1048576,مشتريات!F200) -> 0
... 22 more rows

Sheet تقرير المبيعات
A1: من | B1: 2018-01-09 | C1: سنه | G1: العمله | H1: =code!G2 -> $
A2: الى | B2: 15/9/2018 | C2: شهر
C3: يوم | XES3: المجموع | XET3: =SUM(XET5:XET12) -> 94
A4: عدد الاصناف | B4: =COUNTA(A6:A50) -> 21 | C4: =SUM(C6:C100) -> 143 | D4: =SUM(D6:D100) -> 0 | E4: =SUM(E6:E100) -> 89750 | F4: 389250 | G4: 182000 | H4: 971000 | I4: 976000 | J4: 15000 | K4: 961000 | M4: =SUM(M6:M50) -> 566750 | XET4: عدد الاظافر
A5: صنف | B5: الوحده | C5: عدد القطع الصادره | D5: عدد القطع الوارده | E5: التكلفه مفرد | F5: مجموع التكلفه | G5: التكلفه بيع مفرد | H5: مجموع التكلفه | I5: المجموع قبل الخصم | J5: مجموع الخصومات | K5: اجمالي الفواتير | L5: الكميه المتوفره في المخزن | M5: الربح | XES5: اظافر ايد | XET5: =C7 -> 49
A6: مقوي اظافر essense | B6: قطع | C6: =SUMIFS(مبيعات!$F$5:$F$1048576,مبيعات!$B$5:$B$1048576,">="&'تقرير المبيعات'!$B$1,مبيعات!$B$5:$B$1048576,"<="&'تقرير المبيعات'!$B$2,مبيعات!$D$5:$D$1048576,'تقرير المبيعات'!A6) -> 0 | D6: =SUMIFS(شراء!$F$5:$F$1048576,شراء!$B$5:$B$1048576,">="&'تقرير المبيعات'!$B$1,شراء!$B$5:$B$1048576,"<="&'تقرير المبيعات'!$B$2,شراء!$D$5:$D$1048576,'تقرير المبيعات'!A6) -> 0 | E6: =IFERROR(INDEX(code!$A$4:$E$1048576,MATCH(A6,code!$A$4:$A$1048576,0),2),"") -> 3250 | F6: =IFERROR(E6*C6,"") -> 0 | G6: =IFERROR(INDEX(code!$A$4:$E$1048576,MATCH(A6,code!$A$4:$A$1048576,0),3),"") -> 5000 | H6: =IFERROR(G6*C6,"") -> 0 | I6: =SUMIFS(مبيعات!$K$5:$K$1048576,مبيعات!$B$5:$B$1048576,">="&'تقرير المبيعات'!$B$1,مبيعات!$B$5:$B$1048576,"<="&'تقرير المبيعات'!$B$2,مبيعات!$D$5:$D$1048576,'تقرير المبيعات'!A6) -> 0 | J6: =SUMIFS(مبيعات!$L$5:$L$1048576,مبيعات!$B$5:$B$1048576,">="&'تقرير المبيعات'!$B$1,مبيعات!$B$5:$B$1048576,"<="&'تقرير المبيعات'!$B$2,مبيعات!$D$5:$D$1048576,'تقرير المبيعات'!A6) -> 0 | K6: =SUMIFS(مبيعات!$M$5:$M$1048576,مبيعات!$B$5:$B$1048576,">="&'تقرير المبيعات'!$B$1,مبيعات!$B$5:$B$1048576,"<="&'تقرير المبيعات'!$B$2,مبيعات!$D$5:$D$1048576,'تقرير المبيعات'!A6) -> 0 | L6: =IFERROR(INDEX(stol!$A$4:$E$1048576,MATCH(A6,stol!$A$4:$A$1048576,0),4),"") -> 0 | M6: =IFERROR(H6-F6-J6,"") -> 0 | XES6: اظافر قدم | XET6: =C10 -> 0
A7: اظافر | B7: سيت 18 اظفر | C7: =SUMIFS(مبيعات!$F$5:$F$1048576,مبيعات!$B$5:$B$1048576,">="&'تقرير المبيعات'!$B$1,مبيعات!$B$5:$B$1048576,"<="&'تقرير المبيعات'!$B$2,مبيعات!$D$5:$D$1048576,'تقرير المبيعات'!A7) -> 49 | D7: =SUMIFS(شراء!$F$5:$F$1048576,شراء!$B$5:$B$1048576,">="&'تقرير المبيعات'!$B$1,شراء!$B$5:$B$1048576,"<="&'تقرير المبيعات'!$B$2,شراء!$D$5:$D$1048576,'تقرير المبيعات'!A7) -> 0 | E7: =IFERROR(INDEX(code!$A$4:$E$1048576,MATCH(A7,code!$A$4:$A$1048576,0),2),"") -> 3500 | F7: =IFERROR(E7*C7,"") -> 171500 | G7: =IFERROR(INDEX(code!$A$4:$E$1048576,MATCH(A7,code!$A$4:$A$1048576,0),3),"") -> 8000 | H7: =IFERROR(G7*C7,"") -> 392000 | I7: =SUMIFS(مبيعات!$K$5:$K$1048576,مبيعات!$B$5:$B$1048576,">="&'تقرير المبيعات'!$B$1,مبيعات!$B$5:$B$1048576,"<="&'تقرير المبيعات'!$B$2,مبيعات!$D$5:$D$1048576,'تقرير المبيعات'!A7) -> 395000 | J7: =SUMIFS(مبيعات!$L$5:$L$1048576,مبيعات!$B$5:$B$1048576,">="&'تقرير المبيعات'!$B$1,مبيعات!$B$5:$B$1048576,"<="&'تقرير المبيعات'!$B$2,مبيعات!$D$5:$D$1048576,'تقرير المبيعات'!A7) -> 2000 | K7: =SUMIFS(مبيعات!$M$5:$M$1048576,مبيعات!$B$5:$B$1048576,">="&'تقرير المبيعات'!$B$1,مبيعات!$B$5:$B$1048576,"<="&'تقرير المبيعات'!$B$2,مبيعات!$D$5:$D$1048576,'تقرير المبيعات'!A7) -> 393000 | L7: =IFERROR(INDEX(stol!$A$4:$E$1048576,MATCH(A7,stol!$A$4:$A$1048576,0),4),"") -> -338 | M7: =IFERROR(H7-F7-J7,"") -> 218500 | XES7: بكج ذهبي | XET7: =C11*3 -> 0
... 8 more rows
